Workbook

Sheet USER INTERFACE
A2: Emissions Footprint Estimation Tool
B4: The objective of this tool is to provide an estimate of project emissions for ENF reporting.
B6: To use the tool:
B7: populate the area of each proposed building (column B), in square feet.
B8: use the pull down menu to select building use (column C)
B10: For mixed use buildings, use multiple rows. For example, if a building is proposed to be 10,000-sf ground floor retail and 40,000-sf residential
B11: use two rows, one for the retail and one for the residential.
B13: If more then twenty rows are needed, use multiples of this spreadsheet and sum the totals.
B15: Electric and gas EUI estimates are based on pre-solved prototypes available here https://www.energycodes.gov/prototype-building-models
B17: Emission rates are: 600 lbs/MWhr for grid electricitly and 116 lbs/MMBtu
B19: For office sizes
C20: Use "small office" if <=20,000-sf
C21: Use "large office" if >20,000-sf
B23: For hotel sizes
C24: Use "small hotel" if <=50,000-sf
C25: Use "large hotel" if >50,000-sf
H27: EUI (kBtu/sf-yr) | K27: Annual Emissions (tpy) | O27: Emissions - 2050 (tpy)
A28: Building (or use) No. | B28: Area (sf) | C28: Use | D28: Efficiency-Level | E28: Space Heating | F28: Water and Cooking (if space heating is fossil, this value must also be fossil) | H28: fossil fuel | I28: electric | K28: fossil | L28: electric | M28: total | O28: fossil | P28: electric | Q28: total
A29: 1 | B29: 8000 | C29: restaurant (sit down) | D29: stretch/opt-in | E29: fossil | F29: fossil | G29: =IF(AND(E29="fossil",F29="electric"),"error","") ->  | H29: =_xlfn.IFNA('subroutine engine'!M12,0) -> 190.1528566 | I29: =_xlfn.IFNA('subroutine engine'!N12,0) -> 123.7228872 | K29: =_xlfn.IFNA(H29*B29/1000*116/2000,"") -> 88.23092545 | L29: =_xlfn.IFNA(I29*B29*1000/3412/1000*600/2000,"") -> 87.02664983 | M29: =_xlfn.IFNA(SUM(K29:L29),"") -> 175.2575753 | O29: =_xlfn.IFNA(H29*B29/1000*116/2000,"") -> 88.23092545 | P29: =_xlfn.IFNA(I29*B29*1000/3412/1000*50/2000,"") -> 7.252220819 | Q29: =_xlfn.IFNA(SUM(O29:P29),"") -> 95.48314627
A30: 2 | B30: 150000 | C30: office (large) | D30: stretch/opt-in | E30: fossil | F30: fossil | G30: =IF(AND(E30="fossil",F30="electric"),"error","") ->  | H30: =_xlfn.IFNA('subroutine engine'!M13,0) -> 2.284904747 | I30: =_xlfn.IFNA('subroutine engine'!N13,0) -> 43.21118719 | K30: =_xlfn.IFNA(H30*B30/1000*116/2000,"") -> 19.8786713 | L30: =_xlfn.IFNA(I30*B30*1000/3412/1000*600/2000,"") -> 569.9013551 | M30: =_xlfn.IFNA(SUM(K30:L30),"") -> 589.7800264 | O30: =_xlfn.IFNA(H30*B30/1000*116/2000,"") -> 19.8786713 | P30: =_xlfn.IFNA(I30*B30*1000/3412/1000*50/2000,"") -> 47.49177959 | Q30: =_xlfn.IFNA(SUM(O30:P30),"") -> 67.3704509
A31: 3 | B31: 200000 | C31: multifamily (high rise) | D31: stretch/opt-in | E31: fossil | F31: fossil | H31: =_xlfn.IFNA('subroutine engine'!M14,0) -> 17.47023884 | I31: =_xlfn.IFNA('subroutine engine'!N14,0) -> 24.4688217 | K31: 202.6547705 | L31: 430.2840862 | M31: 632.9388566 | O31: 202.6547705 | P31: 35.85700718 | Q31: 238.5117777
A32: 4 | B32: 45000 | C32: warehouse | D32: stretch/opt-in | E32: fossil | F32: fossil | H32: =_xlfn.IFNA('subroutine engine'!M15,0) -> 4.316968356 | I32: =_xlfn.IFNA('subroutine engine'!N15,0) -> 6.030919396 | K32: =_xlfn.IFNA(H32*B32/1000*116/2000,"") -> 11.26728741 | L32: 23.8620785 | M32: 35.12936591 | O32: 11.26728741 | P32: 1.988506542 | Q32: 13.25579395
A33: 5 | D33: stretch/opt-in | E33: fossil | F33: fossil | H33: =_xlfn.IFNA('subroutine engine'!M16,0) -> 0 | I33: =_xlfn.IFNA('subroutine engine'!N16,0) -> 0 | K33: 0 | L33: 0 | M33: 0 | O33: 0 | P33: 0 | Q33: 0
A34: 6 | D34: stretch/opt-in | E34: fossil | F34: fossil | H34: =_xlfn.IFNA('subroutine engine'!M17,0) -> 0 | I34: =_xlfn.IFNA('subroutine engine'!N17,0) -> 0 | K34: 0 | L34: 0 | M34: 0 | O34: 0 | P34: 0 | Q34: 0
A35: 7 | D35: stretch/opt-in | E35: fossil | F35: fossil | H35: =_xlfn.IFNA('subroutine engine'!M18,0) -> 0 | I35: =_xlfn.IFNA('subroutine engine'!N18,0) -> 0 | K35: 0 | L35: 0 | M35: 0 | O35: 0 | P35: 0 | Q35: 0
A36: 8 | D36: stretch/opt-in | E36: fossil | F36: fossil | H36: =_xlfn.IFNA('subroutine engine'!M19,0) -> 0 | I36: =_xlfn.IFNA('subroutine engine'!N19,0) -> 0 | K36: 0 | L36: 0 | M36: 0 | O36: 0 | P36: 0 | Q36: 0
A37: 9 | D37: stretch/opt-in | E37: fossil | F37: fossil | H37: =_xlfn.IFNA('subroutine engine'!M20,0) -> 0 | I37: =_xlfn.IFNA('subroutine engine'!N20,0) -> 0 | K37: 0 | L37: 0 | M37: 0 | O37: 0 | P37: 0 | Q37: 0
A38: 10 | D38: stretch/opt-in | E38: fossil | F38: fossil | H38: =_xlfn.IFNA('subroutine engine'!M21,0) -> 0 | I38: =_xlfn.IFNA('subroutine engine'!N21,0) -> 0 | K38: 0 | L38: 0 | M38: 0 | O38: 0 | P38: 0 | Q38: 0
A39: 11 | D39: stretch/opt-in | E39: fossil | F39: fossil | H39: =_xlfn.IFNA('subroutine engine'!M22,0) -> 0 | I39: =_xlfn.IFNA('subroutine engine'!N22,0) -> 0 | K39: 0 | L39: 0 | M39: 0 | O39: 0 | P39: 0 | Q39: 0
A40: 12 | D40: stretch/opt-in | E40: fossil | F40: fossil | H40: =_xlfn.IFNA('subroutine engine'!M23,0) -> 0 | I40: =_xlfn.IFNA('subroutine engine'!N23,0) -> 0 | K40: 0 | L40: 0 | M40: 0 | O40: 0 | P40: 0 | Q40: 0
A41: 13 | D41: stretch/opt-in | E41: fossil | F41: fossil | H41: =_xlfn.IFNA('subroutine engine'!M24,0) -> 0 | I41: =_xlfn.IFNA('subroutine engine'!N24,0) -> 0 | K41: 0 | L41: 0 | M41: 0 | O41: 0 | P41: 0 | Q41: 0
A42: 14 | D42: stretch/opt-in | E42: fossil | F42: fossil | H42: =_xlfn.IFNA('subroutine engine'!M25,0) -> 0 | I42: =_xlfn.IFNA('subroutine engine'!N25,0) -> 0 | K42: 0 | L42: 0 | M42: 0 | O42: 0 | P42: 0 | Q42: 0
A43: 15 | D43: stretch/opt-in | E43: fossil | F43: fossil | H43: =_xlfn.IFNA('subroutine engine'!M26,0) -> 0 | I43: =_xlfn.IFNA('subroutine engine'!N26,0) -> 0 | K43: 0 | L43: 0 | M43: 0 | O43: 0 | P43: 0 | Q43: 0
A44: 16 | D44: stretch/opt-in | E44: fossil | F44: fossil | H44: =_xlfn.IFNA('subroutine engine'!M27,0) -> 0 | I44: =_xlfn.IFNA('subroutine engine'!N27,0) -> 0 | K44: 0 | L44: 0 | M44: 0 | O44: 0 | P44: 0 | Q44: 0
A45: 17 | D45: stretch/opt-in | E45: fossil | F45: fossil | H45: =_xlfn.IFNA('subroutine engine'!M28,0) -> 0 | I45: =_xlfn.IFNA('subroutine engine'!N28,0) -> 0 | K45: 0 | L45: 0 | M45: 0 | O45: 0 | P45: 0 | Q45: 0
A46: 18 | D46: stretch/opt-in | E46: fossil | F46: fossil | H46: =_xlfn.IFNA('subroutine engine'!M29,0) -> 0 | I46: =_xlfn.IFNA('subroutine engine'!N29,0) -> 0 | K46: 0 | L46: 0 | M46: 0 | O46: 0 | P46: 0 | Q46: 0
A47: 19 | D47: stretch/opt-in | E47: fossil | F47: fossil | H47: =_xlfn.IFNA('subroutine engine'!M30,0) -> 0 | I47: =_xlfn.IFNA('subroutine engine'!N30,0) -> 0 | K47: 0 | L47: 0 | M47: 0 | O47: 0 | P47: 0 | Q47: 0
A48: 20 | D48: stretch/opt-in | E48: fossil | F48: fossil | H48: =_xlfn.IFNA('subroutine engine'!M31,0) -> 0 | I48: =_xlfn.IFNA('subroutine engine'!N31,0) -> 0 | K48: 0 | L48: 0 | M48: 0 | O48: 0 | P48: 0 | Q48: 0
D49: stretch/opt-in | E49: fossil | F49: fossil | H49: =_xlfn.IFNA('subroutine engine'!M32,0) -> 0 | I49: =_xlfn.IFNA('subroutine engine'!N32,0) -> 0 | K49: 0 | L49: 0 | M49: 0 | O49: 0 | P49: 0 | Q49: 0
L51: Total project emissions to enter into ENF form - represents near-term emissions rate | M51: =SUM(M29:M49) -> 1433.105824 | R51: tpy
P54: Total project emissions - for informational purposes - represents long-term emissions rate | Q54: =SUM(Q29:Q49) -> 414.6211688

Sheet subroutine engine (hidden)
E9: Commitment | M9: EUI
C10: Building Area | D10: Building Use | E10: Efficiency | F10: Space Heating | G10: Water and Cooking | I10: navigation | M10: fossil fuel | N10: electric
C11: (sf) | D11: (choose one) | I11: building use | J11: space | K11: water/cooking | M11: (kBtu/sf-yr) | N11: (kBtu/sf-yr)
C12: ='USER INTERFACE'!B29 -> 8000 | D12: ='USER INTERFACE'!C29 -> restaurant (sit down) | E12: ='USER INTERFACE'!D29 -> stretch/opt-in | F12: ='USER INTERFACE'!E29 -> fossil | G12: ='USER INTERFACE'!F29 -> fossil | I12: =MATCH(D12, 'master data'!E$14:EI$14, 0) -> 46 | J12: =IF(E12=Validation!K$9, 0, IF(E12=Validation!K$10, 3, IF(E12=Validation!K$11, 6))) -> 3 | K12: =IF(AND(F12=Validation!K$13,G12=Validation!K$13),0,IF(AND(F12=Validation!K$14,G12=Validation!K$13),1,IF(AND(F12=Validation!K$14, G12=Validation!K$14), 2, 0))) -> 0 | M12: =INDEX('master data'!E$14:EI$20, 6, SUM(I12:K12)) -> 190.1528566 | N12: =INDEX('master data'!E$14:EI$20,7,SUM(I12:K12)) -> 123.7228872
C13: ='USER INTERFACE'!B30 -> 150000 | D13: ='USER INTERFACE'!C30 -> office (large) | E13: ='USER INTERFACE'!D30 -> stretch/opt-in | F13: ='USER INTERFACE'!E30 -> fossil | G13: ='USER INTERFACE'!F30 -> fossil | I13: =MATCH(D13, 'master data'!E$14:EI$14, 0) -> 82 | J13: =IF(E13=Validation!K$9, 0, IF(E13=Validation!K$10, 3, IF(E13=Validation!K$11, 6))) -> 3 | K13: =IF(AND(F13=Validation!K$13,G13=Validation!K$13),0,IF(AND(F13=Validation!K$14,G13=Validation!K$13),1,IF(AND(F13=Validation!K$14, G13=Validation!K$14), 2, 0))) -> 0 | M13: =INDEX('master data'!E$14:EI$20, 6, SUM(I13:K13)) -> 2.284904747 | N13: =INDEX('master data'!E$14:EI$20,7,SUM(I13:K13)) -> 43.21118719
C14: ='USER INTERFACE'!B31 -> 200000 | D14: ='USER INTERFACE'!C31 -> multifamily (high rise) | E14: ='USER INTERFACE'!D31 -> stretch/opt-in | F14: ='USER INTERFACE'!E31 -> fossil | G14: ='USER INTERFACE'!F31 -> fossil | I14: =MATCH(D14, 'master data'!E$14:EI$14, 0) -> 127 | J14: =IF(E14=Validation!K$9, 0, IF(E14=Validation!K$10, 3, IF(E14=Validation!K$11, 6))) -> 3 | K14: =IF(AND(F14=Validation!K$13,G14=Validation!K$13),0,IF(AND(F14=Validation!K$14,G14=Validation!K$13),1,IF(AND(F14=Validation!K$14, G14=Validation!K$14), 2, 0))) -> 0 | M14: =INDEX('master data'!E$14:EI$20, 6, SUM(I14:K14)) -> 17.47023884 | N14: =INDEX('master data'!E$14:EI$20,7,SUM(I14:K14)) -> 24.4688217
C15: ='USER INTERFACE'!B32 -> 45000 | D15: ='USER INTERFACE'!C32 -> warehouse | E15: ='USER INTERFACE'!D32 -> stretch/opt-in | F15: ='USER INTERFACE'!E32 -> fossil | G15: ='USER INTERFACE'!F32 -> fossil | I15: =MATCH(D15, 'master data'!E$14:EI$14, 0) -> 1 | J15: =IF(E15=Validation!K$9, 0, IF(E15=Validation!K$10, 3, IF(E15=Validation!K$11, 6))) -> 3 | K15: =IF(AND(F15=Validation!K$13,G15=Validation!K$13),0,IF(AND(F15=Validation!K$14,G15=Validation!K$13),1,IF(AND(F15=Validation!K$14, G15=Validation!K$14), 2, 0))) -> 0 | M15: =INDEX('master data'!E$14:EI$20, 6, SUM(I15:K15)) -> 4.316968356 | N15: =INDEX('master data'!E$14:EI$20,7,SUM(I15:K15)) -> 6.030919396
C16: ='USER INTERFACE'!B33 -> 0 | D16: ='USER INTERFACE'!C33 -> 0 | E16: ='USER INTERFACE'!D33 -> stretch/opt-in | F16: ='USER INTERFACE'!E33 -> fossil | G16: ='USER INTERFACE'!F33 -> fossil | I16: =MATCH(D16, 'master data'!E$14:EI$14, 0) ->  | J16: =IF(E16=Validation!K$9, 0, IF(E16=Validation!K$10, 3, IF(E16=Validation!K$11, 6))) -> 3 | K16: =IF(AND(F16=Validation!K$13,G16=Validation!K$13),0,IF(AND(F16=Validation!K$14,G16=Validation!K$13),1,IF(AND(F16=Validation!K$14, G16=Validation!K$14), 2, 0))) -> 0 | M16: =INDEX('master data'!E$14:EI$20, 6, SUM(I16:K16)) ->  | N16: =INDEX('master data'!E$14:EI$20,7,SUM(I16:K16)) -> 
C17: ='USER INTERFACE'!B34 -> 0 | D17: ='USER INTERFACE'!C34 -> 0 | E17: ='USER INTERFACE'!D34 -> stretch/opt-in | F17: ='USER INTERFACE'!E34 -> fossil | G17: ='USER INTERFACE'!F34 -> fossil | I17: =MATCH(D17, 'master data'!E$14:EI$14, 0) ->  | J17: =IF(E17=Validation!K$9, 0, IF(E17=Validation!K$10, 3, IF(E17=Validation!K$11, 6))) -> 3 | K17: =IF(AND(F17=Validation!K$13,G17=Validation!K$13),0,IF(AND(F17=Validation!K$14,G17=Validation!K$13),1,IF(AND(F17=Validation!K$14, G17=Validation!K$14), 2, 0))) -> 0 | M17: =INDEX('master data'!E$14:EI$20, 6, SUM(I17:K17)) ->  | N17: =INDEX('master data'!E$14:EI$20,7,SUM(I17:K17)) -> 
C18: ='USER INTERFACE'!B35 -> 0 | D18: ='USER INTERFACE'!C35 -> 0 | E18: ='USER INTERFACE'!D35 -> stretch/opt-in | F18: ='USER INTERFACE'!E35 -> fossil | G18: ='USER INTERFACE'!F35 -> fossil | I18: =MATCH(D18, 'master data'!E$14:EI$14, 0) ->  | J18: =IF(E18=Validation!K$9, 0, IF(E18=Validation!K$10, 3, IF(E18=Validation!K$11, 6))) -> 3 | K18: =IF(AND(F18=Validation!K$13,G18=Validation!K$13),0,IF(AND(F18=Validation!K$14,G18=Validation!K$13),1,IF(AND(F18=Validation!K$14, G18=Validation!K$14), 2, 0))) -> 0 | M18: =INDEX('master data'!E$14:EI$20, 6, SUM(I18:K18)) ->  | N18: =INDEX('master data'!E$14:EI$20,7,SUM(I18:K18)) -> 
C19: ='USER INTERFACE'!B36 -> 0 | D19: ='USER INTERFACE'!C36 -> 0 | E19: ='USER INTERFACE'!D36 -> stretch/opt-in | F19: ='USER INTERFACE'!E36 -> fossil | G19: ='USER INTERFACE'!F36 -> fossil | I19: =MATCH(D19, 'master data'!E$14:EI$14, 0) ->  | J19: =IF(E19=Validation!K$9, 0, IF(E19=Validation!K$10, 3, IF(E19=Validation!K$11, 6))) -> 3 | K19: =IF(AND(F19=Validation!K$13,G19=Validation!K$13),0,IF(AND(F19=Validation!K$14,G19=Validation!K$13),1,IF(AND(F19=Validation!K$14, G19=Validation!K$14), 2, 0))) -> 0 | M19: =INDEX('master data'!E$14:EI$20, 6, SUM(I19:K19)) ->  | N19: =INDEX('master data'!E$14:EI$20,7,SUM(I19:K19)) -> 
C20: ='USER INTERFACE'!B37 -> 0 | D20: ='USER INTERFACE'!C37 -> 0 | E20: ='USER INTERFACE'!D37 -> stretch/opt-in | F20: ='USER INTERFACE'!E37 -> fossil | G20: ='USER INTERFACE'!F37 -> fossil | I20: =MATCH(D20, 'master data'!E$14:EI$14, 0) ->  | J20: =IF(E20=Validation!K$9, 0, IF(E20=Validation!K$10, 3, IF(E20=Validation!K$11, 6))) -> 3 | K20: =IF(AND(F20=Validation!K$13,G20=Validation!K$13),0,IF(AND(F20=Validation!K$14,G20=Validation!K$13),1,IF(AND(F20=Validation!K$14, G20=Validation!K$14), 2, 0))) -> 0 | M20: =INDEX('master data'!E$14:EI$20, 6, SUM(I20:K20)) ->  | N20: =INDEX('master data'!E$14:EI$20,7,SUM(I20:K20)) -> 
C21: ='USER INTERFACE'!B38 -> 0 | D21: ='USER INTERFACE'!C38 -> 0 | E21: ='USER INTERFACE'!D38 -> stretch/opt-in | F21: ='USER INTERFACE'!E38 -> fossil | G21: ='USER INTERFACE'!F38 -> fossil | I21: =MATCH(D21, 'master data'!E$14:EI$14, 0) ->  | J21: =IF(E21=Validation!K$9, 0, IF(E21=Validation!K$10, 3, IF(E21=Validation!K$11, 6))) -> 3 | K21: =IF(AND(F21=Validation!K$13,G21=Validation!K$13),0,IF(AND(F21=Validation!K$14,G21=Validation!K$13),1,IF(AND(F21=Validation!K$14, G21=Validation!K$14), 2, 0))) -> 0 | M21: =INDEX('master data'!E$14:EI$20, 6, SUM(I21:K21)) ->  | N21: =INDEX('master data'!E$14:EI$20,7,SUM(I21:K21)) -> 
C22: ='USER INTERFACE'!B39 -> 0 | D22: ='USER INTERFACE'!C39 -> 0 | E22: ='USER INTERFACE'!D39 -> stretch/opt-in | F22: ='USER INTERFACE'!E39 -> fossil | G22: ='USER INTERFACE'!F39 -> fossil | I22: =MATCH(D22, 'master data'!E$14:EI$14, 0) ->  | J22: =IF(E22=Validation!K$9, 0, IF(E22=Validation!K$10, 3, IF(E22=Validation!K$11, 6))) -> 3 | K22: =IF(AND(F22=Validation!K$13,G22=Validation!K$13),0,IF(AND(F22=Validation!K$14,G22=Validation!K$13),1,IF(AND(F22=Validation!K$14, G22=Validation!K$14), 2, 0))) -> 0 | M22: =INDEX('master data'!E$14:EI$20, 6, SUM(I22:K22)) ->  | N22: =INDEX('master data'!E$14:EI$20,7,SUM(I22:K22)) -> 
C23: ='USER INTERFACE'!B40 -> 0 | D23: ='USER INTERFACE'!C40 -> 0 | E23: ='USER INTERFACE'!D40 -> stretch/opt-in | F23: ='USER INTERFACE'!E40 -> fossil | G23: ='USER INTERFACE'!F40 -> fossil | I23: =MATCH(D23, 'master data'!E$14:EI$14, 0) ->  | J23: =IF(E23=Validation!K$9, 0, IF(E23=Validation!K$10, 3, IF(E23=Validation!K$11, 6))) -> 3 | K23: =IF(AND(F23=Validation!K$13,G23=Validation!K$13),0,IF(AND(F23=Validation!K$14,G23=Validation!K$13),1,IF(AND(F23=Validation!K$14, G23=Validation!K$14), 2, 0))) -> 0 | M23: =INDEX('master data'!E$14:EI$20, 6, SUM(I23:K23)) ->  | N23: =INDEX('master data'!E$14:EI$20,7,SUM(I23:K23)) -> 
C24: ='USER INTERFACE'!B41 -> 0 | D24: ='USER INTERFACE'!C41 -> 0 | E24: ='USER INTERFACE'!D41 -> stretch/opt-in | F24: ='USER INTERFACE'!E41 -> fossil | G24: ='USER INTERFACE'!F41 -> fossil | I24: =MATCH(D24, 'master data'!E$14:EI$14, 0) ->  | J24: =IF(E24=Validation!K$9, 0, IF(E24=Validation!K$10, 3, IF(E24=Validation!K$11, 6))) -> 3 | K24: =IF(AND(F24=Validation!K$13,G24=Validation!K$13),0,IF(AND(F24=Validation!K$14,G24=Validation!K$13),1,IF(AND(F24=Validation!K$14, G24=Validation!K$14), 2, 0))) -> 0 | M24: =INDEX('master data'!E$14:EI$20, 6, SUM(I24:K24)) ->  | N24: =INDEX('master data'!E$14:EI$20,7,SUM(I24:K24)) -> 
C25: ='USER INTERFACE'!B42 -> 0 | D25: ='USER INTERFACE'!C42 -> 0 | E25: ='USER INTERFACE'!D42 -> stretch/opt-in | F25: ='USER INTERFACE'!E42 -> fossil | G25: ='USER INTERFACE'!F42 -> fossil | I25: =MATCH(D25, 'master data'!E$14:EI$14, 0) ->  | J25: =IF(E25=Validation!K$9, 0, IF(E25=Validation!K$10, 3, IF(E25=Validation!K$11, 6))) -> 3 | K25: =IF(AND(F25=Validation!K$13,G25=Validation!K$13),0,IF(AND(F25=Validation!K$14,G25=Validation!K$13),1,IF(AND(F25=Validation!K$14, G25=Validation!K$14), 2, 0))) -> 0 | M25: =INDEX('master data'!E$14:EI$20, 6, SUM(I25:K25)) ->  | N25: =INDEX('master data'!E$14:EI$20,7,SUM(I25:K25)) -> 
C26: ='USER INTERFACE'!B43 -> 0 | D26: ='USER INTERFACE'!C43 -> 0 | E26: ='USER INTERFACE'!D43 -> stretch/opt-in | F26: ='USER INTERFACE'!E43 -> fossil | G26: ='USER INTERFACE'!F43 -> fossil | I26: =MATCH(D26, 'master data'!E$14:EI$14, 0) ->  | J26: =IF(E26=Validation!K$9, 0, IF(E26=Validation!K$10, 3, IF(E26=Validation!K$11, 6))) -> 3 | K26: =IF(AND(F26=Validation!K$13,G26=Validation!K$13),0,IF(AND(F26=Validation!K$14,G26=Validation!K$13),1,IF(AND(F26=Validation!K$14, G26=Validation!K$14), 2, 0))) -> 0 | M26: =INDEX('master data'!E$14:EI$20, 6, SUM(I26:K26)) ->  | N26: =INDEX('master data'!E$14:EI$20,7,SUM(I26:K26)) -> 
C27: ='USER INTERFACE'!B44 -> 0 | D27: ='USER INTERFACE'!C44 -> 0 | E27: ='USER INTERFACE'!D44 -> stretch/opt-in | F27: ='USER INTERFACE'!E44 -> fossil | G27: ='USER INTERFACE'!F44 -> fossil | I27: =MATCH(D27, 'master data'!E$14:EI$14, 0) ->  | J27: =IF(E27=Validation!K$9, 0, IF(E27=Validation!K$10, 3, IF(E27=Validation!K$11, 6))) -> 3 | K27: =IF(AND(F27=Validation!K$13,G27=Validation!K$13),0,IF(AND(F27=Validation!K$14,G27=Validation!K$13),1,IF(AND(F27=Validation!K$14, G27=Validation!K$14), 2, 0))) -> 0 | M27: =INDEX('master data'!E$14:EI$20, 6, SUM(I27:K27)) ->  | N27: =INDEX('master data'!E$14:EI$20,7,SUM(I27:K27)) -> 
C28: ='USER INTERFACE'!B45 -> 0 | D28: ='USER INTERFACE'!C45 -> 0 | E28: ='USER INTERFACE'!D45 -> stretch/opt-in | F28: ='USER INTERFACE'!E45 -> fossil | G28: ='USER INTERFACE'!F45 -> fossil | I28: =MATCH(D28, 'master data'!E$14:EI$14, 0) ->  | J28: =IF(E28=Validation!K$9, 0, IF(E28=Validation!K$10, 3, IF(E28=Validation!K$11, 6))) -> 3 | K28: =IF(AND(F28=Validation!K$13,G28=Validation!K$13),0,IF(AND(F28=Validation!K$14,G28=Validation!K$13),1,IF(AND(F28=Validation!K$14, G28=Validation!K$14), 2, 0))) -> 0 | M28: =INDEX('master data'!E$14:EI$20, 6, SUM(I28:K28)) ->  | N28: =INDEX('master data'!E$14:EI$20,7,SUM(I28:K28)) -> 
C29: ='USER INTERFACE'!B46 -> 0 | D29: ='USER INTERFACE'!C46 -> 0 | E29: ='USER INTERFACE'!D46 -> stretch/opt-in | F29: ='USER INTERFACE'!E46 -> fossil | G29: ='USER INTERFACE'!F46 -> fossil | I29: =MATCH(D29, 'master data'!E$14:EI$14, 0) ->  | J29: =IF(E29=Validation!K$9, 0, IF(E29=Validation!K$10, 3, IF(E29=Validation!K$11, 6))) -> 3 | K29: =IF(AND(F29=Validation!K$13,G29=Validation!K$13),0,IF(AND(F29=Validation!K$14,G29=Validation!K$13),1,IF(AND(F29=Validation!K$14, G29=Validation!K$14), 2, 0))) -> 0 | M29: =INDEX('master data'!E$14:EI$20, 6, SUM(I29:K29)) ->  | N29: =INDEX('master data'!E$14:EI$20,7,SUM(I29:K29)) -> 
C30: ='USER INTERFACE'!B47 -> 0 | D30: ='USER INTERFACE'!C47 -> 0 | E30: ='USER INTERFACE'!D47 -> stretch/opt-in | F30: ='USER INTERFACE'!E47 -> fossil | G30: ='USER INTERFACE'!F47 -> fossil | I30: =MATCH(D30, 'master data'!E$14:EI$14, 0) ->  | J30: =IF(E30=Validation!K$9, 0, IF(E30=Validation!K$10, 3, IF(E30=Validation!K$11, 6))) -> 3 | K30: =IF(AND(F30=Validation!K$13,G30=Validation!K$13),0,IF(AND(F30=Validation!K$14,G30=Validation!K$13),1,IF(AND(F30=Validation!K$14, G30=Validation!K$14), 2, 0))) -> 0 | M30: =INDEX('master data'!E$14:EI$20, 6, SUM(I30:K30)) ->  | N30: =INDEX('master data'!E$14:EI$20,7,SUM(I30:K30)) -> 
C31: ='USER INTERFACE'!B48 -> 0 | D31: ='USER INTERFACE'!C48 -> 0 | E31: ='USER INTERFACE'!D48 -> stretch/opt-in | F31: ='USER INTERFACE'!E48 -> fossil | G31: ='USER INTERFACE'!F48 -> fossil | I31: =MATCH(D31, 'master data'!E$14:EI$14, 0) ->  | J31: =IF(E31=Validation!K$9, 0, IF(E31=Validation!K$10, 3, IF(E31=Validation!K$11, 6))) -> 3 | K31: =IF(AND(F31=Validation!K$13,G31=Validation!K$13),0,IF(AND(F31=Validation!K$14,G31=Validation!K$13),1,IF(AND(F31=Validation!K$14, G31=Validation!K$14), 2, 0))) -> 0 | M31: =INDEX('master data'!E$14:EI$20, 6, SUM(I31:K31)) ->  | N31: =INDEX('master data'!E$14:EI$20,7,SUM(I31:K31)) -> 
C32: ='USER INTERFACE'!B49 -> 0 | D32: ='USER INTERFACE'!C49 -> 0 | E32: ='USER INTERFACE'!D49 -> stretch/opt-in | F32: ='USER INTERFACE'!E49 -> fossil | G32: ='USER INTERFACE'!F49 -> fossil | I32: =MATCH(D32, 'master data'!E$14:EI$14, 0) ->  | J32: =IF(E32=Validation!K$9, 0, IF(E32=Validation!K$10, 3, IF(E32=Validation!K$11, 6))) -> 3 | K32: =IF(AND(F32=Validation!K$13,G32=Validation!K$13),0,IF(AND(F32=Validation!K$14,G32=Validation!K$13),1,IF(AND(F32=Validation!K$14, G32=Validation!K$14), 2, 0))) -> 0 | M32: =INDEX('master data'!E$14:EI$20, 6, SUM(I32:K32)) ->  | N32: =INDEX('master data'!E$14:EI$20,7,SUM(I32:K32)) -> 

Sheet master data (hidden)
D4: building | E4: secondary school | F4: =MATCH(E4, E14:AE14, 0) -> 10 | L4: electric
D5: eff level | E5: stretch | F5: =IF(E5="base", 0, IF(E5="stretch", 3, IF(E5="ph", 6))) -> 3 | L5: fossil fuel
D6: space | E6: fossil fuel | F6: =IF(AND(E6=L5,E7=L5),0,IF(AND(E6=L4,E7=L5),1,IF(AND(E6=L4, E7=L4), 2, 0))) -> 0
D7: water and cook | E7: fossil fuel | I7: =INDEX(E14:AE20,6,SUM(F4,F5,F6)) -> 7.695630482
I8: =INDEX(E14:AE20,7,SUM(F4:F6)) -> 26.52857829 | K8: heating | M8: water
K9: fossil fuel | M9: fossil fuel
K11: electric | M11: fossil fuel OR electric
E13: 0 | F13: 1 | G13: 2
E14: warehouse | N14: secondary school | W14: primary school | AF14: retail (part of larger building or strip) | AO14: retail (stand alone building) | AX14: restaurant (sit down) | BG14: restaurant (quick service) | BP14: outpatient health care | BY14: office (small) | CH14: office (large) | CQ14: hotel (small) | CZ14: hotel (large) | DI14: hospital | DR14: multifamily (low and mid rise) | EA14: multifamily (high rise)
D15: efficiency level | E15: base | F15: base | G15: base | H15: stretch | I15: stretch | J15: stretch | K15: ph | L15: ph | M15: ph | N15: base | O15: base | P15: base | Q15: stretch | R15: stretch | S15: stretch | T15: ph | U15: ph | V15: ph | W15: base | X15: base | Y15: base | Z15: stretch | AA15: stretch | AB15: stretch | AC15: ph | AD15: ph | AE15: ph | AF15: base | AG15: base | AH15: base | AI15: stretch | AJ15: stretch | AK15: stretch | AL15: ph | AM15: ph | AN15: ph | AO15: base | AP15: base | AQ15: base | AR15: stretch | AS15: stretch | AT15: stretch | AU15: ph | AV15: ph | AW15: ph | AX15: base | AY15: base | AZ15: base | BA15: stretch | BB15: stretch | BC15: stretch | BD15: ph | BE15: ph | BF15: ph | BG15: base | BH15: base | BI15: base | BJ15: stretch | BK15: stretch | BL15: stretch | BM15: ph | BN15: ph | BO15: ph | BP15: base | BQ15: base | BR15: base | BS15: stretch | BT15: stretch | BU15: stretch | BV15: ph | BW15: ph | BX15: ph | BY15: base | BZ15: base | CA15: base | CB15: stretch | CC15: stretch | CD15: stretch | CE15: ph | CF15: ph | CG15: ph | CH15: base | CI15: base | CJ15: base | CK15: stretch | CL15: stretch | CM15: stretch | CN15: ph | CO15: ph | CP15: ph | CQ15: base | CR15: base | CS15: base | CT15: stretch | CU15: stretch | CV15: stretch | CW15: ph | CX15: ph | CY15: ph | CZ15: base | DA15: base | DB15: base | DC15: stretch | DD15: stretch | DE15: stretch | DF15: ph | DG15: ph | DH15: ph | DI15: base | DJ15: base | DK15: base | DL15: stretch | DM15: stretch | DN15: stretch | DO15: ph | DP15: ph | DQ15: ph | DR15: base | DS15: base | DT15: base | DU15: stretch | DV15: stretch | DW15: stretch | DX15: ph | DY15: ph | DZ15: ph | EA15: base | EB15: base | EC15: base | ED15: stretch | EE15: stretch | EF15: stretch | EG15: ph | EH15: ph | EI15: ph
D16: space heating | E16: gas | F16: elec | G16: ` | H16: gas | I16: elec | J16: elec | K16: gas | L16: elec | M16: elec | N16: gas | O16: elec | P16: elec | Q16: gas | R16: elec | S16: elec | T16: gas | U16: elec | V16: elec | W16: gas | X16: elec | Y16: elec | Z16: gas | AA16: elec | AB16: elec | AC16: gas | AD16: elec | AE16: elec | AF16: gas | AG16: elec | AH16: elec | AI16: gas | AJ16: elec | AK16: elec | AL16: gas | AM16: elec | AN16: elec | AO16: gas | AP16: elec | AQ16: elec | AR16: gas | AS16: elec | AT16: elec | AU16: gas | AV16: elec | AW16: elec | AX16: gas | AY16: elec | AZ16: elec | BA16: gas | BB16: elec | BC16: elec | BD16: gas | BE16: elec | BF16: elec | BG16: gas | BH16: elec | BI16: elec | BJ16: gas | BK16: elec | BL16: elec | BM16: gas | BN16: elec | BO16: elec | BP16: gas | BQ16: elec | BR16: elec | BS16: gas | BT16: elec | BU16: elec | BV16: gas | BW16: elec | BX16: elec | BY16: gas | BZ16: elec | CA16: elec | CB16: gas | CC16: elec | CD16: elec | CE16: gas | CF16: elec | CG16: elec | CH16: gas | CI16: elec | CJ16: elec | CK16: gas | CL16: elec | CM16: elec | CN16: gas | CO16: elec | CP16: elec | CQ16: gas | CR16: elec | CS16: elec | CT16: gas | CU16: elec | CV16: elec | CW16: gas | CX16: elec | CY16: elec | CZ16: gas | DA16: elec | DB16: elec | DC16: gas | DD16: elec | DE16: elec | DF16: gas | DG16: elec | DH16: elec | DI16: gas | DJ16: elec | DK16: elec | DL16: gas | DM16: elec | DN16: elec | DO16: gas | DP16: elec | DQ16: elec | DR16: gas | DS16: elec | DT16: elec | DU16: gas | DV16: elec | DW16: elec | DX16: gas | DY16: elec | DZ16: elec | EA16: gas | EB16: elec | EC16: elec | ED16: gas | EE16: elec | EF16: elec | EG16: gas | EH16: elec | EI16: elec
D17: water heating and cooking | E17: gas | F17: gas | G17: elec | H17: gas | I17: gas | J17: elec | K17: gas | L17: gas | M17: elec | N17: gas | O17: gas | P17: elec | Q17: gas | R17: gas | S17: elec | T17: gas | U17: gas | V17: elec | W17: gas | X17: gas | Y17: elec | Z17: gas | AA17: gas | AB17: elec | AC17: gas | AD17: gas | AE17: elec | AF17: gas | AG17: gas | AH17: elec | AI17: gas | AJ17: gas | AK17: elec | AL17: gas | AM17: gas | AN17: elec | AO17: gas | AP17: gas | AQ17: elec | AR17: gas | AS17: gas | AT17: elec | AU17: gas | AV17: gas | AW17: elec | AX17: gas | AY17: gas | AZ17: elec | BA17: gas | BB17: gas | BC17: elec | BD17: gas | BE17: gas | BF17: elec | BG17: gas | BH17: gas | BI17: elec | BJ17: gas | BK17: gas | BL17: elec | BM17: gas | BN17: gas | BO17: elec | BP17: gas | BQ17: gas | BR17: elec | BS17: gas | BT17: gas | BU17: elec | BV17: gas | BW17: gas | BX17: elec | BY17: gas | BZ17: gas | CA17: elec | CB17: gas | CC17: gas | CD17: elec | CE17: gas | CF17: gas | CG17: elec | CH17: gas | CI17: gas | CJ17: elec | CK17: gas | CL17: gas | CM17: elec | CN17: gas | CO17: gas | CP17: elec | CQ17: gas | CR17: gas | CS17: elec | CT17: gas | CU17: gas | CV17: elec | CW17: gas | CX17: gas | CY17: elec | CZ17: gas | DA17: gas | DB17: elec | DC17: gas | DD17: gas | DE17: elec | DF17: gas | DG17: gas | DH17: elec | DI17: gas | DJ17: gas | DK17: elec | DL17: gas | DM17: gas | DN17: elec | DO17: gas | DP17: gas | DQ17: elec | DR17: gas | DS17: gas | DT17: elec | DU17: gas | DV17: gas | DW17: elec | DX17: gas | DY17: gas | DZ17: elec | EA17: gas | EB17: gas | EC17: elec | ED17: gas | EE17: gas | EF17: elec | EG17: gas | EH17: gas | EI17: elec
D19: gas EUI | E19: ='IECC 2021 warehouse'!U33 -> 13.22273714 | F19: ='IECC 2021 warehouse'!W33 -> 0.5002103032 | G19: ='IECC 2021 warehouse'!Y33 -> 0 | H19: ='IECC 2021 warehouse'!AA33 -> 4.316968356 | I19: ='IECC 2021 warehouse'!AC33 -> 0.5002103032 | J19: ='IECC 2021 warehouse'!AE33 -> 0 | K19: 5 | L19: 5 | M19: 5 | N19: ='IECC 2021 secondary school'!U33 -> 12.38784205 | O19: ='IECC 2021 secondary school'!W33 -> 5.684682668 | P19: ='IECC 2021 secondary school'!Y33 -> 0 | Q19: ='IECC 2021 secondary school'!AA33 -> 7.695630482 | R19: ='IECC 2021 secondary school'!AC33 -> 5.684682668 | S19: ='IECC 2021 secondary school'!AE33 -> 0 | T19: ='IECC 2021 secondary school'!AG33 -> 6.354998606 | U19: ='IECC 2021 secondary school'!AI33 -> 5.684682668 | V19: ='IECC 2021 secondary school'!AK33 -> 0 | W19: ='IECC 2021 primary school'!U33 -> 17.8059559 | X19: ='IECC 2021 primary school'!W33 -> 6.820808167 | Y19: ='IECC 2021 primary school'!Y33 -> 0 | Z19: ='IECC 2021 primary school'!AA33 -> 10.11635249 | AA19: ='IECC 2021 primary school'!AC33 -> 6.820808167 | AB19: ='IECC 2021 primary school'!AE33 -> 0 | AC19: ='IECC 2021 primary school'!AG33 -> 7.91932294 | AD19: ='IECC 2021 primary school'!AI33 -> 6.820808167 | AE19: ='IECC 2021 primary school'!AK33 -> 0 | AF19: ='IECC 2021 retrail strip'!U33 -> 24.22022544 | AG19: ='IECC 2021 retrail strip'!W33 -> 2.72622887 | AH19: ='IECC 2021 retrail strip'!Y33 -> 0 | AI19: ='IECC 2021 retrail strip'!AA33 -> 9.174427841 | AJ19: ='IECC 2021 retrail strip'!AC33 -> 2.72622887 | AK19: ='IECC 2021 retrail strip'!AE33 -> 0 | AL19: ='IECC 2021 retrail strip'!AG33 -> 4.875628527 | AM19: ='IECC 2021 retrail strip'!AI33 -> 2.72622887 | AN19: ='IECC 2021 retrail strip'!AK33 -> 0 | AO19: ='IECC 2021 stand alone retail'!U33 -> 23.72916166 | AP19: ='IECC 2021 stand alone retail'!W33 -> 3.701452735 | AQ19: ='IECC 2021 stand alone retail'!Y33 -> 0 | AR19: ='IECC 2021 stand alone retail'!AA33 -> 9.709765413 | AS19: ='IECC 2021 stand alone retail'!AC33 -> 3.701452735 | AT19: ='IECC 2021 stand alone retail'!AE33 -> 0 | AU19: ='IECC 2021 stand alone retail'!AG33 -> 5.704223628 | AV19: ='IECC 2021 stand alone retail'!AI33 -> 3.701452735 | AW19: ='IECC 2021 stand alone retail'!AK33 -> 0 | AX19: ='IECC 2021 sit down restaurant'!U33 -> 261.2143618 | AY19: ='IECC 2021 sit down restaurant'!W33 -> 159.6979258 | AZ19: ='IECC 2021 sit down restaurant'!Y33 -> 0 | BA19: ='IECC 2021 sit down restaurant'!AA33 -> 190.1528566 | BB19: ='IECC 2021 sit down restaurant'!AC33 -> 159.6979258 | BC19: ='IECC 2021 sit down restaurant'!AE33 -> 0 | BD19: ='IECC 2021 sit down restaurant'!AG33 -> 169.8495694 | BE19: ='IECC 2021 sit down restaurant'!AI33 -> 159.6979258 | BF19: ='IECC 2021 sit down restaurant'!AK33 -> 0 | BG19: ='IECC 2021 fast food restaurant'!U33 -> 421.818394 | BH19: ='IECC 2021 fast food restaurant'!W33 -> 264.7441947 | BI19: ='IECC 2021 fast food restaurant'!Y33 -> 0 | BJ19: ='IECC 2021 fast food restaurant'!AA33 -> 311.8664545 | BK19: ='IECC 2021 fast food restaurant'!AC33 -> 264.7441947 | BL19: ='IECC 2021 fast food restaurant'!AE33 -> 0 | BM19: ='IECC 2021 fast food restaurant'!AG33 -> 280.4516146 | BN19: ='IECC 2021 fast food restaurant'!AI33 -> 264.7441947 | BO19: ='IECC 2021 fast food restaurant'!AK33 -> 0 | BP19: ='IECC 2021 outpat health care'!U33 -> 34.25036118 | BQ19: ='IECC 2021 outpat health care'!W33 -> 11.49352326 | BR19: ='IECC 2021 outpat health care'!Y33 -> 4.362615061 | BS19: ='IECC 2021 outpat health care'!AA33 -> 18.32057463 | BT19: ='IECC 2021 outpat health care'!AC33 -> 11.49352326 | BU19: ='IECC 2021 outpat health care'!AE33 -> 4.362615061 | BV19: ='IECC 2021 outpat health care'!AG33 -> 13.76920705 | BW19: ='IECC 2021 outpat health care'!AI33 -> 11.49352326 | BX19: ='IECC 2021 outpat health care'!AK33 -> 4.362615061 | BY19: ='IECC 2021 small office'!U33 -> 7.959916646 | BZ19: ='IECC 2021 small office'!W33 -> 4.459418367 | CA19: ='IECC 2021 small office'!Y33 -> 0 | CB19: ='IECC 2021 small office'!AA33 -> 5.509567851 | CC19: ='IECC 2021 small office'!AC33 -> 4.459418367 | CD19: ='IECC 2021 small office'!AE33 -> 0 | CE19: ='IECC 2021 small office'!AG33 -> 4.809468195 | CF19: ='IECC 2021 small office'!AI33 -> 4.459418367 | CG19: ='IECC 2021 small office'!AK33 -> 0 | CH19: ='IECC 2021 large office'!U33 -> 4.294240016 | CI19: ='IECC 2021 large office'!W33 -> 1.423761061 | CJ19: ='IECC 2021 large office'!Y33 -> 0 | CK19: ='IECC 2021 large office'!AA33 -> 2.284904747 | CL19: ='IECC 2021 large office'!AC33 -> 1.423761061 | CM19: ='IECC 2021 large office'!AE33 -> 0 | CN19: ='IECC 2021 large office'!AG33 -> 1.710808956 | CO19: ='IECC 2021 large office'!AI33 -> 1.423761061 | CP19: ='IECC 2021 large office'!AK33 -> 0 | CQ19: ='IECC 2021 small hotel'!U33 -> 35.8666688 | CR19: ='IECC 2021 small hotel'!W33 -> 34.42446228 | CS19: ='IECC 2021 small hotel'!Y33 -> 9.968442585 | CT19: ='IECC 2021 small hotel'!AA33 -> 34.85712423 | CU19: ='IECC 2021 small hotel'!AC33 -> 34.42446228 | CV19: ='IECC 2021 small hotel'!AE33 -> 9.968442585 | CW19: ='IECC 2021 small hotel'!AG33 -> 34.56868293 | CX19: ='IECC 2021 small hotel'!AI33 -> 34.42446228 | CY19: ='IECC 2021 small hotel'!AK33 -> 9.968442585 | CZ19: 50.49309238 | DA19: 39.96731164 | DB19: 13.89097413 | DC19: 43.12504586 | DD19: 39.96731164 | DE19: 13.89097413 | DF19: 41.01988972 | DG19: 39.96731164 | DH19: 13.89097413 | DI19: ='IECC 2021 hospital'!U33 -> 48.63423818 | DJ19: ='IECC 2021 hospital'!W33 -> 18.19499771 | DK19: ='IECC 2021 hospital'!Y33 -> 0 | DL19: ='IECC 2021 hospital'!AA33 -> 27.32676985 | DM19: ='IECC 2021 hospital'!AC33 -> 18.19499771 | DN19: ='IECC 2021 hospital'!AE33 -> 0 | DO19: ='IECC 2021 hospital'!AG33 -> 21.23892176 | DP19: ='IECC 2021 hospital'!AI33 -> 18.19499771 | DQ19: ='IECC 2021 hospital'!AK33 -> 0 | DR19: ='IECC 2021 apartment midrise'!U33 -> 23.6091475 | DS19: ='IECC 2021 apartment midrise'!W33 -> 15.74964463 | DT19: ='IECC 2021 apartment midrise'!Y33 -> 0 | DU19: ='IECC 2021 apartment midrise'!AA33 -> 18.10749549 | DV19: ='IECC 2021 apartment midrise'!AC33 -> 15.74964463 | DW19: ='IECC 2021 apartment midrise'!AE33 -> 0 | DX19: ='IECC 2021 apartment midrise'!AG33 -> 16.53559492 | DY19: ='IECC 2021 apartment midrise'!AI33 -> 15.74964463 | DZ19: ='IECC 2021 apartment midrise'!AK33 -> 0 | EA19: ='IECC 2021 high rise MF'!U33 -> 22.91476518 | EB19: ='IECC 2021 high rise MF'!W33 -> 15.1368704 | EC19: ='IECC 2021 high rise MF'!Y33 -> 0 | ED19: ='IECC 2021 high rise MF'!AA33 -> 17.47023884 | EE19: ='IECC 2021 high rise MF'!AC33 -> 15.1368704 | EF19: ='IECC 2021 high rise MF'!AE33 -> 0 | EG19: ='IECC 2021 high rise MF'!AG33 -> 15.91465988 | EH19: ='IECC 2021 high rise MF'!AI33 -> 15.1368704 | EI19: ='IECC 2021 high rise MF'!AK33 -> 0
D20: elec EUI | E20: ='IECC 2021 warehouse'!U34 -> 6.030919396 | F20: ='IECC 2021 warehouse'!W34 -> 9.807919552 | G20: ='IECC 2021 warehouse'!Y34 -> 9.997999468 | H20: ='IECC 2021 warehouse'!AA34 -> 6.030919396 | I20: ='IECC 2021 warehouse'!AC34 -> 7.164019443 | J20: ='IECC 2021 warehouse'!AE34 -> 7.354099358 | K20: 5 | L20: 5 | M20: 5 | N20: ='IECC 2021 secondary school'!U34 -> 26.52857829 | O20: ='IECC 2021 secondary school'!W34 -> 28.51857873 | P20: ='IECC 2021 secondary school'!Y34 -> 29.6402678 | Q20: ='IECC 2021 secondary school'!AA34 -> 26.52857829 | R20: ='IECC 2021 secondary school'!AC34 -> 27.12557842 | S20: ='IECC 2021 secondary school'!AE34 -> 28.24726749 | T20: ='IECC 2021 secondary school'!AG34 -> 26.52857829 | U20: ='IECC 2021 secondary school'!AI34 -> 26.72757833 | V20: ='IECC 2021 secondary school'!AK34 -> 27.8492674 | W20: ='IECC 2021 primary school'!U34 -> 27.927668 | X20: ='IECC 2021 primary school'!W34 -> 31.18888373 | Y20: ='IECC 2021 primary school'!Y34 -> 32.43138223 | Z20: ='IECC 2021 primary school'!AA34 -> 27.927668 | AA20: ='IECC 2021 primary school'!AC34 -> 28.90603272 | AB20: ='IECC 2021 primary school'!AE34 -> 30.14853122 | AC20: ='IECC 2021 primary school'!AG34 -> 27.927668 | AD20: ='IECC 2021 primary school'!AI34 -> 28.25378957 | AE20: ='IECC 2021 primary school'!AK34 -> 29.49628807 | AF20: ='IECC 2021 retrail strip'!U34 -> 28.88864283 | AG20: ='IECC 2021 retrail strip'!W34 -> 35.26967306 | AH20: ='IECC 2021 retrail strip'!Y34 -> 36.30564003 | AI20: ='IECC 2021 retrail strip'!AA34 -> 28.88864283 | AJ20: ='IECC 2021 retrail strip'!AC34 -> 30.8029519 | AK20: ='IECC 2021 retrail strip'!AE34 -> 31.83891887 | AL20: ='IECC 2021 retrail strip'!AG34 -> 28.88864283 | AM20: ='IECC 2021 retrail strip'!AI34 -> 29.52674585 | AN20: ='IECC 2021 retrail strip'!AK34 -> 30.56271282 | AO20: ='IECC 2021 stand alone retail'!U34 -> 25.18431879 | AP20: ='IECC 2021 stand alone retail'!W34 -> 31.13004488 | AQ20: ='IECC 2021 stand alone retail'!Y34 -> 32.53659692 | AR20: ='IECC 2021 stand alone retail'!AA34 -> 25.18431879 | AS20: ='IECC 2021 stand alone retail'!AC34 -> 26.96803662 | AT20: ='IECC 2021 stand alone retail'!AE34 -> 28.37458866 | AU20: ='IECC 2021 stand alone retail'!AG34 -> 25.18431879 | AV20: ='IECC 2021 stand alone retail'!AI34 -> 25.7788914 | AW20: ='IECC 2021 stand alone retail'!AK34 -> 27.18544344 | AX20: ='IECC 2021 sit down restaurant'!U34 -> 123.7228872 | AY20: ='IECC 2021 sit down restaurant'!W34 -> 153.8605791 | AZ20: ='IECC 2021 sit down restaurant'!Y34 -> 208.6563243 | BA20: ='IECC 2021 sit down restaurant'!AA34 -> 123.7228872 | BB20: ='IECC 2021 sit down restaurant'!AC34 -> 132.7641948 | BC20: ='IECC 2021 sit down restaurant'!AE34 -> 187.55994 | BD20: ='IECC 2021 sit down restaurant'!AG34 -> 123.7228872 | BE20: ='IECC 2021 sit down restaurant'!AI34 -> 126.7366564 | BF20: ='IECC 2021 sit down restaurant'!AK34 -> 181.5324016 | BG20: ='IECC 2021 fast food restaurant'!U34 -> 154.7839131 | BH20: ='IECC 2021 fast food restaurant'!W34 -> 201.415316 | BI20: ='IECC 2021 fast food restaurant'!Y34 -> 296.0778507 | BJ20: ='IECC 2021 fast food restaurant'!AA34 -> 154.7839131 | BK20: ='IECC 2021 fast food restaurant'!AC34 -> 168.773334 | BL20: ='IECC 2021 fast food restaurant'!AE34 -> 263.4358687 | BM20: ='IECC 2021 fast food restaurant'!AG34 -> 154.7839131 | BN20: ='IECC 2021 fast food restaurant'!AI34 -> 159.4470534 | BO20: ='IECC 2021 fast food restaurant'!AK34 -> 254.1095881 | BP20: ='IECC 2021 outpat health care'!U34 -> 63.06302851 | BQ20: ='IECC 2021 outpat health care'!W34 -> 69.81896477 | BR20: ='IECC 2021 outpat health care'!Y34 -> 72.52870988 | BS20: ='IECC 2021 outpat health care'!AA34 -> 63.06302851 | BT20: ='IECC 2021 outpat health care'!AC34 -> 65.08980939 | BU20: ='IECC 2021 outpat health care'!AE34 -> 67.7995545 | BV20: ='IECC 2021 outpat health care'!AG34 -> 63.06302851 | BW20: ='IECC 2021 outpat health care'!AI34 -> 63.73862213 | BX20: ='IECC 2021 outpat health care'!AK34 -> 66.44836725 | BY20: ='IECC 2021 small office'!U34 -> 23.41593777 | BZ20: ='IECC 2021 small office'!W34 -> 21.58050833 | CA20: ='IECC 2021 small office'!Y34 -> 23.27508731 | CB20: ='IECC 2021 small office'!AA34 -> 20.48903173 | CC20: ='IECC 2021 small office'!AC34 -> 19.9384029 | CD20: ='IECC 2021 small office'!AE34 -> 21.63298187 | CE20: ='IECC 2021 small office'!AG34 -> 19.65277286 | CF20: ='IECC 2021 small office'!AI34 -> 19.46922991 | CG20: ='IECC 2021 small office'!AK34 -> 21.16380889 | CH20: ='IECC 2021 large office'!U34 -> 43.21118719 | CI20: ='IECC 2021 large office'!W34 -> 44.06336063 | CJ20: ='IECC 2021 large office'!Y34 -> 44.60438984 | CK20: ='IECC 2021 large office'!AA34 -> 43.21118719 | CL20: ='IECC 2021 large office'!AC34 -> 43.46683923 | CM20: ='IECC 2021 large office'!AE34 -> 44.00786843 | CN20: ='IECC 2021 large office'!AG34 -> 43.21118719 | CO20: ='IECC 2021 large office'!AI34 -> 43.29640454 | CP20: ='IECC 2021 large office'!AK34 -> 43.83743374 | CQ20: ='IECC 2021 small hotel'!U34 -> 32.74575091 | CR20: ='IECC 2021 small hotel'!W34 -> 30.35414743 | CS20: ='IECC 2021 small hotel'!Y34 -> 39.64743491 | CT20: ='IECC 2021 small hotel'!AA34 -> 29.87472403 | CU20: ='IECC 2021 small hotel'!AC34 -> 29.15724298 | CV20: ='IECC 2021 small hotel'!AE34 -> 38.45053047 | CW20: ='IECC 2021 small hotel'!AG34 -> 29.05443063 | CX20: ='IECC 2021 small hotel'!AI34 -> 28.81527029 | CY20: ='IECC 2021 small hotel'!AK34 -> 38.10855777 | CZ20: 36.20984122 | DA20: 39.33468238 | DB20: 49.24369063 | DC20: 36.20984122 | DD20: 37.14729357 | DE20: 47.05630182 | DF20: 36.20984122 | DG20: 36.52232534 | DH20: 46.43133359 | DI20: ='IECC 2021 hospital'!U34 -> 71.52490751 | DJ20: ='IECC 2021 hospital'!W34 -> 80.56155703 | DK20: ='IECC 2021 hospital'!Y34 -> 84.9883397 | DL20: ='IECC 2021 hospital'!AA34 -> 71.52490751 | DM20: ='IECC 2021 hospital'!AC34 -> 74.23590237 | DN20: ='IECC 2021 hospital'!AE34 -> 78.66268504 | DO20: ='IECC 2021 hospital'!AG34 -> 71.52490751 | DP20: ='IECC 2021 hospital'!AI34 -> 72.42857247 | DQ20: ='IECC 2021 hospital'!AK34 -> 76.85535513 | DR20: ='IECC 2021 apartment midrise'!U34 -> 22.13563951 | DS20: ='IECC 2021 apartment midrise'!W34 -> 24.46892942 | DT20: ='IECC 2021 apartment midrise'!Y34 -> 30.45379438 | DU20: ='IECC 2021 apartment midrise'!AA34 -> 22.13563951 | DV20: ='IECC 2021 apartment midrise'!AC34 -> 22.83562648 | DW20: ='IECC 2021 apartment midrise'!AE34 -> 28.82049144 | DX20: ='IECC 2021 apartment midrise'!AG34 -> 22.13563951 | DY20: ='IECC 2021 apartment midrise'!AI34 -> 22.3689685 | DZ20: ='IECC 2021 apartment midrise'!AK34 -> 28.35383346 | EA20: ='IECC 2021 high rise MF'!U34 -> 26.28034441 | EB20: ='IECC 2021 high rise MF'!W34 -> 26.81023283 | EC20: ='IECC 2021 high rise MF'!Y34 -> 32.56224358 | ED20: ='IECC 2021 high rise MF'!AA34 -> 24.4688217 | EE20: ='IECC 2021 high rise MF'!AC34 -> 24.62778823 | EF20: ='IECC 2021 high rise MF'!AE34 -> 30.37979898 | EG20: ='IECC 2021 high rise MF'!AG34 -> 23.95124378 | EH20: ='IECC 2021 high rise MF'!AI34 -> 24.00423263 | EI20: ='IECC 2021 high rise MF'!AK34 -> 29.75624338
E24: 5
E25: =MATCH(E24, E29:L29, 0) -> 1
E29: 5 | F29: 6 | G29: 7 | H29: 3 | I29: 8 | J29: 2 | K29: 1 | L29: 9

Sheet Validation (hidden)
O4: to set water heatingchoices
O6: electric | P6: fossil fuel
O7: 1 | P7: A
O8: 2
E9: warehouse | K9: base
E10: secondary school | K10: stretch/opt-in
E11: primary school | K11: passive house
E12: retail (part of larger building or strip)
E13: retail (stand alone building) | K13: fossil | N13: heating | O13: electric | P13: fossil fuel
E14: restaurant (sit down) | K14: electric | N14: electric | O14: electric | P14: fossil fuel
E15: restaurant (quick service) | N15: fossil fuel | O15: fossil fuel
E16: outpatient health care | K16: yes
E17: office (small) | K17: no
E18: office (large)
E19: hotel (small)
E20: hotel (large)
E21: hospital
E22: multifamily (low and mid rise) | N22: electric | O22: fossil
E23: multifamily (high rise) | M23: electric | N23: fossil | O23: fossil
M24: fossil | N24: electric

Sheet SWA data (hidden)
E2: Stretch Code | I2: Passive House
D3: scneario name | E3: gas | G3: electric | I3: gas | K3: electric
E5: gas EUI | F5: elec EUI | G5: gas EUI | H5: elec EUI | I5: gas EUI | J5: elec EUI | K5: gas EUI | L5: elec EUI
D6: MF midrise - slab on grade | E6: 15.2 | F6: 21.3 | G6: 0 | H6: 30.4 | I6: 10.9 | J6: 21.2 | K6: 0 | L6: 29
D7: MF highrise | E7: 13.3 | F7: 26.5 | G7: 0 | H7: 34.6 | I7: 8.9 | J7: 31.2 | K7: 0 | L7: 34.9
D8: MF midrise - podium | E8: 10.9 | F8: 26.7 | G8: 0 | H8: 31.2 | I8: 6.1 | J8: 27.7 | K8: 0 | L8: 30.9
D9: small office | E9: 4.8 | F9: 29.1 | G9: 0 | H9: 29.6 | I9: 0.6 | J9: 31.1 | K9: 0 | L9: 29.7
D10: large office | E10: 0.5 | F10: 43.1 | G10: 0 | H10: 43.3 | I10: 0.25 | J10: 43.1 | K10: 0 | L10: 43.1
D11: office-lab | E11: 32 | F11: 105 | G11: 0 | H11: 124 | I11: 32 | J11: 105 | K11: 0 | L11: 124
D12: primary school | E12: 5 | F12: 43 | G12: 0 | H12: 45.5 | I12: 4 | J12: 43 | K12: 0 | L12: 45.4
D13: secondary school | E13: 2.25 | F13: 26 | G13: 0 | H13: 28 | I13: 2.25 | J13: 26 | K13: 0 | L13: 27.75
E16: secondary school
E17: opt gas | G17: opt elec | I17: PH gas | K17: PH elec
D19: gas | E19: =SUM(E23,E29) -> 2.25 | G19: 0 | I19: =SUM(I23,I29) -> 2.25 | K19: 0
D20: elec | E20: =SUM(E22,E24:E27) -> 26 | G20: =SUM(G22:G29) -> 28 | I20: =SUM(I22,I24:I27) -> 26 | K20: =SUM(K22:K29) -> 27.75
D22: cooling | E22: 2 | G22: 2 | I22: 2 | K22: 2
D23: heating | E23: 0.75 | G23: 0.5 | I23: 0.75 | K23: 0.25
D24: interior lighting | E24: 5 | G24: 5 | I24: 5 | K24: 5
D25: exterior lighing | E25: 0.5 | G25: 0.5 | I25: 0.5 | K25: 0.5
D26: interior equipment | E26: 11 | G26: 11 | I26: 11 | K26: 11
D27: fans/pumps | E27: 7.5 | G27: 7.5 | I27: 7.5 | K27: 7.5
D29: DHW | E29: 1.5 | G29: 1.5 | I29: 1.5 | K29: 1.5
E33: office-lab
E34: opt gas | G34: opt elec | I34: PH gas | K34: PH elec
D36: gas | E36: =E40 -> 32 | G36: 0 | I36: =I40 -> 32 | K36: 0
D37: elec | E37: =SUM(E39,E41:E46) -> 105 | G37: =SUM(G39:G46) -> 124 | I37: =SUM(I39,I41:I46) -> 105 | K37: =SUM(K39:K46) -> 124
D39: cooling | E39: 20 | G39: 20 | I39: 20 | K39: 20
D40: heating | E40: 32 | G40: 19 | I40: 32 | K40: 19
D41: interior lighting | E41: 5 | G41: 5 | I41: 5 | K41: 5
D42: exterior lighing | E42: 1 | G42: 1 | I42: 1 | K42: 1
D43: interior equipment | E43: 18 | G43: 18 | I43: 18 | K43: 18
D44: misc | E44: 10 | G44: 10 | I44: 10 | K44: 10
D45: fans/pumps | E45: 50 | G45: 50 | I45: 50 | K45: 50
D46: DHW | E46: 1 | G46: 1 | I46: 1 | K46: 1
D47: exterior lighing | E47: 1 | G47: 1 | I47: 1 | K47: 1
D48: interior equipment | E48: 22 | G48: 22 | I48: 22 | K48: 22
D49: fans/pumps | E49: 5 | G49: 5 | I49: 5 | K49: 5
D51: DHW | E51: 2 | G51: 2 | I51: 2 | K51: 2
E55: office-lab
E56: opt gas | G56: opt elec | I56: PH gas | K56: PH elec
D58: gas | E58: =E62 -> 32 | G58: 0 | I58: =I62 -> 32 | K58: 0
D59: elec | E59: =SUM(E61,E63:E68) -> 105 | G59: =SUM(G61:G68) -> 124 | I59: =SUM(I61,I63:I68) -> 105 | K59: =SUM(K61:K68) -> 124
D61: cooling | E61: 20 | G61: 20 | I61: 20 | K61: 20
D62: heating | E62: 32 | G62: 19 | I62: 32 | K62: 19
D63: interior lighting | E63: 5 | G63: 5 | I63: 5 | K63: 5
D64: exterior lighing | E64: 1 | G64: 1 | I64: 1 | K64: 1
D65: interior equipment | E65: 18 | G65: 18 | I65: 18 | K65: 18
D66: misc | E66: 10 | G66: 10 | I66: 10 | K66: 10
D67: fans/pumps | E67: 50 | G67: 50 | I67: 50 | K67: 50
D68: DHW | E68: 1 | G68: 1 | I68: 1 | K68: 1
E71: large office
E72: opt gas | G72: opt elec | I72: PH gas | K72: PH elec
D74: gas | E74: =E78 -> 0.5 | G74: 0 | I74: =I78 -> 0.25 | K74: 0
D75: elec | E75: =SUM(E77,E79:E84) -> 43.1 | G75: =SUM(G77:G84) -> 43.35 | I75: =SUM(I77,I79:I84) -> 43.1 | K75: =SUM(K77:K84) -> 43.2
D77: cooling | E77: 4 | G77: 4 | I77: 4 | K77: 4
D78: heating | E78: 0.5 | G78: 0.25 | I78: 0.25 | K78: 0.1
D79: interior lighting | E79: 5 | G79: 5 | I79: 5 | K79: 5
D80: exterior lighing | E80: 0.75 | G80: 0.75 | I80: 0.75 | K80: 0.75
D81: interior equipment | E81: 26 | G81: 26 | I81: 26 | K81: 26
D82: fans/pumps/hr/h | E82: 5.5 | G82: 5.5 | I82: 5.5 | K82: 5.5
D83: pumps/hr | E83: 1.75 | G83: 1.75 | I83: 1.75 | K83: 1.75
D84: DHW | E84: 0.1 | G84: 0.1 | I84: 0.1 | K84: 0.1
E87: small office
E88: opt gas | G88: opt elec | I88: PH gas | K88: PH elec
D90: gas | E90: =E94 -> 4.8 | G90: 0 | I90: =I94 -> 0.6 | K90: 0
D91: elec | E91: =SUM(E93,E95:E100) -> 29.1 | G91: =SUM(G93:G100) -> 29.6 | I91: =SUM(I93,I95:I100) -> 31.1 | K91: =SUM(K93:K100) -> 29.7
D93: cooling | E93: 5 | G93: 5 | I93: 6 | K93: 6
D94: heating | E94: 4.8 | G94: 1.5 | I94: 0.6 | K94: 0.6
D95: interior lighting | E95: 6 | G95: 6 | I95: 6 | K95: 6
D96: exterior lighing | E96: 0.1 | G96: 0.1 | I96: 0.1 | K96: 0.1
D97: interior equipment | E97: 12.5 | G97: 12.5 | I97: 12.5 | K97: 12.5
D98: fans/pumps/hr/h | E98: 5 | G98: 4 | I98: 6 | K98: 4
D99: pumps/hr | E99: 0 | G99: 0 | I99: 0 | K99: 0
D100: DHW | E100: 0.5 | G100: 0.5 | I100: 0.5 | K100: 0.5
E103: MF midrise - podium
E104: opt gas | G104: opt elec | I104: PH gas | K104: PH elec
D106: gas | E106: =SUM(E110,E116) -> 10.9 | G106: 0 | I106: =I116 -> 6.1 | K106: 0
D107: elec | E107: =SUM(E109,E111,E112,E113,E114,E115) -> 26.7 | G107: =SUM(G109:G116) -> 31.2 | I107: =SUM(I109:I115) -> 27.7 | K107: =SUM(K109:K116) -> 30.9
D109: cooling | E109: 2.4 | G109: 2.4 | I109: 2.8 | K109: 3
D110: heating | E110: 4.8 | G110: 1.5 | I110: 0.6 | K110: 0.6
D111: interior lighting | E111: 5.8 | G111: 5.8 | I111: 5.8 | K111: 5.8
D112: exterior lighing | E112: 0.2 | G112: 0.2 | I112: 0.2 | K112: 0.2
D113: interior equipment | E113: 10.7 | G113: 10.7 | I113: 10.7 | K113: 10.7
D114: fans | E114: 7.4 | G114: 7.4 | I114: 7.4 | K114: 7.4
D115: pumps/hr | E115: 0.2 | G115: 0.2 | I115: 0.2 | K115: 0.2
D116: DHW | E116: 6.1 | G116: 3 | I116: 6.1 | K116: 3
E119: MF highrise
E120: opt gas | G120: opt elec | I120: PH gas | K120: PH elec
D122: gas | E122: =SUM(E126,E132) -> 13.3 | G122: 0 | I122: =I132 -> 8.9 | K122: 0
D123: elec | E123: =SUM(E125,E127,E128,E129,E130,E131) -> 26.5 | G123: =SUM(G125:G132) -> 34.6 | I123: =SUM(I125:I131) -> 31.2 | K123: =SUM(K125:K132) -> 34.9
D125: cooling | E125: 5.4 | G125: 5.4 | I125: 6.9 | K125: 6.9
D126: heating | E126: 4.4 | G126: 4.3 | I126: 3.1 | K126: 3.1
D127: interior lighting | E127: 2.9 | G127: 2.9 | I127: 2.9 | K127: 2.9
D128: exterior lighing | E128: 0.2 | G128: 0.2 | I128: 0.2 | K128: 0.2
D129: interior equipment | E129: 12 | G129: 12 | I129: 12 | K129: 12
D130: fans | E130: 5.8 | G130: 5.8 | I130: 5.9 | K130: 5.9
D131: pumps/hr | E131: 0.2 | G131: 0.2 | I131: 0.2 | K131: 0.2
D132: DHW | E132: 8.9 | G132: 3.8 | I132: 8.9 | K132: 3.7
E135: MF midrise - slab on grade
E136: opt gas | G136: opt elec | I136: PH gas | K136: PH elec
D138: gas | E138: =SUM(E142,E148) -> 15.2 | G138: 0 | I138: =I148 -> 10.9 | K138: 0
D139: elec | E139: =SUM(E141,E143,E144,E145,E146,E147) -> 21.3 | G139: =SUM(G141:G148) -> 30.4 | I139: =SUM(I141:I147) -> 21.2 | K139: =SUM(K141:K148) -> 29
D141: cooling | E141: 2.6 | G141: 2.6 | I141: 3.2 | K141: 3.2
D142: heating | E142: 3.4 | G142: 1.7 | I142: 0.1 | K142: 0.1
D143: interior lighting | E143: 4.2 | G143: 4.2 | I143: 4.2 | K143: 4.2
D144: exterior lighing | E144: 0.2 | G144: 0.2 | I144: 0.2 | K144: 0.2
D145: interior equipment | E145: 8.1 | G145: 8.1 | I145: 8.1 | K145: 8.1
D146: fans | E146: 6 | G146: 5.6 | I146: 5.2 | K146: 5.2
D147: misc | E147: 0.2 | G147: 0.2 | I147: 0.2 | K147: 0.2
D148: DHW | E148: 11.8 | G148: 7.8 | I148: 10.9 | K148: 7.8

Sheet IECC 2021 warehouse (hidden)
A7: Area [m2]
A8: Total Building Area | B8: 4835.13
A9: Net Conditioned Building Area | B9: 4835.13 | P9: =B9*3.28*3.28 -> 52018.26259 | Q9: ft2
A10: Unconditioned Building Area | B10: 0
S11: efficiency level | T11: base | V11: base | X11: base | Z11: stretch | AB11: stretch | AD11: stretch
S12: heating | T12: gas | V12: elec | X12: elec | Z12: gas | AB12: elec | AD12: elec
A13: End Uses | S13: hot water | T13: gas | V13: gas | X13: elec | Z13: gas | AB13: gas | AD13: elec
B15: Electricity [GJ] | C15: Natural Gas [GJ] | D15: Gasoline [GJ] | E15: Diesel [GJ] | F15: Coal [GJ] | G15: Fuel Oil No 1 [GJ] | H15: Fuel Oil No 2 [GJ] | I15: Propane [GJ] | J15: Other Fuel 1 [GJ] | K15: Other Fuel 2 [GJ] | L15: District Cooling [GJ] | M15: District Heating [GJ] | N15: Water [m3] | P15: Gas (Mbtu/yr) | Q15: Elec (Mbtu/yr) | R15: Gas (kbtu/sf-yr) | S15: Elec (kBtu/sf-yr | T15: Gas (kbtu/sf-yr) | U15: Elec (kBtu/sf-yr | V15: Gas (kbtu/sf-yr) | W15: Elec (kBtu/sf-yr | X15: Gas (kbtu/sf-yr) | Y15: Elec (kBtu/sf-yr | Z15: Gas (kbtu/sf-yr) | AA15: Elec (kBtu/sf-yr | AB15: Gas (kbtu/sf-yr) | AC15: Elec (kBtu/sf-yr | AD15: Gas (kbtu/sf-yr) | AE15: Elec (kBtu/sf-yr
A16: Heating | B16: 0 | C16: 698.24 | D16: 0 | E16: 0 | F16: 0 | G16: 0 | H16: 0 | I16: 0 | J16: 0 | K16: 0 | L16: 0 | M16: 0 | N16: 0 | P16: =C16*947817/1000 -> 661803.7421 | Q16: =B16*947817/1000 -> 0 | R16: =P16/$P$9 -> 12.72252684 | S16: =Q16/$P$9 -> 0 | T16: =R16 -> 12.72252684 | U16: =S16 -> 0 | V16: =0 -> 0 | W16: =R16*0.95/3.2 -> 3.777000156 | X16: =0 -> 0 | Y16: =R16*0.95/3.2 -> 3.777000156 | Z16: =R16*0.3 -> 3.816758052 | AA16: =S16 -> 0 | AB16: 0 | AC16: =Z16*0.95/3.2 -> 1.133100047 | AD16: 0 | AE16: =AC16 -> 1.133100047
A17: Cooling | B17: 10.02 | C17: 0 | D17: 0 | E17: 0 | F17: 0 | G17: 0 | H17: 0 | I17: 0 | J17: 0 | K17: 0 | L17: 0 | M17: 0 | N17: 0 | P17: =C17*947817/1000 -> 0 | Q17: =B17*947817/1000 -> 9497.12634 | R17: =P17/$P$9 -> 0 | S17: 0.1825729247 | T17: =R17 -> 0 | U17: =S17 -> 0.1825729247 | V17: =R17 -> 0 | W17: =S17 -> 0.1825729247 | X17: =R17 -> 0 | Y17: =S17 -> 0.1825729247 | Z17: =R17 -> 0 | AA17: =S17 -> 0.1825729247 | AB17: =R17 -> 0 | AC17: =S17 -> 0.1825729247 | AD17: =R17 -> 0 | AE17: =S17 -> 0.1825729247
A18: Interior Lighting | B18: 93.23 | C18: 0 | D18: 0 | E18: 0 | F18: 0 | G18: 0 | H18: 0 | I18: 0 | J18: 0 | K18: 0 | L18: 0 | M18: 0 | N18: 0 | P18: 0 | Q18: 88364.97891 | R18: 0 | S18: 1.698729917 | T18: 0 | U18: 1.698729917 | V18: =R18 -> 0 | W18: =S18 -> 1.698729917 | X18: =R18 -> 0 | Y18: =S18 -> 1.698729917 | Z18: =R18 -> 0 | AA18: =S18 -> 1.698729917 | AB18: =R18 -> 0 | AC18: =S18 -> 1.698729917 | AD18: =R18 -> 0 | AE18: =S18 -> 1.698729917
A19: Exterior Lighting | B19: 61.69 | C19: 0 | D19: 0 | E19: 0 | F19: 0 | G19: 0 | H19: 0 | I19: 0 | J19: 0 | K19: 0 | L19: 0 | M19: 0 | N19: 0 | P19: 0 | Q19: 58470.83073 | R19: 0 | S19: 1.124044284 | T19: 0 | U19: 1.124044284 | V19: 0 | W19: 1.124044284 | X19: 0 | Y19: 1.124044284 | Z19: 0 | AA19: 1.124044284 | AB19: 0 | AC19: 1.124044284 | AD19: 0 | AE19: 1.124044284
A20: Interior Equipment | B20: 136.51 | C20: 0 | D20: 0 | E20: 0 | F20: 0 | G20: 0 | H20: 0 | I20: 0 | J20: 0 | K20: 0 | L20: 0 | M20: 0 | N20: 0 | P20: 0 | Q20: 129386.4987 | R20: 0 | S20: 2.487328339 | T20: 0 | U20: 2.487328339 | V20: 0 | W20: 2.487328339 | X20: 0 | Y20: 2.487328339 | Z20: 0 | AA20: 2.487328339 | AB20: 0 | AC20: 2.487328339 | AD20: 0 | AE20: 2.487328339
A21: Exterior Equipment | B21: 0 | C21: 0 | D21: 0 | E21: 0 | F21: 0 | G21: 0 | H21: 0 | I21: 0 | J21: 0 | K21: 0 | L21: 0 | M21: 0 | N21: 0 | P21: 0 | Q21: 0 | R21: 0 | S21: 0 | T21: 0 | U21: 0 | V21: 0 | W21: 0 | X21: 0 | Y21: 0 | Z21: 0 | AA21: 0 | AB21: 0 | AC21: 0 | AD21: 0 | AE21: 0
A22: Fans | B22: 29.54 | C22: 0 | D22: 0 | E22: 0 | F22: 0 | G22: 0 | H22: 0 | I22: 0 | J22: 0 | K22: 0 | L22: 0 | M22: 0 | N22: 0 | P22: 0 | Q22: 27998.51418 | R22: 0 | S22: 0.5382439317 | T22: 0 | U22: 0.5382439317 | V22: 0 | W22: 0.5382439317 | X22: 0 | Y22: 0.5382439317 | Z22: 0 | AA22: 0.5382439317 | AB22: 0 | AC22: 0.5382439317 | AD22: 0 | AE22: 0.5382439317
A23: Pumps | B23: 0 | C23: 0 | D23: 0 | E23: 0 | F23: 0 | G23: 0 | H23: 0 | I23: 0 | J23: 0 | K23: 0 | L23: 0 | M23: 0 | N23: 0 | P23: 0 | Q23: 0 | R23: 0 | S23: 0 | T23: 0 | U23: 0 | V23: 0 | W23: 0 | X23: 0 | Y23: 0 | Z23: 0 | AA23: 0 | AB23: 0 | AC23: 0 | AD23: 0 | AE23: 0
A24: Heat Rejection | B24: 0 | C24: 0 | D24: 0 | E24: 0 | F24: 0 | G24: 0 | H24: 0 | I24: 0 | J24: 0 | K24: 0 | L24: 0 | M24: 0 | N24: 0 | P24: 0 | Q24: 0 | R24: 0 | S24: 0 | T24: 0 | U24: 0 | V24: 0 | W24: 0 | X24: 0 | Y24: 0 | Z24: 0 | AA24: 0 | AB24: 0 | AC24: 0 | AD24: 0 | AE24: 0
A25: Humidification | B25: 0 | C25: 0 | D25: 0 | E25: 0 | F25: 0 | G25: 0 | H25: 0 | I25: 0 | J25: 0 | K25: 0 | L25: 0 | M25: 0 | N25: 0 | P25: 0 | Q25: 0 | R25: 0 | S25: 0 | T25: 0 | U25: 0 | V25: 0 | W25: 0 | X25: 0 | Y25: 0 | Z25: 0 | AA25: 0 | AB25: 0 | AC25: 0 | AD25: 0 | AE25: 0
A26: Heat Recovery | B26: 0 | C26: 0 | D26: 0 | E26: 0 | F26: 0 | G26: 0 | H26: 0 | I26: 0 | J26: 0 | K26: 0 | L26: 0 | M26: 0 | N26: 0 | P26: 0 | Q26: 0 | R26: 0 | S26: 0 | T26: 0 | U26: 0 | V26: 0 | W26: 0 | X26: 0 | Y26: 0 | Z26: 0 | AA26: 0 | AB26: 0 | AC26: 0 | AD26: 0 | AE26: 0
A27: Water Systems | B27: 26.08 | C27: 0 | D27: 0 | E27: 0 | F27: 0 | G27: 0 | H27: 0 | I27: 0 | J27: 0 | K27: 0 | L27: 0 | M27: 0 | N27: 51.61 | P27: 0 | Q27: 24719.06736 | R27: 0 | S27: 0.4751997881 | T27: =S27*1/0.95 -> 0.5002103032 | U27: 0 | V27: =T27 -> 0.5002103032 | W27: 0 | X27: 0 | Y27: =S27*1/2.5 -> 0.1900799152 | Z27: =S27*1/0.95 -> 0.5002103032 | AA27: 0 | AB27: =S27*1/0.95 -> 0.5002103032 | AC27: 0 | AD27: 0 | AE27: =Y27 -> 0.1900799152
A28: Refrigeration | B28: 0 | C28: 0 | D28: 0 | E28: 0 | F28: 0 | G28: 0 | H28: 0 | I28: 0 | J28: 0 | K28: 0 | L28: 0 | M28: 0 | N28: 0 | P28: 0 | Q28: 0 | R28: 0 | S28: 0 | T28: =R28 -> 0 | U28: =S28 -> 0 | V28: 0 | W28: 0 | X28: 0 | Y28: 0 | Z28: 0 | AA28: 0 | AB28: 0 | AC28: 0 | AD28: 0 | AE28: 0
A29: Generators | B29: 0 | C29: 0 | D29: 0 | E29: 0 | F29: 0 | G29: 0 | H29: 0 | I29: 0 | J29: 0 | K29: 0 | L29: 0 | M29: 0 | N29: 0 | P29: 0 | Q29: 0 | R29: 0 | S29: 0 | T29: 0 | U29: 0 | V29: 0 | W29: 0 | X29: 0 | Y29: 0 | Z29: 0 | AA29: 0 | AB29: 0 | AC29: 0 | AD29: 0 | AE29: 0
A31: Total End Uses | B31: 357.06 | C31: 698.24 | D31: 0 | E31: 0 | F31: 0 | G31: 0 | H31: 0 | I31: 0 | J31: 0 | K31: 0 | L31: 0 | M31: 0 | N31: 51.61
A32: Note: Natural gas appears to be the principal heating source based on energy usage.
R33: gas EUI | S33: =SUM(R16:R29) -> 12.72252684 | U33: =SUM(T16:T29) -> 13.22273714 | W33: =SUM(V16:V29) -> 0.5002103032 | Y33: =SUM(X16:X29) -> 0 | AA33: =SUM(Z16:Z29) -> 4.316968356 | AC33: =SUM(AB16:AB29) -> 0.5002103032 | AE33: =SUM(AD16:AD29) -> 0
R34: elec EUI | S34: =SUM(S16:S29) -> 6.506119184 | U34: =SUM(U16:U29) -> 6.030919396 | W34: =SUM(W16:W29) -> 9.807919552 | Y34: =SUM(Y16:Y29) -> 9.997999468 | AA34: =SUM(AA16:AA29) -> 6.030919396 | AC34: =SUM(AC16:AC29) -> 7.164019443 | AE34: =SUM(AE16:AE29) -> 7.354099358

Sheet IECC 2021 secondary school (hidden)
A7: Area [m2]
A8: Total Building Area | B8: 19592
A9: Net Conditioned Building Area | B9: 19592 | P9: =B9*3.28*3.28 -> 210778.5728 | Q9: ft2
A10: Unconditioned Building Area | B10: 0
S11: efficiency level | T11: base | V11: base | X11: base | Z11: stretch | AB11: stretch | AD11: stretch | AF11: ph | AH11: ph | AJ11: ph
S12: heating | T12: gas | V12: elec | X12: elec | Z12: gas | AB12: elec | AD12: elec | AF12: gas | AH12: elec | AJ12: elec
A13: End Uses | S13: hot water | T13: gas | V13: gas | X13: elec | Z13: gas | AB13: gas | AD13: elec | AF13: gas | AH13: gas | AJ13: elec
B15: Electricity [GJ] | C15: Natural Gas [GJ] | D15: Gasoline [GJ] | E15: Diesel [GJ] | F15: Coal [GJ] | G15: Fuel Oil No 1 [GJ] | H15: Fuel Oil No 2 [GJ] | I15: Propane [GJ] | J15: Other Fuel 1 [GJ] | K15: Other Fuel 2 [GJ] | L15: District Cooling [GJ] | M15: District Heating [GJ] | N15: Water [m3] | P15: Gas (Mbtu/yr) | Q15: Elec (Mbtu/yr) | R15: Gas (kbtu/sf-yr) | S15: Elec (kBtu/sf-yr | T15: Gas (kbtu/sf-yr) | U15: Elec (kBtu/sf-yr | V15: Gas (kbtu/sf-yr) | W15: Elec (kBtu/sf-yr | X15: Gas (kbtu/sf-yr) | Y15: Elec (kBtu/sf-yr | Z15: Gas (kbtu/sf-yr) | AA15: Elec (kBtu/sf-yr | AB15: Gas (kbtu/sf-yr) | AC15: Elec (kBtu/sf-yr | AD15: Gas (kbtu/sf-yr) | AE15: Elec (kBtu/sf-yr | AF15: Gas (kbtu/sf-yr) | AG15: Elec (kBtu/sf-yr | AH15: Gas (kbtu/sf-yr) | AI15: Elec (kBtu/sf-yr | AJ15: Gas (kbtu/sf-yr) | AK15: Elec (kBtu/sf-yr
A16: Heating | B16: 0 | C16: 1490.67 | D16: 0 | E16: 0 | F16: 0 | G16: 0 | H16: 0 | I16: 0 | J16: 0 | K16: 0 | L16: 0 | M16: 0 | N16: 0 | P16: =C16*947817/1000 -> 1412882.367 | Q16: =B16*947817/1000 -> 0 | R16: =P16/$P$9 -> 6.70315938 | S16: =Q16/$P$9 -> 0 | T16: =R16 -> 6.70315938 | U16: =S16 -> 0 | V16: =0 -> 0 | W16: =R16*0.95/3.2 -> 1.990000441 | X16: =0 -> 0 | Y16: =R16*0.95/3.2 -> 1.990000441 | Z16: =R16*0.3 -> 2.010947814 | AA16: =S16 -> 0 | AB16: 0 | AC16: =Z16*0.95/3.2 -> 0.5970001323 | AD16: 0 | AE16: =AC16 -> 0.5970001323 | AF16: =R16*0.1 -> 0.670315938 | AG16: 0 | AH16: 0 | AI16: =AF16*0.95/3.2 -> 0.1990000441 | AJ16: 0 | AK16: =AI16 -> 0.1990000441
A17: Cooling | B17: 804.14 | C17: 0 | D17: 0 | E17: 0 | F17: 0 | G17: 0 | H17: 0 | I17: 0 | J17: 0 | K17: 0 | L17: 0 | M17: 0 | N17: 0 | P17: =C17*947817/1000 -> 0 | Q17: =B17*947817/1000 -> 762177.5624 | R17: =P17/$P$9 -> 0 | S17: 3.616010642 | T17: =R17 -> 0 | U17: 3.616010642 | V17: =R17 -> 0 | W17: =S17 -> 3.616010642 | X17: =R17 -> 0 | Y17: =S17 -> 3.616010642 | Z17: =R17 -> 0 | AA17: =S17 -> 3.616010642 | AB17: =R17 -> 0 | AC17: =S17 -> 3.616010642 | AD17: =R17 -> 0 | AE17: =S17 -> 3.616010642 | AF17: =X17 -> 0 | AG17: =Y17 -> 3.616010642 | AH17: =X17 -> 0 | AI17: =Y17 -> 3.616010642 | AJ17: =X17 -> 0 | AK17: =Y17 -> 3.616010642
A18: Interior Lighting | B18: 1048.63 | C18: 0 | D18: 0 | E18: 0 | F18: 0 | G18: 0 | H18: 0 | I18: 0 | J18: 0 | K18: 0 | L18: 0 | M18: 0 | N18: 0 | P18: 0 | Q18: 993909.3407 | R18: 0 | S18: 4.715419255 | T18: 0 | U18: 4.715419255 | V18: =R18 -> 0 | W18: 4.715419255 | X18: =R18 -> 0 | Y18: 4.715419255 | Z18: =R18 -> 0 | AA18: 4.715419255 | AB18: =R18 -> 0 | AC18: 4.715419255 | AD18: =R18 -> 0 | AE18: 4.715419255 | AF18: =X18 -> 0 | AG18: =Y18 -> 4.715419255 | AH18: =X18 -> 0 | AI18: =Y18 -> 4.715419255 | AJ18: =X18 -> 0 | AK18: =Y18 -> 4.715419255
A19: Exterior Lighting | B19: 71.89 | C19: 0 | D19: 0 | E19: 0 | F19: 0 | G19: 0 | H19: 0 | I19: 0 | J19: 0 | K19: 0 | L19: 0 | M19: 0 | N19: 0 | P19: 0 | Q19: 68138.56413 | R19: 0 | S19: 0.3232708298 | T19: 0 | U19: 0.3232708298 | V19: 0 | W19: 0.3232708298 | X19: 0 | Y19: 0.3232708298 | Z19: 0 | AA19: 0.3232708298 | AB19: 0 | AC19: 0.3232708298 | AD19: 0 | AE19: 0.3232708298 | AF19: 0 | AG19: 0.3232708298 | AH19: 0 | AI19: 0.3232708298 | AJ19: 0 | AK19: 0.3232708298
A20: Interior Equipment | B20: 2418.32 | C20: 544.46 | D20: 0 | E20: 0 | F20: 0 | G20: 0 | H20: 0 | I20: 0 | J20: 0 | K20: 0 | L20: 0 | M20: 0 | N20: 0 | P20: 516048.4438 | Q20: 2292124.807 | R20: 2.448296508 | S20: 10.87456271 | T20: =R20 -> 2.448296508 | U20: =S20 -> 10.87456271 | V20: 2.448296508 | W20: 10.87456271 | X20: 0 | Y20: =(S20*0.9)+(R20/2.5) -> 10.76642504 | Z20: 2.448296508 | AA20: 10.87456271 | AB20: 2.448296508 | AC20: 10.87456271 | AD20: 0 | AE20: =Y20 -> 10.76642504 | AF20: =R20 -> 2.448296508 | AG20: =S20 -> 10.87456271 | AH20: =R20 -> 2.448296508 | AI20: =S20 -> 10.87456271 | AJ20: 0 | AK20: 10.76642504
A21: Exterior Equipment | B21: 29.45 | C21: 0 | D21: 0 | E21: 0 | F21: 0 | G21: 0 | H21: 0 | I21: 0 | J21: 0 | K21: 0 | L21: 0 | M21: 0 | N21: 0 | P21: 0 | Q21: 27913.21065 | R21: 0 | S21: 0.1324290713 | T21: 0 | U21: 0.1324290713 | V21: 0 | W21: 0.1324290713 | X21: 0 | Y21: 0.1324290713 | Z21: 0 | AA21: 0.1324290713 | AB21: 0 | AC21: 0.1324290713 | AD21: 0 | AE21: 0.1324290713 | AF21: 0 | AG21: 0.1324290713 | AH21: 0 | AI21: 0.1324290713 | AJ21: 0 | AK21: 0.1324290713
A22: Fans | B22: 1136.5 | C22: 0 | D22: 0 | E22: 0 | F22: 0 | G22: 0 | H22: 0 | I22: 0 | J22: 0 | K22: 0 | L22: 0 | M22: 0 | N22: 0 | P22: 0 | Q22: 1077194.021 | R22: 0 | S22: 5.110548032 | T22: 0 | U22: 5.110548032 | V22: 0 | W22: 5.110548032 | X22: 0 | Y22: 5.110548032 | Z22: 0 | AA22: 5.110548032 | AB22: 0 | AC22: 5.110548032 | AD22: 0 | AE22: 5.110548032 | AF22: 0 | AG22: 5.110548032 | AH22: 0 | AI22: 5.110548032 | AJ22: 0 | AK22: 5.110548032
A23: Pumps | B23: 56.29 | C23: 0 | D23: 0 | E23: 0 | F23: 0 | G23: 0 | H23: 0 | I23: 0 | J23: 0 | K23: 0 | L23: 0 | M23: 0 | N23: 0 | P23: 0 | Q23: 53352.61893 | R23: 0 | S23: 0.2531216443 | T23: 0 | U23: 0.2531216443 | V23: 0 | W23: 0.2531216443 | X23: 0 | Y23: 0.2531216443 | Z23: 0 | AA23: 0.2531216443 | AB23: 0 | AC23: 0.2531216443 | AD23: 0 | AE23: 0.2531216443 | AF23: 0 | AG23: 0.2531216443 | AH23: 0 | AI23: 0.2531216443 | AJ23: 0 | AK23: 0.2531216443
A24: Heat Rejection | B24: 0 | C24: 0 | D24: 0 | E24: 0 | F24: 0 | G24: 0 | H24: 0 | I24: 0 | J24: 0 | K24: 0 | L24: 0 | M24: 0 | N24: 0 | P24: 0 | Q24: 0 | R24: 0 | S24: 0 | T24: 0 | U24: 0 | V24: 0 | W24: 0 | X24: 0 | Y24: 0 | Z24: 0 | AA24: 0 | AB24: 0 | AC24: 0 | AD24: 0 | AE24: 0 | AF24: 0 | AG24: 0 | AH24: 0 | AI24: 0 | AJ24: 0 | AK24: 0
A25: Humidification | B25: 0 | C25: 0 | D25: 0 | E25: 0 | F25: 0 | G25: 0 | H25: 0 | I25: 0 | J25: 0 | K25: 0 | L25: 0 | M25: 0 | N25: 0 | P25: 0 | Q25: 0 | R25: 0 | S25: 0 | T25: 0 | U25: 0 | V25: 0 | W25: 0 | X25: 0 | Y25: 0 | Z25: 0 | AA25: 0 | AB25: 0 | AC25: 0 | AD25: 0 | AE25: 0 | AF25: 0 | AG25: 0 | AH25: 0 | AI25: 0 | AJ25: 0 | AK25: 0
A26: Heat Recovery | B26: 240.56 | C26: 0 | D26: 0 | E26: 0 | F26: 0 | G26: 0 | H26: 0 | I26: 0 | J26: 0 | K26: 0 | L26: 0 | M26: 0 | N26: 0 | P26: 0 | Q26: 228006.8575 | R26: 0 | S26: 1.081736414 | T26: 0 | U26: 1.081736414 | V26: 0 | W26: 1.081736414 | X26: 0 | Y26: 1.081736414 | Z26: 0 | AA26: 1.081736414 | AB26: 0 | AC26: 1.081736414 | AD26: 0 | AE26: 1.081736414 | AF26: 0 | AG26: 1.081736414 | AH26: 0 | AI26: 1.081736414 | AJ26: 0 | AK26: 1.081736414
A27: Water Systems | B27: 155.38 | C27: 556.16 | D27: 0 | E27: 0 | F27: 0 | G27: 0 | H27: 0 | I27: 0 | J27: 0 | K27: 0 | L27: 0 | M27: 0 | N27: 8432.11 | P27: 527137.9027 | Q27: 147271.8055 | R27: 2.500908397 | S27: 0.6987038744 | T27: =R27+(S27*1/0.95) -> 3.23638616 | U27: 0 | V27: =T27 -> 3.23638616 | W27: 0 | X27: 0 | Y27: =V27*0.95/2.5 -> 1.229826741 | Z27: =T27 -> 3.23638616 | AA27: 0 | AB27: =Z27 -> 3.23638616 | AC27: 0 | AD27: 0 | AE27: =Y27 -> 1.229826741 | AF27: =Z27 -> 3.23638616 | AG27: 0 | AH27: =AF27 -> 3.23638616 | AI27: 0 | AJ27: 0 | AK27: =AE27 -> 1.229826741
A28: Refrigeration | B28: 93.73 | C28: 0 | D28: 0 | E28: 0 | F28: 0 | G28: 0 | H28: 0 | I28: 0 | J28: 0 | K28: 0 | L28: 0 | M28: 0 | N28: 0 | P28: 0 | Q28: 88838.88741 | R28: 0 | S28: 0.4214796895 | T28: =R28 -> 0 | U28: 0.4214796895 | V28: 0 | W28: 0.4214796895 | X28: 0 | Y28: 0.4214796895 | Z28: 0 | AA28: 0.4214796895 | AB28: 0 | AC28: 0.4214796895 | AD28: 0 | AE28: 0.4214796895 | AF28: =X28 -> 0 | AG28: =Y28 -> 0.4214796895 | AH28: =X28 -> 0 | AI28: =Y28 -> 0.4214796895 | AJ28: =X28 -> 0 | AK28: =Y28 -> 0.4214796895
A29: Generators | B29: 0 | C29: 0 | D29: 0 | E29: 0 | F29: 0 | G29: 0 | H29: 0 | I29: 0 | J29: 0 | K29: 0 | L29: 0 | M29: 0 | N29: 0 | P29: 0 | Q29: 0 | R29: 0 | S29: 0 | T29: 0 | U29: 0 | V29: 0 | W29: 0 | X29: 0 | Y29: 0 | Z29: 0 | AA29: 0 | AB29: 0 | AC29: 0 | AD29: 0 | AE29: 0 | AF29: 0 | AG29: 0 | AH29: 0 | AI29: 0 | AJ29: 0 | AK29: 0
A31: Total End Uses | B31: 6054.9 | C31: 2591.29 | D31: 0 | E31: 0 | F31: 0 | G31: 0 | H31: 0 | I31: 0 | J31: 0 | K31: 0 | L31: 0 | M31: 0 | N31: 8432.11
A32: Note: Natural gas appears to be the principal heating source based on energy usage.
R33: gas EUI | S33: =SUM(R16:R29) -> 11.65236429 | U33: =SUM(T16:T29) -> 12.38784205 | W33: =SUM(V16:V29) -> 5.684682668 | Y33: =SUM(X16:X29) -> 0 | Z33: =T40 -> 2.25 | AA33: =SUM(Z16:Z29) -> 7.695630482 | AC33: =SUM(AB16:AB29) -> 5.684682668 | AD33: =V40 -> 0 | AE33: =SUM(AD16:AD29) -> 0 | AF33: =X40 -> 2.25 | AG33: =SUM(AF16:AF29) -> 6.354998606 | AI33: =SUM(AH16:AH29) -> 5.684682668 | AJ33: =Z40 -> 0 | AK33: =SUM(AJ16:AJ29) -> 0
R34: elec EUI | S34: =SUM(S16:S29) -> 27.22728216 | U34: =SUM(U16:U29) -> 26.52857829 | W34: =SUM(W16:W29) -> 28.51857873 | Y34: =SUM(Y16:Y29) -> 29.6402678 | Z34: =U40 -> 26 | AA34: =SUM(AA16:AA29) -> 26.52857829 | AC34: =SUM(AC16:AC29) -> 27.12557842 | AD34: =W40 -> 28 | AE34: =SUM(AE16:AE29) -> 28.24726749 | AF34: =Y40 -> 26 | AG34: =SUM(AG16:AG29) -> 26.52857829 | AI34: =SUM(AI16:AI29) -> 26.72757833 | AJ34: =AA40 -> 27.75 | AK34: =SUM(AK16:AK29) -> 27.8492674
T36: ='SWA data'!E2 -> Stretch Code | X36: ='SWA data'!I2 -> Passive House
S37: ='SWA data'!D3 -> scneario name | T37: ='SWA data'!E3 -> gas | V37: ='SWA data'!G3 -> electric | X37: ='SWA data'!I3 -> gas | Z37: ='SWA data'!K3 -> electric
T39: ='SWA data'!E5 -> gas EUI | U39: ='SWA data'!F5 -> elec EUI | V39: ='SWA data'!G5 -> gas EUI | W39: ='SWA data'!H5 -> elec EUI | X39: ='SWA data'!I5 -> gas EUI | Y39: ='SWA data'!J5 -> elec EUI | Z39: ='SWA data'!K5 -> gas EUI | AA39: ='SWA data'!L5 -> elec EUI
S40: ='SWA data'!D13 -> secondary school | T40: ='SWA data'!E13 -> 2.25 | U40: ='SWA data'!F13 -> 26 | V40: ='SWA data'!G13 -> 0 | W40: ='SWA data'!H13 -> 28 | X40: ='SWA data'!I13 -> 2.25 | Y40: ='SWA data'!J13 -> 26 | Z40: ='SWA data'!K13 -> 0 | AA40: ='SWA data'!L13 -> 27.75

Sheet IECC 2021 primary school (hidden)
A7: Area [m2]
A8: Total Building Area | B8: 6871
A9: Net Conditioned Building Area | B9: 6871 | P9: =B9*3.28*3.28 -> 73920.9664 | Q9: ft2
A10: Unconditioned Building Area | B10: 0
S11: efficiency level | T11: base | V11: base | X11: base | Z11: stretch | AB11: stretch | AD11: stretch | AF11: ph | AH11: ph | AJ11: ph
S12: heating | T12: gas | V12: elec | X12: elec | Z12: gas | AB12: elec | AD12: elec | AF12: gas | AH12: elec | AJ12: elec
A13: End Uses | S13: hot water | T13: gas | V13: gas | X13: elec | Z13: gas | AB13: gas | AD13: elec | AF13: gas | AH13: gas | AJ13: elec
B15: Electricity [GJ] | C15: Natural Gas [GJ] | D15: Gasoline [GJ] | E15: Diesel [GJ] | F15: Coal [GJ] | G15: Fuel Oil No 1 [GJ] | H15: Fuel Oil No 2 [GJ] | I15: Propane [GJ] | J15: Other Fuel 1 [GJ] | K15: Other Fuel 2 [GJ] | L15: District Cooling [GJ] | M15: District Heating [GJ] | N15: Water [m3] | P15: Gas (Mbtu/yr) | Q15: Elec (Mbtu/yr) | R15: Gas (kbtu/sf-yr) | S15: Elec (kBtu/sf-yr | T15: Gas (kbtu/sf-yr) | U15: Elec (kBtu/sf-yr | V15: Gas (kbtu/sf-yr) | W15: Elec (kBtu/sf-yr | X15: Gas (kbtu/sf-yr) | Y15: Elec (kBtu/sf-yr | Z15: Gas (kbtu/sf-yr) | AA15: Elec (kBtu/sf-yr | AB15: Gas (kbtu/sf-yr) | AC15: Elec (kBtu/sf-yr | AD15: Gas (kbtu/sf-yr) | AE15: Elec (kBtu/sf-yr | AF15: Gas (kbtu/sf-yr) | AG15: Elec (kBtu/sf-yr | AH15: Gas (kbtu/sf-yr) | AI15: Elec (kBtu/sf-yr | AJ15: Gas (kbtu/sf-yr) | AK15: Elec (kBtu/sf-yr
A16: Heating | B16: 0 | C16: 856.74 | D16: 0 | E16: 0 | F16: 0 | G16: 0 | H16: 0 | I16: 0 | J16: 0 | K16: 0 | L16: 0 | M16: 0 | N16: 0 | P16: =C16*947817/1000 -> 812032.7366 | Q16: =B16*947817/1000 -> 0 | R16: =P16/$P$9 -> 10.98514773 | S16: =Q16/$P$9 -> 0 | T16: =R16 -> 10.98514773 | U16: =S16 -> 0 | V16: =0 -> 0 | W16: =R16*0.95/3.2 -> 3.261215734 | X16: =0 -> 0 | Y16: =W16 -> 3.261215734 | Z16: =R16*0.3 -> 3.29554432 | AA16: =S16 -> 0 | AB16: 0 | AC16: =Z16*0.95/3.2 -> 0.9783647201 | AD16: 0 | AE16: =AC16 -> 0.9783647201 | AF16: =R16*0.1 -> 1.098514773 | AG16: 0 | AH16: 0 | AI16: =AF16*0.95/3.2 -> 0.3261215734 | AJ16: 0 | AK16: =AI16 -> 0.3261215734
A17: Cooling | B17: 218.22 | C17: 0 | D17: 0 | E17: 0 | F17: 0 | G17: 0 | H17: 0 | I17: 0 | J17: 0 | K17: 0 | L17: 0 | M17: 0 | N17: 0 | P17: =C17*947817/1000 -> 0 | Q17: =B17*947817/1000 -> 206832.6257 | R17: =P17/$P$9 -> 0 | S17: 2.798023833 | T17: =R17 -> 0 | U17: 2.798023833 | V17: =R17 -> 0 | W17: =S17 -> 2.798023833 | X17: =R17 -> 0 | Y17: =S17 -> 2.798023833 | Z17: =R17 -> 0 | AA17: =S17 -> 2.798023833 | AB17: =R17 -> 0 | AC17: =S17 -> 2.798023833 | AD17: =R17 -> 0 | AE17: =S17 -> 2.798023833 | AF17: =X17 -> 0 | AG17: =Y17 -> 2.798023833 | AH17: =X17 -> 0 | AI17: =Y17 -> 2.798023833 | AJ17: =X17 -> 0 | AK17: =Y17 -> 2.798023833
A18: Interior Lighting | B18: 372.02 | C18: 0 | D18: 0 | E18: 0 | F18: 0 | G18: 0 | H18: 0 | I18: 0 | J18: 0 | K18: 0 | L18: 0 | M18: 0 | N18: 0 | P18: 0 | Q18: 352606.8803 | R18: 0 | S18: 4.770052361 | T18: 0 | U18: 4.770052361 | V18: =R18 -> 0 | W18: 4.770052361 | X18: =R18 -> 0 | Y18: 4.770052361 | Z18: =R18 -> 0 | AA18: 4.770052361 | AB18: =R18 -> 0 | AC18: 4.770052361 | AD18: =R18 -> 0 | AE18: 4.770052361 | AF18: =X18 -> 0 | AG18: 4.770052361 | AH18: =X18 -> 0 | AI18: 4.770052361 | AJ18: =X18 -> 0 | AK18: 4.770052361
A19: Exterior Lighting | B19: 29.7 | C19: 0 | D19: 0 | E19: 0 | F19: 0 | G19: 0 | H19: 0 | I19: 0 | J19: 0 | K19: 0 | L19: 0 | M19: 0 | N19: 0 | P19: 0 | Q19: 28150.1649 | R19: 0 | S19: 0.3808143517 | T19: 0 | U19: 0.3808143517 | V19: 0 | W19: 0.3808143517 | X19: 0 | Y19: 0.3808143517 | Z19: 0 | AA19: 0.3808143517 | AB19: 0 | AC19: 0.3808143517 | AD19: 0 | AE19: 0.3808143517 | AF19: 0 | AG19: 0.3808143517 | AH19: 0 | AI19: 0.3808143517 | AJ19: 0 | AK19: 0.3808143517
A20: Interior Equipment | B20: 1124.62 | C20: 361.03 | D20: 0 | E20: 0 | F20: 0 | G20: 0 | H20: 0 | I20: 0 | J20: 0 | K20: 0 | L20: 0 | M20: 0 | N20: 0 | P20: 342190.3715 | Q20: 1065933.955 | R20: 4.629138229 | S20: 14.41991368 | T20: 4.629138229 | U20: 14.41991368 | V20: 4.629138229 | W20: 14.41991368 | Y20: =(S20*0.9)+(R20/2.5) -> 14.8295776 | Z20: 4.629138229 | AA20: 14.41991368 | AB20: 4.629138229 | AC20: 14.41991368 | AD20: =X20 -> 0 | AE20: =Y20 -> 14.8295776 | AF20: =R20 -> 4.629138229 | AG20: =S20 -> 14.41991368 | AH20: =R20 -> 4.629138229 | AI20: =S20 -> 14.41991368 | AJ20: 0 | AK20: =AE20 -> 14.8295776
A21: Exterior Equipment | B21: 17.08 | C21: 0 | D21: 0 | E21: 0 | F21: 0 | G21: 0 | H21: 0 | I21: 0 | J21: 0 | K21: 0 | L21: 0 | M21: 0 | N21: 0 | P21: 0 | Q21: 16188.71436 | R21: 0 | S21: 0.2190003073 | T21: 0 | U21: 0.2190003073 | V21: 0 | W21: 0.2190003073 | X21: 0 | Y21: 0.2190003073 | Z21: 0 | AA21: 0.2190003073 | AB21: 0 | AC21: 0.2190003073 | AD21: 0 | AE21: 0.2190003073 | AF21: 0 | AG21: 0.2190003073 | AH21: 0 | AI21: 0.2190003073 | AJ21: 0 | AK21: 0.2190003073
A22: Fans | B22: 298.96 | C22: 0 | D22: 0 | E22: 0 | F22: 0 | G22: 0 | H22: 0 | I22: 0 | J22: 0 | K22: 0 | L22: 0 | M22: 0 | N22: 0 | P22: 0 | Q22: 283359.3703 | R22: 0 | S22: 3.8332747 | T22: 0 | U22: 3.8332747 | V22: 0 | W22: 3.8332747 | X22: 0 | Y22: 3.8332747 | Z22: 0 | AA22: 3.8332747 | AB22: 0 | AC22: 3.8332747 | AD22: 0 | AE22: 3.8332747 | AF22: 0 | AG22: 3.8332747 | AH22: 0 | AI22: 3.8332747 | AJ22: 0 | AK22: 3.8332747
A23: Pumps | B23: 2.21 | C23: 0 | D23: 0 | E23: 0 | F23: 0 | G23: 0 | H23: 0 | I23: 0 | J23: 0 | K23: 0 | L23: 0 | M23: 0 | N23: 0 | P23: 0 | Q23: 2094.67557 | R23: 0 | S23: 0.02833669082 | T23: 0 | U23: 0.02833669082 | V23: 0 | W23: 0.02833669082 | X23: 0 | Y23: 0.02833669082 | Z23: 0 | AA23: 0.02833669082 | AB23: 0 | AC23: 0.02833669082 | AD23: 0 | AE23: 0.02833669082 | AF23: 0 | AG23: 0.02833669082 | AH23: 0 | AI23: 0.02833669082 | AJ23: 0 | AK23: 0.02833669082
A24: Heat Rejection | B24: 0 | C24: 0 | D24: 0 | E24: 0 | F24: 0 | G24: 0 | H24: 0 | I24: 0 | J24: 0 | K24: 0 | L24: 0 | M24: 0 | N24: 0 | P24: 0 | Q24: 0 | R24: 0 | S24: 0 | T24: 0 | U24: 0 | V24: 0 | W24: 0 | X24: 0 | Y24: 0 | Z24: 0 | AA24: 0 | AB24: 0 | AC24: 0 | AD24: 0 | AE24: 0 | AF24: 0 | AG24: 0 | AH24: 0 | AI24: 0 | AJ24: 0 | AK24: 0
A25: Humidification | B25: 0 | C25: 0 | D25: 0 | E25: 0 | F25: 0 | G25: 0 | H25: 0 | I25: 0 | J25: 0 | K25: 0 | L25: 0 | M25: 0 | N25: 0 | P25: 0 | Q25: 0 | R25: 0 | S25: 0 | T25: 0 | U25: 0 | V25: 0 | W25: 0 | X25: 0 | Y25: 0 | Z25: 0 | AA25: 0 | AB25: 0 | AC25: 0 | AD25: 0 | AE25: 0 | AF25: 0 | AG25: 0 | AH25: 0 | AI25: 0 | AJ25: 0 | AK25: 0
A26: Heat Recovery | B26: 70.24 | C26: 0 | D26: 0 | E26: 0 | F26: 0 | G26: 0 | H26: 0 | I26: 0 | J26: 0 | K26: 0 | L26: 0 | M26: 0 | N26: 0 | P26: 0 | Q26: 66574.66608 | R26: 0 | S26: 0.9006195309 | T26: 0 | U26: 0.9006195309 | V26: 0 | W26: 0.9006195309 | X26: 0 | Y26: 0.9006195309 | Z26: 0 | AA26: 0.9006195309 | AB26: 0 | AC26: 0.9006195309 | AD26: 0 | AE26: 0.9006195309 | AF26: 0 | AG26: 0.9006195309 | AH26: 0 | AI26: 0.9006195309 | AJ26: 0 | AK26: 0.9006195309
A27: Water Systems | B27: 25.84 | C27: 143.73 | D27: 0 | E27: 0 | F27: 0 | G27: 0 | H27: 0 | I27: 0 | J27: 0 | K27: 0 | L27: 0 | M27: 0 | N27: 718.47 | P27: 136229.7374 | Q27: 24491.59128 | R27: 1.842910666 | S27: 0.3313213081 | T27: =R27+(S27*1/0.95) -> 2.191669938 | U27: 0 | V27: =T27 -> 2.191669938 | W27: 0 | X27: 0 | Y27: =V27*0.95/2.5 -> 0.8328345763 | Z27: =T27 -> 2.191669938 | AA27: 0 | AB27: =Z27 -> 2.191669938 | AC27: 0 | AD27: 0 | AE27: =Y27 -> 0.8328345763 | AF27: =Z27 -> 2.191669938 | AG27: 0 | AH27: =AF27 -> 2.191669938 | AI27: 0 | AJ27: 0 | AK27: =AE27 -> 0.8328345763
A28: Refrigeration | B28: 45.05 | C28: 0 | D28: 0 | E28: 0 | F28: 0 | G28: 0 | H28: 0 | I28: 0 | J28: 0 | K28: 0 | L28: 0 | M28: 0 | N28: 0 | P28: 0 | Q28: 42699.15585 | R28: 0 | S28: 0.5776325436 | T28: =R28 -> 0 | U28: 0.5776325436 | V28: 0 | W28: 0.5776325436 | X28: 0 | Y28: 0.5776325436 | Z28: 0 | AA28: 0.5776325436 | AB28: 0 | AC28: 0.5776325436 | AD28: 0 | AE28: 0.5776325436 | AF28: =X28 -> 0 | AG28: 0.5776325436 | AH28: =X28 -> 0 | AI28: 0.5776325436 | AJ28: =X28 -> 0 | AK28: 0.5776325436
A29: Generators | B29: 0 | C29: 0 | D29: 0 | E29: 0 | F29: 0 | G29: 0 | H29: 0 | I29: 0 | J29: 0 | K29: 0 | L29: 0 | M29: 0 | N29: 0 | P29: 0 | Q29: 0 | R29: 0 | S29: 0 | T29: 0 | U29: 0 | V29: 0 | W29: 0 | X29: 0 | Y29: 0 | Z29: 0 | AA29: 0 | AB29: 0 | AC29: 0 | AD29: 0 | AE29: 0 | AF29: 0 | AG29: 0 | AH29: 0 | AI29: 0 | AJ29: 0 | AK29: 0
A31: Total End Uses | B31: 2203.96 | C31: 1361.5 | D31: 0 | E31: 0 | F31: 0 | G31: 0 | H31: 0 | I31: 0 | J31: 0 | K31: 0 | L31: 0 | M31: 0 | N31: 718.47
A32: Note: Natural gas appears to be the principal heating source based on energy usage.
R33: gas EUI | S33: =SUM(R16:R29) -> 17.45719663 | U33: =SUM(T16:T29) -> 17.8059559 | W33: =SUM(V16:V29) -> 6.820808167 | Y33: =SUM(X16:X29) -> 0 | Z33: =X42 -> 5 | AA33: =SUM(Z16:Z29) -> 10.11635249 | AC33: =SUM(AB16:AB29) -> 6.820808167 | AD33: =Z42 -> 0 | AE33: =SUM(AD16:AD29) -> 0 | AF33: =AB42 -> 4 | AG33: =SUM(AF16:AF29) -> 7.91932294 | AI33: =SUM(AH16:AH29) -> 6.820808167 | AJ33: =AD42 -> 0 | AK33: =SUM(AJ16:AJ29) -> 0
R34: elec EUI | S34: =SUM(S16:S29) -> 28.25898931 | U34: =SUM(U16:U29) -> 27.927668 | W34: =SUM(W16:W29) -> 31.18888373 | Y34: =SUM(Y16:Y29) -> 32.43138223 | Z34: =Y42 -> 43 | AA34: =SUM(AA16:AA29) -> 27.927668 | AC34: =SUM(AC16:AC29) -> 28.90603272 | AD34: =AA42 -> 45.5 | AE34: =SUM(AE16:AE29) -> 30.14853122 | AF34: =AC42 -> 43 | AG34: =SUM(AG16:AG29) -> 27.927668 | AI34: =SUM(AI16:AI29) -> 28.25378957 | AJ34: =AE42 -> 45.4 | AK34: =SUM(AK16:AK29) -> 29.49628807
X38: ='SWA data'!E2 -> Stretch Code | Y38: ='SWA data'!F2 -> 0 | Z38: ='SWA data'!G2 -> 0 | AA38: ='SWA data'!H2 -> 0 | AB38: ='SWA data'!I2 -> Passive House | AC38: ='SWA data'!J2 -> 0 | AD38: ='SWA data'!K2 -> 0 | AE38: ='SWA data'!L2 -> 0
W39: ='SWA data'!D3 -> scneario name | X39: ='SWA data'!E3 -> gas | Y39: ='SWA data'!F3 -> 0 | Z39: ='SWA data'!G3 -> electric | AA39: ='SWA data'!H3 -> 0 | AB39: ='SWA data'!I3 -> gas | AC39: ='SWA data'!J3 -> 0 | AD39: ='SWA data'!K3 -> electric | AE39: ='SWA data'!L3 -> 0
X41: ='SWA data'!E5 -> gas EUI | Y41: ='SWA data'!F5 -> elec EUI | Z41: ='SWA data'!G5 -> gas EUI | AA41: ='SWA data'!H5 -> elec EUI | AB41: ='SWA data'!I5 -> gas EUI | AC41: ='SWA data'!J5 -> elec EUI | AD41: ='SWA data'!K5 -> gas EUI | AE41: ='SWA data'!L5 -> elec EUI
W42: ='SWA data'!D12 -> primary school | X42: ='SWA data'!E12 -> 5 | Y42: ='SWA data'!F12 -> 43 | Z42: ='SWA data'!G12 -> 0 | AA42: ='SWA data'!H12 -> 45.5 | AB42: ='SWA data'!I12 -> 4 | AC42: ='SWA data'!J12 -> 43 | AD42: ='SWA data'!K12 -> 0 | AE42: ='SWA data'!L12 -> 45.4

Sheet IECC 2021 retrail strip (hidden)
A7: Area [m2]
A8: Total Building Area | B8: 2090.32
A9: Net Conditioned Building Area | B9: 2090.32 | P9: =B9*3.28*3.28 -> 22488.49869 | Q9: ft2
A10: Unconditioned Building Area | B10: 0
S11: efficiency level | T11: base | V11: base | X11: base | Z11: stretch | AB11: stretch | AD11: stretch | AF11: ph | AH11: ph | AJ11: ph
S12: heating | T12: gas | V12: elec | X12: elec | Z12: gas | AB12: elec | AD12: elec | AF12: gas | AH12: elec | AJ12: elec
A13: End Uses | S13: hot water | T13: gas | V13: gas | X13: elec | Z13: gas | AB13: gas | AD13: elec | AF13: gas | AH13: gas | AJ13: elec
B15: Electricity [GJ] | C15: Natural Gas [GJ] | D15: Gasoline [GJ] | E15: Diesel [GJ] | F15: Coal [GJ] | G15: Fuel Oil No 1 [GJ] | H15: Fuel Oil No 2 [GJ] | I15: Propane [GJ] | J15: Other Fuel 1 [GJ] | K15: Other Fuel 2 [GJ] | L15: District Cooling [GJ] | M15: District Heating [GJ] | N15: Water [m3] | P15: Gas (Mbtu/yr) | Q15: Elec (Mbtu/yr) | R15: Gas (kbtu/sf-yr) | S15: Elec (kBtu/sf-yr | T15: Gas (kbtu/sf-yr) | U15: Elec (kBtu/sf-yr | V15: Gas (kbtu/sf-yr) | W15: Elec (kBtu/sf-yr | X15: Gas (kbtu/sf-yr) | Y15: Elec (kBtu/sf-yr | Z15: Gas (kbtu/sf-yr) | AA15: Elec (kBtu/sf-yr | AB15: Gas (kbtu/sf-yr) | AC15: Elec (kBtu/sf-yr | AD15: Gas (kbtu/sf-yr) | AE15: Elec (kBtu/sf-yr | AF15: Gas (kbtu/sf-yr) | AG15: Elec (kBtu/sf-yr | AH15: Gas (kbtu/sf-yr) | AI15: Elec (kBtu/sf-yr | AJ15: Gas (kbtu/sf-yr) | AK15: Elec (kBtu/sf-yr
A16: Heating | B16: 0 | C16: 509.98 | D16: 0 | E16: 0 | F16: 0 | G16: 0 | H16: 0 | I16: 0 | J16: 0 | K16: 0 | L16: 0 | M16: 0 | N16: 0 | P16: =C16*947817/1000 -> 483367.7137 | Q16: =B16*947817/1000 -> 0 | R16: =P16/$P$9 -> 21.49399657 | S16: =Q16/$P$9 -> 0 | T16: =R16 -> 21.49399657 | U16: =S16 -> 0 | V16: =0 -> 0 | W16: =R16*0.95/3.2 -> 6.381030232 | X16: =0 -> 0 | Y16: =R16*0.95/3.2 -> 6.381030232 | Z16: =R16*0.3 -> 6.448198971 | AA16: =S16 -> 0 | AB16: 0 | AC16: =Z16*0.95/3.2 -> 1.914309069 | AD16: 0 | AE16: =AC16 -> 1.914309069 | AF16: =R16*0.1 -> 2.149399657 | AG16: 0 | AH16: 0 | AI16: =AF16*0.95/3.2 -> 0.6381030232 | AJ16: 0 | AK16: =AI16 -> 0.6381030232
A17: Cooling | B17: 61.78 | C17: 0 | D17: 0 | E17: 0 | F17: 0 | G17: 0 | H17: 0 | I17: 0 | J17: 0 | K17: 0 | L17: 0 | M17: 0 | N17: 0 | P17: =C17*947817/1000 -> 0 | Q17: =B17*947817/1000 -> 58556.13426 | R17: =P17/$P$9 -> 0 | S17: 2.603825852 | T17: =R17 -> 0 | U17: 2.603825852 | V17: =R17 -> 0 | W17: =S17 -> 2.603825852 | X17: =R17 -> 0 | Y17: =S17 -> 2.603825852 | Z17: =R17 -> 0 | AA17: =S17 -> 2.603825852 | AB17: =R17 -> 0 | AC17: =S17 -> 2.603825852 | AD17: =R17 -> 0 | AE17: =S17 -> 2.603825852 | AF17: =X17 -> 0 | AG17: =Y17 -> 2.603825852 | AH17: =X17 -> 0 | AI17: =Y17 -> 2.603825852 | AJ17: =X17 -> 0 | AK17: =Y17 -> 2.603825852
A18: Interior Lighting | B18: 341.99 | C18: 0 | D18: 0 | E18: 0 | F18: 0 | G18: 0 | H18: 0 | I18: 0 | J18: 0 | K18: 0 | L18: 0 | M18: 0 | N18: 0 | P18: 0 | Q18: 324143.9358 | R18: 0 | S18: 14.41376502 | T18: 0 | U18: 14.41376502 | V18: =R18 -> 0 | W18: 14.41376502 | X18: =R18 -> 0 | Y18: 14.41376502 | Z18: =R18 -> 0 | AA18: 14.41376502 | AB18: =R18 -> 0 | AC18: 14.41376502 | AD18: =R18 -> 0 | AE18: 14.41376502 | AF18: =X18 -> 0 | AG18: 14.41376502 | AH18: =X18 -> 0 | AI18: 14.41376502 | AJ18: =X18 -> 0 | AK18: 14.41376502
A19: Exterior Lighting | B19: 59.37 | C19: 0 | D19: 0 | E19: 0 | F19: 0 | G19: 0 | H19: 0 | I19: 0 | J19: 0 | K19: 0 | L19: 0 | M19: 0 | N19: 0 | P19: 0 | Q19: 56271.89529 | R19: 0 | S19: 2.502252199 | T19: 0 | U19: 2.502252199 | V19: 0 | W19: 2.502252199 | X19: 0 | Y19: 2.502252199 | Z19: 0 | AA19: 2.502252199 | AB19: 0 | AC19: 2.502252199 | AD19: 0 | AE19: 2.502252199 | AF19: 0 | AG19: 2.502252199 | AH19: 0 | AI19: 2.502252199 | AJ19: 0 | AK19: 2.502252199
A20: Interior Equipment | B20: 128.15 | C20: 0 | D20: 0 | E20: 0 | F20: 0 | G20: 0 | H20: 0 | I20: 0 | J20: 0 | K20: 0 | L20: 0 | M20: 0 | N20: 0 | P20: 0 | Q20: 121462.7486 | R20: 0 | S20: 5.40110526 | T20: 0 | U20: 5.40110526 | V20: 0 | W20: 5.40110526 | X20: 0 | Y20: 5.40110526 | Z20: 0 | AA20: 5.40110526 | AB20: 0 | AC20: 5.40110526 | AD20: 0 | AE20: 5.40110526 | AF20: 0 | AG20: 5.40110526 | AH20: 0 | AI20: 5.40110526 | AJ20: 0 | AK20: 5.40110526
A21: Exterior Equipment | B21: 0 | C21: 0 | D21: 0 | E21: 0 | F21: 0 | G21: 0 | H21: 0 | I21: 0 | J21: 0 | K21: 0 | L21: 0 | M21: 0 | N21: 0 | P21: 0 | Q21: 0 | R21: 0 | S21: 0 | T21: 0 | U21: 0 | V21: 0 | W21: 0 | X21: 0 | Y21: 0 | Z21: 0 | AA21: 0 | AB21: 0 | AC21: 0 | AD21: 0 | AE21: 0 | AF21: 0 | AG21: 0 | AH21: 0 | AI21: 0 | AJ21: 0 | AK21: 0
A22: Fans | B22: 94.14 | C22: 0 | D22: 0 | E22: 0 | F22: 0 | G22: 0 | H22: 0 | I22: 0 | J22: 0 | K22: 0 | L22: 0 | M22: 0 | N22: 0 | P22: 0 | Q22: 89227.49238 | R22: 0 | S22: 3.967694492 | T22: 0 | U22: 3.967694492 | V22: 0 | W22: 3.967694492 | X22: 0 | Y22: 3.967694492 | Z22: 0 | AA22: 3.967694492 | AB22: 0 | AC22: 3.967694492 | AD22: 0 | AE22: 3.967694492 | AF22: 0 | AG22: 3.967694492 | AH22: 0 | AI22: 3.967694492 | AJ22: 0 | AK22: 3.967694492
A23: Pumps | B23: 0 | C23: 0 | D23: 0 | E23: 0 | F23: 0 | G23: 0 | H23: 0 | I23: 0 | J23: 0 | K23: 0 | L23: 0 | M23: 0 | N23: 0 | P23: 0 | Q23: 0 | R23: 0 | S23: 0 | T23: 0 | U23: 0 | V23: 0 | W23: 0 | X23: 0 | Y23: 0 | Z23: 0 | AA23: 0 | AB23: 0 | AC23: 0 | AD23: 0 | AE23: 0 | AF23: 0 | AG23: 0 | AH23: 0 | AI23: 0 | AJ23: 0 | AK23: 0
A24: Heat Rejection | B24: 0 | C24: 0 | D24: 0 | E24: 0 | F24: 0 | G24: 0 | H24: 0 | I24: 0 | J24: 0 | K24: 0 | L24: 0 | M24: 0 | N24: 0 | P24: 0 | Q24: 0 | R24: 0 | S24: 0 | T24: 0 | U24: 0 | V24: 0 | W24: 0 | X24: 0 | Y24: 0 | Z24: 0 | AA24: 0 | AB24: 0 | AC24: 0 | AD24: 0 | AE24: 0 | AF24: 0 | AG24: 0 | AH24: 0 | AI24: 0 | AJ24: 0 | AK24: 0
A25: Humidification | B25: 0 | C25: 0 | D25: 0 | E25: 0 | F25: 0 | G25: 0 | H25: 0 | I25: 0 | J25: 0 | K25: 0 | L25: 0 | M25: 0 | N25: 0 | P25: 0 | Q25: 0 | R25: 0 | S25: 0 | T25: 0 | U25: 0 | V25: 0 | W25: 0 | X25: 0 | Y25: 0 | Z25: 0 | AA25: 0 | AB25: 0 | AC25: 0 | AD25: 0 | AE25: 0 | AF25: 0 | AG25: 0 | AH25: 0 | AI25: 0 | AJ25: 0 | AK25: 0
A26: Heat Recovery | B26: 0 | C26: 0 | D26: 0 | E26: 0 | F26: 0 | G26: 0 | H26: 0 | I26: 0 | J26: 0 | K26: 0 | L26: 0 | M26: 0 | N26: 0 | P26: 0 | Q26: 0 | R26: 0 | S26: 0 | T26: 0 | U26: 0 | V26: 0 | W26: 0 | X26: 0 | Y26: 0 | Z26: 0 | AA26: 0 | AB26: 0 | AC26: 0 | AD26: 0 | AE26: 0 | AF26: 0 | AG26: 0 | AH26: 0 | AI26: 0 | AJ26: 0 | AK26: 0
A27: Water Systems | B27: 61.45 | C27: 0 | D27: 0 | E27: 0 | F27: 0 | G27: 0 | H27: 0 | I27: 0 | J27: 0 | K27: 0 | L27: 0 | M27: 0 | N27: 87.3 | P27: 0 | Q27: 58243.35465 | R27: 0 | S27: 2.589917427 | T27: =(S27*1/0.95) -> 2.72622887 | U27: 0 | V27: =T27 -> 2.72622887 | W27: 0 | X27: 0 | Y27: =V27*0.95/2.5 -> 1.035966971 | Z27: =T27 -> 2.72622887 | AA27: 0 | AB27: =Z27 -> 2.72622887 | AC27: 0 | AD27: 0 | AE27: =Y27 -> 1.035966971 | AF27: =Z27 -> 2.72622887 | AG27: 0 | AH27: =AF27 -> 2.72622887 | AI27: 0 | AJ27: 0 | AK27: =AE27 -> 1.035966971
A28: Refrigeration | B28: 0 | C28: 0 | D28: 0 | E28: 0 | F28: 0 | G28: 0 | H28: 0 | I28: 0 | J28: 0 | K28: 0 | L28: 0 | M28: 0 | N28: 0 | P28: 0 | Q28: 0 | R28: 0 | S28: 0 | T28: =R28 -> 0 | U28: 0 | V28: 0 | W28: 0 | X28: 0 | Y28: 0 | Z28: 0 | AA28: 0 | AB28: 0 | AC28: 0 | AD28: 0 | AE28: 0 | AF28: =X28 -> 0 | AG28: 0 | AH28: =X28 -> 0 | AI28: 0 | AJ28: =X28 -> 0 | AK28: 0
A29: Generators | B29: 0 | C29: 0 | D29: 0 | E29: 0 | F29: 0 | G29: 0 | H29: 0 | I29: 0 | J29: 0 | K29: 0 | L29: 0 | M29: 0 | N29: 0 | P29: 0 | Q29: 0 | R29: 0 | S29: 0 | T29: 0 | U29: 0 | V29: 0 | W29: 0 | X29: 0 | Y29: 0 | Z29: 0 | AA29: 0 | AB29: 0 | AC29: 0 | AD29: 0 | AE29: 0 | AF29: 0 | AG29: 0 | AH29: 0 | AI29: 0 | AJ29: 0 | AK29: 0
A31: Total End Uses | B31: 746.89 | C31: 509.98 | D31: 0 | E31: 0 | F31: 0 | G31: 0 | H31: 0 | I31: 0 | J31: 0 | K31: 0 | L31: 0 | M31: 0 | N31: 87.3
A32: Note: Natural gas appears to be the principal heating source based on energy usage.
R33: gas EUI | S33: =SUM(R16:R29) -> 21.49399657 | U33: =SUM(T16:T29) -> 24.22022544 | W33: =SUM(V16:V29) -> 2.72622887 | Y33: =SUM(X16:X29) -> 0 | AA33: =SUM(Z16:Z29) -> 9.174427841 | AC33: =SUM(AB16:AB29) -> 2.72622887 | AE33: =SUM(AD16:AD29) -> 0 | AG33: =SUM(AF16:AF29) -> 4.875628527 | AI33: =SUM(AH16:AH29) -> 2.72622887 | AK33: =SUM(AJ16:AJ29) -> 0
R34: elec EUI | S34: =SUM(S16:S29) -> 31.47856025 | U34: =SUM(U16:U29) -> 28.88864283 | W34: =SUM(W16:W29) -> 35.26967306 | Y34: =SUM(Y16:Y29) -> 36.30564003 | AA34: =SUM(AA16:AA29) -> 28.88864283 | AC34: =SUM(AC16:AC29) -> 30.8029519 | AE34: =SUM(AE16:AE29) -> 31.83891887 | AG34: =SUM(AG16:AG29) -> 28.88864283 | AI34: =SUM(AI16:AI29) -> 29.52674585 | AK34: =SUM(AK16:AK29) -> 30.56271282

Sheet IECC 2021 stand alone retail (hidden)
A7: Area [m2]
A8: Total Building Area | B8: 2293.99
A9: Net Conditioned Building Area | B9: 2293.99 | P9: =B9*3.28*3.28 -> 24679.66202 | Q9: ft2
A10: Unconditioned Building Area | B10: 0
S11: efficiency level | T11: base | V11: base | X11: base | Z11: stretch | AB11: stretch | AD11: stretch | AF11: ph | AH11: ph | AJ11: ph
S12: heating | T12: gas | V12: elec | X12: elec | Z12: gas | AB12: elec | AD12: elec | AF12: gas | AH12: elec | AJ12: elec
A13: End Uses | S13: hot water | T13: gas | V13: gas | X13: elec | Z13: gas | AB13: gas | AD13: elec | AF13: gas | AH13: gas | AJ13: elec
B15: Electricity [GJ] | C15: Natural Gas [GJ] | D15: Gasoline [GJ] | E15: Diesel [GJ] | F15: Coal [GJ] | G15: Fuel Oil No 1 [GJ] | H15: Fuel Oil No 2 [GJ] | I15: Propane [GJ] | J15: Other Fuel 1 [GJ] | K15: Other Fuel 2 [GJ] | L15: District Cooling [GJ] | M15: District Heating [GJ] | N15: Water [m3] | P15: Gas (Mbtu/yr) | Q15: Elec (Mbtu/yr) | R15: Gas (kbtu/sf-yr) | S15: Elec (kBtu/sf-yr | T15: Gas (kbtu/sf-yr) | U15: Elec (kBtu/sf-yr | V15: Gas (kbtu/sf-yr) | W15: Elec (kBtu/sf-yr | X15: Gas (kbtu/sf-yr) | Y15: Elec (kBtu/sf-yr | Z15: Gas (kbtu/sf-yr) | AA15: Elec (kBtu/sf-yr | AB15: Gas (kbtu/sf-yr) | AC15: Elec (kBtu/sf-yr | AD15: Gas (kbtu/sf-yr) | AE15: Elec (kBtu/sf-yr | AF15: Gas (kbtu/sf-yr) | AG15: Elec (kBtu/sf-yr | AH15: Gas (kbtu/sf-yr) | AI15: Elec (kBtu/sf-yr | AJ15: Gas (kbtu/sf-yr) | AK15: Elec (kBtu/sf-yr
A16: Heating | B16: 0 | C16: 521.49 | D16: 0 | E16: 0 | F16: 0 | G16: 0 | H16: 0 | I16: 0 | J16: 0 | K16: 0 | L16: 0 | M16: 0 | N16: 0 | P16: =C16*947817/1000 -> 494277.0873 | Q16: =B16*947817/1000 -> 0 | R16: =P16/$P$9 -> 20.02770893 | S16: =Q16/$P$9 -> 0 | T16: =R16 -> 20.02770893 | U16: =S16 -> 0 | V16: =0 -> 0 | W16: =R16*0.95/3.2 -> 5.945726088 | X16: =0 -> 0 | Y16: =R16*0.95/3.2 -> 5.945726088 | Z16: =R16*0.3 -> 6.008312679 | AA16: =S16 -> 0 | AB16: 0 | AC16: =Z16*0.95/3.2 -> 1.783717827 | AD16: 0 | AE16: =AC16 -> 1.783717827 | AF16: =R16*0.1 -> 2.002770893 | AG16: 0 | AH16: 0 | AI16: =AF16*0.95/3.2 -> 0.5945726088 | AJ16: 0 | AK16: =AI16 -> 0.5945726088
A17: Cooling | B17: 73.2 | C17: 0 | D17: 0 | E17: 0 | F17: 0 | G17: 0 | H17: 0 | I17: 0 | J17: 0 | K17: 0 | L17: 0 | M17: 0 | N17: 0 | P17: =C17*947817/1000 -> 0 | Q17: =B17*947817/1000 -> 69380.2044 | R17: =P17/$P$9 -> 0 | S17: 2.811229925 | T17: =R17 -> 0 | U17: 2.811229925 | V17: =R17 -> 0 | W17: =S17 -> 2.811229925 | X17: =R17 -> 0 | Y17: =S17 -> 2.811229925 | Z17: =R17 -> 0 | AA17: =S17 -> 2.811229925 | AB17: =R17 -> 0 | AC17: =S17 -> 2.811229925 | AD17: =R17 -> 0 | AE17: =S17 -> 2.811229925 | AF17: =X17 -> 0 | AG17: =Y17 -> 2.811229925 | AH17: =X17 -> 0 | AI17: =Y17 -> 2.811229925 | AJ17: =X17 -> 0 | AK17: =Y17 -> 2.811229925
A18: Interior Lighting | B18: 205.49 | C18: 0 | D18: 0 | E18: 0 | F18: 0 | G18: 0 | H18: 0 | I18: 0 | J18: 0 | K18: 0 | L18: 0 | M18: 0 | N18: 0 | P18: 0 | Q18: 194766.9153 | R18: 0 | S18: 7.891798324 | T18: 0 | U18: 7.891798324 | V18: =R18 -> 0 | W18: 7.891798324 | X18: =R18 -> 0 | Y18: 7.891798324 | Z18: =R18 -> 0 | AA18: 7.891798324 | AB18: =R18 -> 0 | AC18: 7.891798324 | AD18: =R18 -> 0 | AE18: 7.891798324 | AF18: =X18 -> 0 | AG18: 7.891798324 | AH18: =X18 -> 0 | AI18: 7.891798324 | AJ18: =X18 -> 0 | AK18: 7.891798324
A19: Exterior Lighting | B19: 43.1 | C19: 0 | D19: 0 | E19: 0 | F19: 0 | G19: 0 | H19: 0 | I19: 0 | J19: 0 | K19: 0 | L19: 0 | M19: 0 | N19: 0 | P19: 0 | Q19: 40850.9127 | R19: 0 | S19: 1.655246035 | T19: 0 | U19: 1.655246035 | V19: 0 | W19: 1.655246035 | X19: 0 | Y19: 1.655246035 | Z19: 0 | AA19: 1.655246035 | AB19: 0 | AC19: 1.655246035 | AD19: 0 | AE19: 1.655246035 | AF19: 0 | AG19: 1.655246035 | AH19: 0 | AI19: 1.655246035 | AJ19: 0 | AK19: 1.655246035
A20: Interior Equipment | B20: 194.3 | C20: 0 | D20: 0 | E20: 0 | F20: 0 | G20: 0 | H20: 0 | I20: 0 | J20: 0 | K20: 0 | L20: 0 | M20: 0 | N20: 0 | P20: 0 | Q20: 184160.8431 | R20: 0 | S20: 7.462048831 | T20: 0 | U20: 7.462048831 | V20: 0 | W20: 7.462048831 | X20: 0 | Y20: 7.462048831 | Z20: 0 | AA20: 7.462048831 | AB20: 0 | AC20: 7.462048831 | AD20: 0 | AE20: 7.462048831 | AF20: 0 | AG20: 7.462048831 | AH20: 0 | AI20: 7.462048831 | AJ20: 0 | AK20: 7.462048831
A21: Exterior Equipment | B21: 0 | C21: 0 | D21: 0 | E21: 0 | F21: 0 | G21: 0 | H21: 0 | I21: 0 | J21: 0 | K21: 0 | L21: 0 | M21: 0 | N21: 0 | P21: 0 | Q21: 0 | R21: 0 | S21: 0 | T21: 0 | U21: 0 | V21: 0 | W21: 0 | X21: 0 | Y21: 0 | Z21: 0 | AA21: 0 | AB21: 0 | AC21: 0 | AD21: 0 | AE21: 0 | AF21: 0 | AG21: 0 | AH21: 0 | AI21: 0 | AJ21: 0 | AK21: 0
A22: Fans | B22: 139.67 | C22: 0 | D22: 0 | E22: 0 | F22: 0 | G22: 0 | H22: 0 | I22: 0 | J22: 0 | K22: 0 | L22: 0 | M22: 0 | N22: 0 | P22: 0 | Q22: 132381.6004 | R22: 0 | S22: 5.363995678 | T22: 0 | U22: 5.363995678 | V22: 0 | W22: 5.363995678 | X22: 0 | Y22: 5.363995678 | Z22: 0 | AA22: 5.363995678 | AB22: 0 | AC22: 5.363995678 | AD22: 0 | AE22: 5.363995678 | AF22: 0 | AG22: 5.363995678 | AH22: 0 | AI22: 5.363995678 | AJ22: 0 | AK22: 5.363995678
A23: Pumps | B23: 0 | C23: 0 | D23: 0 | E23: 0 | F23: 0 | G23: 0 | H23: 0 | I23: 0 | J23: 0 | K23: 0 | L23: 0 | M23: 0 | N23: 0 | P23: 0 | Q23: 0 | R23: 0 | S23: 0 | T23: 0 | U23: 0 | V23: 0 | W23: 0 | X23: 0 | Y23: 0 | Z23: 0 | AA23: 0 | AB23: 0 | AC23: 0 | AD23: 0 | AE23: 0 | AF23: 0 | AG23: 0 | AH23: 0 | AI23: 0 | AJ23: 0 | AK23: 0
A24: Heat Rejection | B24: 0 | C24: 0 | D24: 0 | E24: 0 | F24: 0 | G24: 0 | H24: 0 | I24: 0 | J24: 0 | K24: 0 | L24: 0 | M24: 0 | N24: 0 | P24: 0 | Q24: 0 | R24: 0 | S24: 0 | T24: 0 | U24: 0 | V24: 0 | W24: 0 | X24: 0 | Y24: 0 | Z24: 0 | AA24: 0 | AB24: 0 | AC24: 0 | AD24: 0 | AE24: 0 | AF24: 0 | AG24: 0 | AH24: 0 | AI24: 0 | AJ24: 0 | AK24: 0
A25: Humidification | B25: 0 | C25: 0 | D25: 0 | E25: 0 | F25: 0 | G25: 0 | H25: 0 | I25: 0 | J25: 0 | K25: 0 | L25: 0 | M25: 0 | N25: 0 | P25: 0 | Q25: 0 | R25: 0 | S25: 0 | T25: 0 | U25: 0 | V25: 0 | W25: 0 | X25: 0 | Y25: 0 | Z25: 0 | AA25: 0 | AB25: 0 | AC25: 0 | AD25: 0 | AE25: 0 | AF25: 0 | AG25: 0 | AH25: 0 | AI25: 0 | AJ25: 0 | AK25: 0
A26: Heat Recovery | B26: 0 | C26: 0 | D26: 0 | E26: 0 | F26: 0 | G26: 0 | H26: 0 | I26: 0 | J26: 0 | K26: 0 | L26: 0 | M26: 0 | N26: 0 | P26: 0 | Q26: 0 | R26: 0 | S26: 0 | T26: 0 | U26: 0 | V26: 0 | W26: 0 | X26: 0 | Y26: 0 | Z26: 0 | AA26: 0 | AB26: 0 | AC26: 0 | AD26: 0 | AE26: 0 | AF26: 0 | AG26: 0 | AH26: 0 | AI26: 0 | AJ26: 0 | AK26: 0
A27: Water Systems | B27: 0 | C27: 96.38 | D27: 0 | E27: 0 | F27: 0 | G27: 0 | H27: 0 | I27: 0 | J27: 0 | K27: 0 | L27: 0 | M27: 0 | N27: 134.99 | P27: 91350.60246 | Q27: 0 | R27: 3.701452735 | S27: 0 | T27: =R27 -> 3.701452735 | U27: 0 | V27: =T27 -> 3.701452735 | W27: 0 | X27: 0 | Y27: =V27*0.95/2.5 -> 1.406552039 | Z27: =T27 -> 3.701452735 | AA27: 0 | AB27: =Z27 -> 3.701452735 | AC27: 0 | AD27: 0 | AE27: =Y27 -> 1.406552039 | AF27: =Z27 -> 3.701452735 | AG27: 0 | AH27: =AF27 -> 3.701452735 | AI27: 0 | AJ27: 0 | AK27: =AE27 -> 1.406552039
A28: Refrigeration | B28: 0 | C28: 0 | D28: 0 | E28: 0 | F28: 0 | G28: 0 | H28: 0 | I28: 0 | J28: 0 | K28: 0 | L28: 0 | M28: 0 | N28: 0 | P28: 0 | Q28: 0 | R28: 0 | S28: 0 | T28: =R28 -> 0 | U28: 0 | V28: 0 | W28: 0 | X28: 0 | Y28: 0 | Z28: 0 | AA28: 0 | AB28: 0 | AC28: 0 | AD28: 0 | AE28: 0 | AF28: =X28 -> 0 | AG28: 0 | AH28: =X28 -> 0 | AI28: 0 | AJ28: =X28 -> 0 | AK28: 0
A29: Generators | B29: 0 | C29: 0 | D29: 0 | E29: 0 | F29: 0 | G29: 0 | H29: 0 | I29: 0 | J29: 0 | K29: 0 | L29: 0 | M29: 0 | N29: 0 | P29: 0 | Q29: 0 | R29: 0 | S29: 0 | T29: 0 | U29: 0 | V29: 0 | W29: 0 | X29: 0 | Y29: 0 | Z29: 0 | AA29: 0 | AB29: 0 | AC29: 0 | AD29: 0 | AE29: 0 | AF29: 0 | AG29: 0 | AH29: 0 | AI29: 0 | AJ29: 0 | AK29: 0
A31: Total End Uses | B31: 655.75 | C31: 617.87 | D31: 0 | E31: 0 | F31: 0 | G31: 0 | H31: 0 | I31: 0 | J31: 0 | K31: 0 | L31: 0 | M31: 0 | N31: 134.99
A32: Note: Natural gas appears to be the principal heating source based on energy usage.
R33: gas EUI | S33: =SUM(R16:R29) -> 23.72916166 | U33: =SUM(T16:T29) -> 23.72916166 | W33: =SUM(V16:V29) -> 3.701452735 | Y33: =SUM(X16:X29) -> 0 | AA33: =SUM(Z16:Z29) -> 9.709765413 | AC33: =SUM(AB16:AB29) -> 3.701452735 | AE33: =SUM(AD16:AD29) -> 0 | AG33: =SUM(AF16:AF29) -> 5.704223628 | AI33: =SUM(AH16:AH29) -> 3.701452735 | AK33: =SUM(AJ16:AJ29) -> 0
R34: elec EUI | S34: =SUM(S16:S29) -> 25.18431879 | U34: =SUM(U16:U29) -> 25.18431879 | W34: =SUM(W16:W29) -> 31.13004488 | Y34: =SUM(Y16:Y29) -> 32.53659692 | AA34: =SUM(AA16:AA29) -> 25.18431879 | AC34: =SUM(AC16:AC29) -> 26.96803662 | AE34: =SUM(AE16:AE29) -> 28.37458866 | AG34: =SUM(AG16:AG29) -> 25.18431879 | AI34: =SUM(AI16:AI29) -> 25.7788914 | AK34: =SUM(AK16:AK29) -> 27.18544344

Sheet IECC 2021 sit down restaurant (hidden)
A7: Area [m2]
A8: Total Building Area | B8: 511.15
A9: Net Conditioned Building Area | B9: 511.15 | P9: =B9*3.28*3.28 -> 5499.15616 | Q9: ft2
A10: Unconditioned Building Area | B10: 0
S11: efficiency level | T11: base | V11: base | X11: base | Z11: stretch | AB11: stretch | AD11: stretch | AF11: ph | AH11: ph | AJ11: ph
S12: heating | T12: gas | V12: elec | X12: elec | Z12: gas | AB12: elec | AD12: elec | AF12: gas | AH12: elec | AJ12: elec
A13: End Uses | S13: hot water | T13: gas | V13: gas | X13: elec | Z13: gas | AB13: gas | AD13: elec | AF13: gas | AH13: gas | AJ13: elec
S14: cooking | T14: gas | V14: gas | X14: elec | Z14: gas | AB14: gas | AD14: elec | AF14: gas | AH14: gas | AJ14: elec
B15: Electricity [GJ] | C15: Natural Gas [GJ] | D15: Gasoline [GJ] | E15: Diesel [GJ] | F15: Coal [GJ] | G15: Fuel Oil No 1 [GJ] | H15: Fuel Oil No 2 [GJ] | I15: Propane [GJ] | J15: Other Fuel 1 [GJ] | K15: Other Fuel 2 [GJ] | L15: District Cooling [GJ] | M15: District Heating [GJ] | N15: Water [m3] | P15: Gas (Mbtu/yr) | Q15: Elec (Mbtu/yr) | R15: Gas (kbtu/sf-yr) | S15: Elec (kBtu/sf-yr | T15: Gas (kbtu/sf-yr) | U15: Elec (kBtu/sf-yr | V15: Gas (kbtu/sf-yr) | W15: Elec (kBtu/sf-yr | X15: Gas (kbtu/sf-yr) | Y15: Elec (kBtu/sf-yr | Z15: Gas (kbtu/sf-yr) | AA15: Elec (kBtu/sf-yr | AB15: Gas (kbtu/sf-yr) | AC15: Elec (kBtu/sf-yr | AD15: Gas (kbtu/sf-yr) | AE15: Elec (kBtu/sf-yr | AF15: Gas (kbtu/sf-yr) | AG15: Elec (kBtu/sf-yr | AH15: Gas (kbtu/sf-yr) | AI15: Elec (kBtu/sf-yr | AJ15: Gas (kbtu/sf-yr) | AK15: Elec (kBtu/sf-yr
A16: Heating | B16: 0 | C16: 588.99 | D16: 0 | E16: 0 | F16: 0 | G16: 0 | H16: 0 | I16: 0 | J16: 0 | K16: 0 | L16: 0 | M16: 0 | N16: 0 | P16: =C16*947817/1000 -> 558254.7348 | Q16: =B16*947817/1000 -> 0 | R16: =P16/$P$9 -> 101.5164361 | S16: =Q16/$P$9 -> 0 | T16: =R16 -> 101.5164361 | U16: =S16 -> 0 | V16: =0 -> 0 | W16: =R16*0.95/3.2 -> 30.13769196 | X16: =0 -> 0 | Y16: =R16*0.95/3.2 -> 30.13769196 | Z16: =R16*0.3 -> 30.45493083 | AA16: =S16 -> 0 | AB16: 0 | AC16: =Z16*0.95/3.2 -> 9.041307589 | AD16: 0 | AE16: =AC16 -> 9.041307589 | AF16: =R16*0.1 -> 10.15164361 | AG16: 0 | AH16: 0 | AI16: =AF16*0.95/3.2 -> 3.013769196 | AJ16: 0 | AK16: =AI16 -> 3.013769196
A17: Cooling | B17: 66 | C17: 0 | D17: 0 | E17: 0 | F17: 0 | G17: 0 | H17: 0 | I17: 0 | J17: 0 | K17: 0 | L17: 0 | M17: 0 | N17: 0 | P17: =C17*947817/1000 -> 0 | Q17: =B17*947817/1000 -> 62555.922 | R17: =P17/$P$9 -> 0 | S17: 11.3755493 | T17: =R17 -> 0 | U17: 11.3755493 | V17: =R17 -> 0 | W17: =S17 -> 11.3755493 | X17: =R17 -> 0 | Y17: =S17 -> 11.3755493 | Z17: =R17 -> 0 | AA17: =S17 -> 11.3755493 | AB17: =R17 -> 0 | AC17: =S17 -> 11.3755493 | AD17: =R17 -> 0 | AE17: =S17 -> 11.3755493 | AF17: =X17 -> 0 | AG17: =Y17 -> 11.3755493 | AH17: =X17 -> 0 | AI17: =Y17 -> 11.3755493 | AJ17: =X17 -> 0 | AK17: =Y17 -> 11.3755493
A18: Interior Lighting | B18: 41.32 | C18: 0 | D18: 0 | E18: 0 | F18: 0 | G18: 0 | H18: 0 | I18: 0 | J18: 0 | K18: 0 | L18: 0 | M18: 0 | N18: 0 | P18: 0 | Q18: 39163.79844 | R18: 0 | S18: 7.121783288 | T18: 0 | U18: 7.121783288 | V18: =R18 -> 0 | W18: 7.121783288 | X18: =R18 -> 0 | Y18: 7.121783288 | Z18: =R18 -> 0 | AA18: 7.121783288 | AB18: =R18 -> 0 | AC18: 7.121783288 | AD18: =R18 -> 0 | AE18: 7.121783288 | AF18: =X18 -> 0 | AG18: 7.121783288 | AH18: =X18 -> 0 | AI18: 7.121783288 | AJ18: =X18 -> 0 | AK18: 7.121783288
A19: Exterior Lighting | B19: 25.25 | C19: 0 | D19: 0 | E19: 0 | F19: 0 | G19: 0 | H19: 0 | I19: 0 | J19: 0 | K19: 0 | L19: 0 | M19: 0 | N19: 0 | P19: 0 | Q19: 23932.37925 | R19: 0 | S19: 4.352009391 | T19: 0 | U19: 4.352009391 | V19: 0 | W19: 4.352009391 | X19: 0 | Y19: 4.352009391 | Z19: 0 | AA19: 4.352009391 | AB19: 0 | AC19: 4.352009391 | AD19: 0 | AE19: 4.352009391 | AF19: 0 | AG19: 4.352009391 | AH19: 0 | AI19: 4.352009391 | AJ19: 0 | AK19: 4.352009391
A20: Interior Equipment | B20: 435.66 | C20: 469.79 | D20: 0 | E20: 0 | F20: 0 | G20: 0 | H20: 0 | I20: 0 | J20: 0 | K20: 0 | L20: 0 | M20: 0 | N20: 0 | P20: 445274.9484 | Q20: 412925.9542 | R20: 80.97150462 | S20: 75.08896678 | T20: 80.97150462 | U20: 75.08896678 | V20: 80.97150462 | W20: 75.08896678 | X20: 0 | Y20: =(S20*0.9)+(R20/2.5) -> 99.96867195 | Z20: 80.97150462 | AA20: 75.08896678 | AB20: 80.97150462 | AC20: 75.08896678 | AD20: 0 | AE20: =Y20 -> 99.96867195 | AF20: =R20 -> 80.97150462 | AG20: 75.08896678 | AH20: =R20 -> 80.97150462 | AI20: 75.08896678 | AJ20: 0 | AK20: =AE20 -> 99.96867195
A21: Exterior Equipment | B21: 0 | C21: 0 | D21: 0 | E21: 0 | F21: 0 | G21: 0 | H21: 0 | I21: 0 | J21: 0 | K21: 0 | L21: 0 | M21: 0 | N21: 0 | P21: 0 | Q21: 0 | R21: 0 | S21: 0 | T21: 0 | U21: 0 | V21: 0 | W21: 0 | X21: 0 | Y21: 0 | Z21: 0 | AA21: 0 | AB21: 0 | AC21: 0 | AD21: 0 | AE21: 0 | AF21: 0 | AG21: 0 | AH21: 0 | AI21: 0 | AJ21: 0 | AK21: 0
A22: Fans | B22: 113.23 | C22: 0 | D22: 0 | E22: 0 | F22: 0 | G22: 0 | H22: 0 | I22: 0 | J22: 0 | K22: 0 | L22: 0 | M22: 0 | N22: 0 | P22: 0 | Q22: 107321.3189 | R22: 0 | S22: 19.51596132 | T22: 0 | U22: 19.51596132 | V22: 0 | W22: 19.51596132 | X22: 0 | Y22: 19.51596132 | Z22: 0 | AA22: 19.51596132 | AB22: 0 | AC22: 19.51596132 | AD22: 0 | AE22: 19.51596132 | AF22: 0 | AG22: 19.51596132 | AH22: 0 | AI22: 19.51596132 | AJ22: 0 | AK22: 19.51596132
A23: Pumps | B23: 0.45 | C23: 0 | D23: 0 | E23: 0 | F23: 0 | G23: 0 | H23: 0 | I23: 0 | J23: 0 | K23: 0 | L23: 0 | M23: 0 | N23: 0 | P23: 0 | Q23: 426.51765 | R23: 0 | S23: 0.0775605634 | T23: 0 | U23: 0.0775605634 | V23: 0 | W23: 0.0775605634 | X23: 0 | Y23: 0.0775605634 | Z23: 0 | AA23: 0.0775605634 | AB23: 0 | AC23: 0.0775605634 | AD23: 0 | AE23: 0.0775605634 | AF23: 0 | AG23: 0.0775605634 | AH23: 0 | AI23: 0.0775605634 | AJ23: 0 | AK23: 0.0775605634
A24: Heat Rejection | B24: 0 | C24: 0 | D24: 0 | E24: 0 | F24: 0 | G24: 0 | H24: 0 | I24: 0 | J24: 0 | K24: 0 | L24: 0 | M24: 0 | N24: 0 | P24: 0 | Q24: 0 | R24: 0 | S24: 0 | T24: 0 | U24: 0 | V24: 0 | W24: 0 | X24: 0 | Y24: 0 | Z24: 0 | AA24: 0 | AB24: 0 | AC24: 0 | AD24: 0 | AE24: 0 | AF24: 0 | AG24: 0 | AH24: 0 | AI24: 0 | AJ24: 0 | AK24: 0
A25: Humidification | B25: 0 | C25: 0 | D25: 0 | E25: 0 | F25: 0 | G25: 0 | H25: 0 | I25: 0 | J25: 0 | K25: 0 | L25: 0 | M25: 0 | N25: 0 | P25: 0 | Q25: 0 | R25: 0 | S25: 0 | T25: 0 | U25: 0 | V25: 0 | W25: 0 | X25: 0 | Y25: 0 | Z25: 0 | AA25: 0 | AB25: 0 | AC25: 0 | AD25: 0 | AE25: 0 | AF25: 0 | AG25: 0 | AH25: 0 | AI25: 0 | AJ25: 0 | AK25: 0
A26: Heat Recovery | B26: 0 | C26: 0 | D26: 0 | E26: 0 | F26: 0 | G26: 0 | H26: 0 | I26: 0 | J26: 0 | K26: 0 | L26: 0 | M26: 0 | N26: 0 | P26: 0 | Q26: 0 | R26: 0 | S26: 0 | T26: 0 | U26: 0 | V26: 0 | W26: 0 | X26: 0 | Y26: 0 | Z26: 0 | AA26: 0 | AB26: 0 | AC26: 0 | AD26: 0 | AE26: 0 | AF26: 0 | AG26: 0 | AH26: 0 | AI26: 0 | AJ26: 0 | AK26: 0
A27: Water Systems | B27: 75.51 | C27: 377.28 | D27: 0 | E27: 0 | F27: 0 | G27: 0 | H27: 0 | I27: 0 | J27: 0 | K27: 0 | L27: 0 | M27: 0 | N27: 2201.28 | P27: 357592.3978 | Q27: 71569.66167 | R27: 65.02677636 | S27: 13.01466254 | T27: =R27+(S27*1/0.95) -> 78.72642113 | U27: 0 | V27: =T27 -> 78.72642113 | W27: 0 | X27: 0 | Y27: =V27*0.95/2.5 -> 29.91604003 | Z27: =T27 -> 78.72642113 | AA27: 0 | AB27: =Z27 -> 78.72642113 | AC27: 0 | AD27: 0 | AE27: =Y27 -> 29.91604003 | AF27: =Z27 -> 78.72642113 | AG27: 0 | AH27: =AF27 -> 78.72642113 | AI27: 0 | AJ27: 0 | AK27: =AE27 -> 29.91604003
A28: Refrigeration | B28: 35.92 | C28: 0 | D28: 0 | E28: 0 | F28: 0 | G28: 0 | H28: 0 | I28: 0 | J28: 0 | K28: 0 | L28: 0 | M28: 0 | N28: 0 | P28: 0 | Q28: 34045.58664 | R28: 0 | S28: 6.191056527 | T28: =R28 -> 0 | U28: 6.191056527 | V28: 0 | W28: 6.191056527 | X28: 0 | Y28: 6.191056527 | Z28: 0 | AA28: 6.191056527 | AB28: 0 | AC28: 6.191056527 | AD28: 0 | AE28: 6.191056527 | AF28: =X28 -> 0 | AG28: 6.191056527 | AH28: =X28 -> 0 | AI28: 6.191056527 | AJ28: =X28 -> 0 | AK28: 6.191056527
A29: Generators | B29: 0 | C29: 0 | D29: 0 | E29: 0 | F29: 0 | G29: 0 | H29: 0 | I29: 0 | J29: 0 | K29: 0 | L29: 0 | M29: 0 | N29: 0 | P29: 0 | Q29: 0 | R29: 0 | S29: 0 | T29: 0 | U29: 0 | V29: 0 | W29: 0 | X29: 0 | Y29: 0 | Z29: 0 | AA29: 0 | AB29: 0 | AC29: 0 | AD29: 0 | AE29: 0 | AF29: 0 | AG29: 0 | AH29: 0 | AI29: 0 | AJ29: 0 | AK29: 0
A31: Total End Uses | B31: 793.34 | C31: 1436.06 | D31: 0 | E31: 0 | F31: 0 | G31: 0 | H31: 0 | I31: 0 | J31: 0 | K31: 0 | L31: 0 | M31: 0 | N31: 2201.28
A32: Note: Natural gas appears to be the principal heating source based on energy usage.
R33: gas EUI | S33: =SUM(R16:R29) -> 247.5147171 | U33: =SUM(T16:T29) -> 261.2143618 | W33: =SUM(V16:V29) -> 159.6979258 | Y33: =SUM(X16:X29) -> 0 | AA33: =SUM(Z16:Z29) -> 190.1528566 | AC33: =SUM(AB16:AB29) -> 159.6979258 | AE33: =SUM(AD16:AD29) -> 0 | AG33: =SUM(AF16:AF29) -> 169.8495694 | AI33: =SUM(AH16:AH29) -> 159.6979258 | AK33: =SUM(AJ16:AJ29) -> 0
R34: elec EUI | S34: =SUM(S16:S29) -> 136.7375497 | U34: =SUM(U16:U29) -> 123.7228872 | W34: =SUM(W16:W29) -> 153.8605791 | Y34: =SUM(Y16:Y29) -> 208.6563243 | AA34: =SUM(AA16:AA29) -> 123.7228872 | AC34: =SUM(AC16:AC29) -> 132.7641948 | AE34: =SUM(AE16:AE29) -> 187.55994 | AG34: =SUM(AG16:AG29) -> 123.7228872 | AI34: =SUM(AI16:AI29) -> 126.7366564 | AK34: =SUM(AK16:AK29) -> 181.5324016

Sheet IECC 2021 fast food restaurant (hidden)
A7: Area [m2]
A8: Total Building Area | B8: 232.34
A9: Net Conditioned Building Area | B9: 232.34 | P9: =B9*3.28*3.28 -> 2499.606656 | Q9: ft2
A10: Unconditioned Building Area | B10: 0
S11: efficiency level | T11: base | V11: base | X11: base | Z11: stretch | AB11: stretch | AD11: stretch | AF11: ph | AH11: ph | AJ11: ph
S12: heating | T12: gas | V12: elec | X12: elec | Z12: gas | AB12: elec | AD12: elec | AF12: gas | AH12: elec | AJ12: elec
A13: End Uses | S13: hot water | T13: gas | V13: gas | X13: elec | Z13: gas | AB13: gas | AD13: elec | AF13: gas | AH13: gas | AJ13: elec
S14: cooking | T14: gas | V14: gas | X14: elec | Z14: gas | AB14: gas | AD14: elec | AF14: gas | AH14: gas | AJ14: elec
B15: Electricity [GJ] | C15: Natural Gas [GJ] | D15: Gasoline [GJ] | E15: Diesel [GJ] | F15: Coal [GJ] | G15: Fuel Oil No 1 [GJ] | H15: Fuel Oil No 2 [GJ] | I15: Propane [GJ] | J15: Other Fuel 1 [GJ] | K15: Other Fuel 2 [GJ] | L15: District Cooling [GJ] | M15: District Heating [GJ] | N15: Water [m3] | P15: Gas (Mbtu/yr) | Q15: Elec (Mbtu/yr) | R15: Gas (kbtu/sf-yr) | S15: Elec (kBtu/sf-yr | T15: Gas (kbtu/sf-yr) | U15: Elec (kBtu/sf-yr | V15: Gas (kbtu/sf-yr) | W15: Elec (kBtu/sf-yr | X15: Gas (kbtu/sf-yr) | Y15: Elec (kBtu/sf-yr | Z15: Gas (kbtu/sf-yr) | AA15: Elec (kBtu/sf-yr | AB15: Gas (kbtu/sf-yr) | AC15: Elec (kBtu/sf-yr | AD15: Gas (kbtu/sf-yr) | AE15: Elec (kBtu/sf-yr | AF15: Gas (kbtu/sf-yr) | AG15: Elec (kBtu/sf-yr | AH15: Gas (kbtu/sf-yr) | AI15: Elec (kBtu/sf-yr | AJ15: Gas (kbtu/sf-yr) | AK15: Elec (kBtu/sf-yr
A16: Heating | B16: 0 | C16: 414.24 | D16: 0 | E16: 0 | F16: 0 | G16: 0 | H16: 0 | I16: 0 | J16: 0 | K16: 0 | L16: 0 | M16: 0 | N16: 0 | P16: =C16*947817/1000 -> 392623.7141 | Q16: =B16*947817/1000 -> 0 | R16: =P16/$P$9 -> 157.0741993 | S16: =Q16/$P$9 -> 0 | T16: =R16 -> 157.0741993 | U16: =S16 -> 0 | V16: =0 -> 0 | W16: =R16*0.95/3.2 -> 46.63140292 | X16: =0 -> 0 | Y16: =R16*0.95/3.2 -> 46.63140292 | Z16: =R16*0.3 -> 47.12225979 | AA16: =S16 -> 0 | AB16: 0 | AC16: =Z16*0.95/3.2 -> 13.98942088 | AD16: 0 | AE16: =AC16 -> 13.98942088 | AF16: =R16*0.1 -> 15.70741993 | AG16: 0 | AH16: 0 | AI16: =AF16*0.95/3.2 -> 4.663140292 | AJ16: 0 | AK16: =AI16 -> 4.663140292
A17: Cooling | B17: 30.2 | C17: 0 | D17: 0 | E17: 0 | F17: 0 | G17: 0 | H17: 0 | I17: 0 | J17: 0 | K17: 0 | L17: 0 | M17: 0 | N17: 0 | P17: =C17*947817/1000 -> 0 | Q17: =B17*947817/1000 -> 28624.0734 | R17: =P17/$P$9 -> 0 | S17: 11.4514311 | T17: =R17 -> 0 | U17: 11.4514311 | V17: =R17 -> 0 | W17: =S17 -> 11.4514311 | X17: =R17 -> 0 | Y17: =S17 -> 11.4514311 | Z17: =R17 -> 0 | AA17: =S17 -> 11.4514311 | AB17: =R17 -> 0 | AC17: =S17 -> 11.4514311 | AD17: =R17 -> 0 | AE17: =S17 -> 11.4514311 | AF17: =X17 -> 0 | AG17: =Y17 -> 11.4514311 | AH17: =X17 -> 0 | AI17: =Y17 -> 11.4514311 | AJ17: =X17 -> 0 | AK17: =Y17 -> 11.4514311
A18: Interior Lighting | B18: 20.62 | C18: 0 | D18: 0 | E18: 0 | F18: 0 | G18: 0 | H18: 0 | I18: 0 | J18: 0 | K18: 0 | L18: 0 | M18: 0 | N18: 0 | P18: 0 | Q18: 19543.98654 | R18: 0 | S18: 7.818824811 | T18: 0 | U18: 7.818824811 | V18: =R18 -> 0 | W18: 7.818824811 | X18: =R18 -> 0 | Y18: 7.818824811 | Z18: =R18 -> 0 | AA18: 7.818824811 | AB18: =R18 -> 0 | AC18: 7.818824811 | AD18: =R18 -> 0 | AE18: 7.818824811 | AF18: =X18 -> 0 | AG18: 7.818824811 | AH18: =X18 -> 0 | AI18: 7.818824811 | AJ18: =X18 -> 0 | AK18: 7.818824811
A19: Exterior Lighting | B19: 15.4 | C19: 0 | D19: 0 | E19: 0 | F19: 0 | G19: 0 | H19: 0 | I19: 0 | J19: 0 | K19: 0 | L19: 0 | M19: 0 | N19: 0 | P19: 0 | Q19: 14596.3818 | R19: 0 | S19: 5.839471488 | T19: 0 | U19: 5.839471488 | V19: 0 | W19: 5.839471488 | X19: 0 | Y19: 5.839471488 | Z19: 0 | AA19: 5.839471488 | AB19: 0 | AC19: 5.839471488 | AD19: 0 | AE19: 5.839471488 | AF19: 0 | AG19: 5.839471488 | AH19: 0 | AI19: 5.839471488 | AJ19: 0 | AK19: 5.839471488
A20: Interior Equipment | B20: 252.09 | C20: 477.16 | D20: 0 | E20: 0 | F20: 0 | G20: 0 | H20: 0 | I20: 0 | J20: 0 | K20: 0 | L20: 0 | M20: 0 | N20: 0 | P20: 452260.3597 | Q20: 238935.1875 | R20: 180.9326114 | S20: 95.58911477 | T20: 180.9326114 | U20: 95.58911477 | V20: 180.9326114 | W20: 95.58911477 | X20: 0 | Y20: =(S20*0.9)+(R20/2.5) -> 158.4032479 | Z20: 180.9326114 | AA20: 95.58911477 | AB20: 180.9326114 | AC20: 95.58911477 | AD20: 0 | AE20: =Y20 -> 158.4032479 | AF20: =R20 -> 180.9326114 | AG20: 95.58911477 | AH20: =R20 -> 180.9326114 | AI20: 95.58911477 | AJ20: 0 | AK20: 158.4032479
A21: Exterior Equipment | B21: 0 | C21: 0 | D21: 0 | E21: 0 | F21: 0 | G21: 0 | H21: 0 | I21: 0 | J21: 0 | K21: 0 | L21: 0 | M21: 0 | N21: 0 | P21: 0 | Q21: 0 | R21: 0 | S21: 0 | T21: 0 | U21: 0 | V21: 0 | W21: 0 | X21: 0 | Y21: 0 | Z21: 0 | AA21: 0 | AB21: 0 | AC21: 0 | AD21: 0 | AE21: 0 | AF21: 0 | AG21: 0 | AH21: 0 | AI21: 0 | AJ21: 0 | AK21: 0
A22: Fans | B22: 52.81 | C22: 0 | D22: 0 | E22: 0 | F22: 0 | G22: 0 | H22: 0 | I22: 0 | J22: 0 | K22: 0 | L22: 0 | M22: 0 | N22: 0 | P22: 0 | Q22: 50054.21577 | R22: 0 | S22: 20.02483697 | T22: 0 | U22: 20.02483697 | V22: 0 | W22: 20.02483697 | X22: 0 | Y22: 20.02483697 | Z22: 0 | AA22: 20.02483697 | AB22: 0 | AC22: 20.02483697 | AD22: 0 | AE22: 20.02483697 | AF22: 0 | AG22: 20.02483697 | AH22: 0 | AI22: 20.02483697 | AJ22: 0 | AK22: 20.02483697
A23: Pumps | B23: 0 | C23: 0 | D23: 0 | E23: 0 | F23: 0 | G23: 0 | H23: 0 | I23: 0 | J23: 0 | K23: 0 | L23: 0 | M23: 0 | N23: 0 | P23: 0 | Q23: 0 | R23: 0 | S23: 0 | T23: 0 | U23: 0 | V23: 0 | W23: 0 | X23: 0 | Y23: 0 | Z23: 0 | AA23: 0 | AB23: 0 | AC23: 0 | AD23: 0 | AE23: 0 | AF23: 0 | AG23: 0 | AH23: 0 | AI23: 0 | AJ23: 0 | AK23: 0
A24: Heat Rejection | B24: 0 | C24: 0 | D24: 0 | E24: 0 | F24: 0 | G24: 0 | H24: 0 | I24: 0 | J24: 0 | K24: 0 | L24: 0 | M24: 0 | N24: 0 | P24: 0 | Q24: 0 | R24: 0 | S24: 0 | T24: 0 | U24: 0 | V24: 0 | W24: 0 | X24: 0 | Y24: 0 | Z24: 0 | AA24: 0 | AB24: 0 | AC24: 0 | AD24: 0 | AE24: 0 | AF24: 0 | AG24: 0 | AH24: 0 | AI24: 0 | AJ24: 0 | AK24: 0
A25: Humidification | B25: 0 | C25: 0 | D25: 0 | E25: 0 | F25: 0 | G25: 0 | H25: 0 | I25: 0 | J25: 0 | K25: 0 | L25: 0 | M25: 0 | N25: 0 | P25: 0 | Q25: 0 | R25: 0 | S25: 0 | T25: 0 | U25: 0 | V25: 0 | W25: 0 | X25: 0 | Y25: 0 | Z25: 0 | AA25: 0 | AB25: 0 | AC25: 0 | AD25: 0 | AE25: 0 | AF25: 0 | AG25: 0 | AH25: 0 | AI25: 0 | AJ25: 0 | AK25: 0
A26: Heat Recovery | B26: 0 | C26: 0 | D26: 0 | E26: 0 | F26: 0 | G26: 0 | H26: 0 | I26: 0 | J26: 0 | K26: 0 | L26: 0 | M26: 0 | N26: 0 | P26: 0 | Q26: 0 | R26: 0 | S26: 0 | T26: 0 | U26: 0 | V26: 0 | W26: 0 | X26: 0 | Y26: 0 | Z26: 0 | AA26: 0 | AB26: 0 | AC26: 0 | AD26: 0 | AE26: 0 | AF26: 0 | AG26: 0 | AH26: 0 | AI26: 0 | AJ26: 0 | AK26: 0
A27: Water Systems | B27: 0 | C27: 221.03 | D27: 0 | E27: 0 | F27: 0 | G27: 0 | H27: 0 | I27: 0 | J27: 0 | K27: 0 | L27: 0 | M27: 0 | N27: 775.38 | P27: 209495.9915 | Q27: 0 | R27: 83.81158332 | S27: 0 | T27: =R27 -> 83.81158332 | U27: 0 | V27: =T27 -> 83.81158332 | W27: 0 | X27: 0 | Y27: =V27*0.95/2.5 -> 31.84840166 | Z27: =T27 -> 83.81158332 | AA27: 0 | AB27: =Z27 -> 83.81158332 | AC27: 0 | AD27: 0 | AE27: =Y27 -> 31.84840166 | AF27: =Z27 -> 83.81158332 | AG27: 0 | AH27: =AF27 -> 83.81158332 | AI27: 0 | AJ27: 0 | AK27: =AE27 -> 31.84840166
A28: Refrigeration | B28: 37.08 | C28: 0 | D28: 0 | E28: 0 | F28: 0 | G28: 0 | H28: 0 | I28: 0 | J28: 0 | K28: 0 | L28: 0 | M28: 0 | N28: 0 | P28: 0 | Q28: 35145.05436 | R28: 0 | S28: 14.06023395 | T28: =R28 -> 0 | U28: 14.06023395 | V28: 0 | W28: 14.06023395 | X28: 0 | Y28: 14.06023395 | Z28: 0 | AA28: 14.06023395 | AB28: 0 | AC28: 14.06023395 | AD28: 0 | AE28: 14.06023395 | AF28: =X28 -> 0 | AG28: 14.06023395 | AH28: =X28 -> 0 | AI28: 14.06023395 | AJ28: =X28 -> 0 | AK28: 14.06023395
A29: Generators | B29: 0 | C29: 0 | D29: 0 | E29: 0 | F29: 0 | G29: 0 | H29: 0 | I29: 0 | J29: 0 | K29: 0 | L29: 0 | M29: 0 | N29: 0 | P29: 0 | Q29: 0 | R29: 0 | S29: 0 | T29: 0 | U29: 0 | V29: 0 | W29: 0 | X29: 0 | Y29: 0 | Z29: 0 | AA29: 0 | AB29: 0 | AC29: 0 | AD29: 0 | AE29: 0 | AF29: 0 | AG29: 0 | AH29: 0 | AI29: 0 | AJ29: 0 | AK29: 0
A31: Total End Uses | B31: 408.21 | C31: 1112.43 | D31: 0 | E31: 0 | F31: 0 | G31: 0 | H31: 0 | I31: 0 | J31: 0 | K31: 0 | L31: 0 | M31: 0 | N31: 775.38
A32: Note: Natural gas appears to be the principal heating source based on energy usage.
R33: gas EUI | S33: =SUM(R16:R29) -> 421.818394 | U33: =SUM(T16:T29) -> 421.818394 | W33: =SUM(V16:V29) -> 264.7441947 | Y33: =SUM(X16:X29) -> 0 | AA33: =SUM(Z16:Z29) -> 311.8664545 | AC33: =SUM(AB16:AB29) -> 264.7441947 | AE33: =SUM(AD16:AD29) -> 0 | AG33: =SUM(AF16:AF29) -> 280.4516146 | AI33: =SUM(AH16:AH29) -> 264.7441947 | AK33: =SUM(AJ16:AJ29) -> 0
R34: elec EUI | S34: =SUM(S16:S29) -> 154.7839131 | U34: =SUM(U16:U29) -> 154.7839131 | W34: =SUM(W16:W29) -> 201.415316 | Y34: =SUM(Y16:Y29) -> 296.0778507 | AA34: =SUM(AA16:AA29) -> 154.7839131 | AC34: =SUM(AC16:AC29) -> 168.773334 | AE34: =SUM(AE16:AE29) -> 263.4358687 | AG34: =SUM(AG16:AG29) -> 154.7839131 | AI34: =SUM(AI16:AI29) -> 159.4470534 | AK34: =SUM(AK16:AK29) -> 254.1095881

Sheet IECC 2021 outpat health care (hidden)
A7: Area [m2]
A8: Total Building Area | B8: 3804.01
A9: Net Conditioned Building Area | B9: 3804.01 | P9: =B9*3.28*3.28 -> 40925.06118 | Q9: ft2
A10: Unconditioned Building Area | B10: 0
S11: efficiency level | T11: base | V11: base | X11: base | Z11: stretch | AB11: stretch | AD11: stretch | AF11: ph | AH11: ph | AJ11: ph
S12: heating | T12: gas | V12: elec | X12: elec | Z12: gas | AB12: elec | AD12: elec | AF12: gas | AH12: elec | AJ12: elec
A13: End Uses | S13: hot water | T13: gas | V13: gas | X13: elec | Z13: gas | AB13: gas | AD13: elec | AF13: gas | AH13: gas | AJ13: elec
B15: Electricity [GJ] | C15: Natural Gas [GJ] | D15: Gasoline [GJ] | E15: Diesel [GJ] | F15: Coal [GJ] | G15: Fuel Oil No 1 [GJ] | H15: Fuel Oil No 2 [GJ] | I15: Propane [GJ] | J15: Other Fuel 1 [GJ] | K15: Other Fuel 2 [GJ] | L15: District Cooling [GJ] | M15: District Heating [GJ] | N15: Water [m3] | P15: Gas (Mbtu/yr) | Q15: Elec (Mbtu/yr) | R15: Gas (kbtu/sf-yr) | S15: Elec (kBtu/sf-yr | T15: Gas (kbtu/sf-yr) | U15: Elec (kBtu/sf-yr | V15: Gas (kbtu/sf-yr) | W15: Elec (kBtu/sf-yr | X15: Gas (kbtu/sf-yr) | Y15: Elec (kBtu/sf-yr | Z15: Gas (kbtu/sf-yr) | AA15: Elec (kBtu/sf-yr | AB15: Gas (kbtu/sf-yr) | AC15: Elec (kBtu/sf-yr | AD15: Gas (kbtu/sf-yr) | AE15: Elec (kBtu/sf-yr | AF15: Gas (kbtu/sf-yr) | AG15: Elec (kBtu/sf-yr | AH15: Gas (kbtu/sf-yr) | AI15: Elec (kBtu/sf-yr | AJ15: Gas (kbtu/sf-yr) | AK15: Elec (kBtu/sf-yr
A16: Heating | B16: 0 | C16: 982.6 | D16: 0 | E16: 0 | F16: 0 | G16: 0 | H16: 0 | I16: 0 | J16: 0 | K16: 0 | L16: 0 | M16: 0 | N16: 0 | P16: =C16*947817/1000 -> 931324.9842 | Q16: =B16*947817/1000 -> 0 | R16: =P16/$P$9 -> 22.75683792 | S16: =Q16/$P$9 -> 0 | T16: =R16 -> 22.75683792 | U16: =S16 -> 0 | V16: =0 -> 0 | W16: =R16*0.95/3.2 -> 6.755936257 | X16: =0 -> 0 | Y16: =R16*0.95/3.2 -> 6.755936257 | Z16: =R16*0.3 -> 6.827051376 | AA16: =S16 -> 0 | AB16: 0 | AC16: =Z16*0.95/3.2 -> 2.026780877 | AD16: 0 | AE16: =AC16 -> 2.026780877 | AF16: =R16*0.1 -> 2.275683792 | AG16: 0 | AH16: 0 | AI16: =AF16*0.95/3.2 -> 0.6755936257 | AJ16: 0 | AK16: =AI16 -> 0.6755936257
A17: Cooling | B17: 418.71 | C17: 0 | D17: 0 | E17: 0 | F17: 0 | G17: 0 | H17: 0 | I17: 0 | J17: 0 | K17: 0 | L17: 0 | M17: 0 | N17: 0 | P17: =C17*947817/1000 -> 0 | Q17: =B17*947817/1000 -> 396860.4561 | R17: =P17/$P$9 -> 0 | S17: 9.697247715 | T17: =R17 -> 0 | U17: 9.697247715 | V17: =R17 -> 0 | W17: =S17 -> 9.697247715 | X17: =R17 -> 0 | Y17: =S17 -> 9.697247715 | Z17: =R17 -> 0 | AA17: =S17 -> 9.697247715 | AB17: =R17 -> 0 | AC17: =S17 -> 9.697247715 | AD17: =R17 -> 0 | AE17: =S17 -> 9.697247715 | AF17: =X17 -> 0 | AG17: =Y17 -> 9.697247715 | AH17: =X17 -> 0 | AI17: =Y17 -> 9.697247715 | AJ17: =X17 -> 0 | AK17: =Y17 -> 9.697247715
A18: Interior Lighting | B18: 347.68 | C18: 0 | D18: 0 | E18: 0 | F18: 0 | G18: 0 | H18: 0 | I18: 0 | J18: 0 | K18: 0 | L18: 0 | M18: 0 | N18: 0 | P18: 0 | Q18: 329537.0146 | R18: 0 | S18: 8.052205788 | T18: 0 | U18: 8.052205788 | V18: =R18 -> 0 | W18: 8.052205788 | X18: =R18 -> 0 | Y18: 8.052205788 | Z18: =R18 -> 0 | AA18: 8.052205788 | AB18: =R18 -> 0 | AC18: 8.052205788 | AD18: =R18 -> 0 | AE18: 8.052205788 | AF18: =X18 -> 0 | AG18: 8.052205788 | AH18: =X18 -> 0 | AI18: 8.052205788 | AJ18: =X18 -> 0 | AK18: 8.052205788
A19: Exterior Lighting | B19: 58.82 | C19: 0 | D19: 0 | E19: 0 | F19: 0 | G19: 0 | H19: 0 | I19: 0 | J19: 0 | K19: 0 | L19: 0 | M19: 0 | N19: 0 | P19: 0 | Q19: 55750.59594 | R19: 0 | S19: 1.36226054 | T19: 0 | U19: 1.36226054 | V19: 0 | W19: 1.36226054 | X19: 0 | Y19: 1.36226054 | Z19: 0 | AA19: 1.36226054 | AB19: 0 | AC19: 1.36226054 | AD19: 0 | AE19: 1.36226054 | AF19: 0 | AG19: 1.36226054 | AH19: 0 | AI19: 1.36226054 | AJ19: 0 | AK19: 1.36226054
A20: Interior Equipment | B20: 1386.97 | C20: 188.37 | D20: 0 | E20: 0 | F20: 0 | G20: 0 | H20: 0 | I20: 0 | J20: 0 | K20: 0 | L20: 0 | M20: 0 | N20: 0 | P20: 178540.2883 | Q20: 1314593.744 | R20: 4.362615061 | S20: 32.12197383 | T20: 4.362615061 | U20: 32.12197383 | V20: 4.362615061 | W20: 32.12197383 | X20: 4.362615061 | Y20: 32.12197383 | Z20: 4.362615061 | AA20: 32.12197383 | AB20: 4.362615061 | AC20: 32.12197383 | AD20: 4.362615061 | AE20: 32.12197383 | AF20: 4.362615061 | AG20: 32.12197383 | AH20: 4.362615061 | AI20: 32.12197383 | AJ20: 4.362615061 | AK20: 32.12197383
A21: Exterior Equipment | B21: 0 | C21: 0 | D21: 0 | E21: 0 | F21: 0 | G21: 0 | H21: 0 | I21: 0 | J21: 0 | K21: 0 | L21: 0 | M21: 0 | N21: 0 | P21: 0 | Q21: 0 | R21: 0 | S21: 0 | T21: 0 | U21: 0 | V21: 0 | W21: 0 | X21: 0 | Y21: 0 | Z21: 0 | AA21: 0 | AB21: 0 | AC21: 0 | AD21: 0 | AE21: 0 | AF21: 0 | AG21: 0 | AH21: 0 | AI21: 0 | AJ21: 0 | AK21: 0
A22: Fans | B22: 345.96 | C22: 0 | D22: 0 | E22: 0 | F22: 0 | G22: 0 | H22: 0 | I22: 0 | J22: 0 | K22: 0 | L22: 0 | M22: 0 | N22: 0 | P22: 0 | Q22: 327906.7693 | R22: 0 | S22: 8.0123709 | T22: 0 | U22: 8.0123709 | V22: 0 | W22: 8.0123709 | X22: 0 | Y22: 8.0123709 | Z22: 0 | AA22: 8.0123709 | AB22: 0 | AC22: 8.0123709 | AD22: 0 | AE22: 8.0123709 | AF22: 0 | AG22: 8.0123709 | AH22: 0 | AI22: 8.0123709 | AJ22: 0 | AK22: 8.0123709
A23: Pumps | B23: 2.57 | C23: 0 | D23: 0 | E23: 0 | F23: 0 | G23: 0 | H23: 0 | I23: 0 | J23: 0 | K23: 0 | L23: 0 | M23: 0 | N23: 0 | P23: 0 | Q23: 2435.88969 | R23: 0 | S23: 0.05952073423 | T23: 0 | U23: 0.05952073423 | V23: 0 | W23: 0.05952073423 | X23: 0 | Y23: 0.05952073423 | Z23: 0 | AA23: 0.05952073423 | AB23: 0 | AC23: 0.05952073423 | AD23: 0 | AE23: 0.05952073423 | AF23: 0 | AG23: 0.05952073423 | AH23: 0 | AI23: 0.05952073423 | AJ23: 0 | AK23: 0.05952073423
A24: Heat Rejection | B24: 0 | C24: 0 | D24: 0 | E24: 0 | F24: 0 | G24: 0 | H24: 0 | I24: 0 | J24: 0 | K24: 0 | L24: 0 | M24: 0 | N24: 0 | P24: 0 | Q24: 0 | R24: 0 | S24: 0 | T24: 0 | U24: 0 | V24: 0 | W24: 0 | X24: 0 | Y24: 0 | Z24: 0 | AA24: 0 | AB24: 0 | AC24: 0 | AD24: 0 | AE24: 0 | AF24: 0 | AG24: 0 | AH24: 0 | AI24: 0 | AJ24: 0 | AK24: 0
A25: Humidification | B25: 142.07 | C25: 0 | D25: 0 | E25: 0 | F25: 0 | G25: 0 | H25: 0 | I25: 0 | J25: 0 | K25: 0 | L25: 0 | M25: 0 | N25: 52.85 | P25: 0 | Q25: 134656.3612 | R25: 0 | S25: 3.290315452 | T25: 0 | U25: 3.290315452 | V25: 0 | W25: 3.290315452 | X25: 0 | Y25: 3.290315452 | Z25: 0 | AA25: 3.290315452 | AB25: 0 | AC25: 3.290315452 | AD25: 0 | AE25: 3.290315452 | AF25: 0 | AG25: 3.290315452 | AH25: 0 | AI25: 3.290315452 | AJ25: 0 | AK25: 3.290315452
A26: Heat Recovery | B26: 20.17 | C26: 0 | D26: 0 | E26: 0 | F26: 0 | G26: 0 | H26: 0 | I26: 0 | J26: 0 | K26: 0 | L26: 0 | M26: 0 | N26: 0 | P26: 0 | Q26: 19117.46889 | R26: 0 | S26: 0.4671335445 | T26: 0 | U26: 0.4671335445 | V26: 0 | W26: 0.4671335445 | X26: 0 | Y26: 0.4671335445 | Z26: 0 | AA26: 0.4671335445 | AB26: 0 | AC26: 0.4671335445 | AD26: 0 | AE26: 0.4671335445 | AF26: 0 | AG26: 0.4671335445 | AH26: 0 | AI26: 0.4671335445 | AJ26: 0 | AK26: 0.4671335445
A27: Water Systems | B27: 0 | C27: 307.9 | D27: 0 | E27: 0 | F27: 0 | G27: 0 | H27: 0 | I27: 0 | J27: 0 | K27: 0 | L27: 0 | M27: 0 | N27: 478.85 | P27: 291832.8543 | Q27: 0 | R27: 7.130908198 | S27: 0 | T27: =R27 -> 7.130908198 | U27: 0 | V27: =T27 -> 7.130908198 | W27: 0 | X27: 0 | Y27: =V27*0.95/2.5 -> 2.709745115 | Z27: =T27 -> 7.130908198 | AA27: 0 | AB27: =Z27 -> 7.130908198 | AC27: 0 | AD27: 0 | AE27: =Y27 -> 2.709745115 | AF27: =Z27 -> 7.130908198 | AG27: 0 | AH27: =AF27 -> 7.130908198 | AI27: 0 | AJ27: 0 | AK27: =AE27 -> 2.709745115
A28: Refrigeration | B28: 0 | C28: 0 | D28: 0 | E28: 0 | F28: 0 | G28: 0 | H28: 0 | I28: 0 | J28: 0 | K28: 0 | L28: 0 | M28: 0 | N28: 0 | P28: 0 | Q28: 0 | R28: 0 | S28: 0 | T28: =R28 -> 0 | U28: 0 | V28: 0 | W28: 0 | X28: 0 | Y28: 0 | Z28: 0 | AA28: 0 | AB28: 0 | AC28: 0 | AD28: 0 | AE28: 0 | AF28: =X28 -> 0 | AG28: 0 | AH28: =X28 -> 0 | AI28: 0 | AJ28: =X28 -> 0 | AK28: 0
A29: Generators | B29: 0 | C29: 0 | D29: 0 | E29: 0 | F29: 0 | G29: 0 | H29: 0 | I29: 0 | J29: 0 | K29: 0 | L29: 0 | M29: 0 | N29: 0 | P29: 0 | Q29: 0 | R29: 0 | S29: 0 | T29: 0 | U29: 0 | V29: 0 | W29: 0 | X29: 0 | Y29: 0 | Z29: 0 | AA29: 0 | AB29: 0 | AC29: 0 | AD29: 0 | AE29: 0 | AF29: 0 | AG29: 0 | AH29: 0 | AI29: 0 | AJ29: 0 | AK29: 0
A31: Total End Uses | B31: 2722.96 | C31: 1478.88 | D31: 0 | E31: 0 | F31: 0 | G31: 0 | H31: 0 | I31: 0 | J31: 0 | K31: 0 | L31: 0 | M31: 0 | N31: 531.7
A32: Note: Natural gas appears to be the principal heating source based on energy usage.
R33: gas EUI | S33: =SUM(R16:R29) -> 34.25036118 | U33: =SUM(T16:T29) -> 34.25036118 | W33: =SUM(V16:V29) -> 11.49352326 | Y33: =SUM(X16:X29) -> 4.362615061 | AA33: =SUM(Z16:Z29) -> 18.32057463 | AC33: =SUM(AB16:AB29) -> 11.49352326 | AE33: =SUM(AD16:AD29) -> 4.362615061 | AG33: =SUM(AF16:AF29) -> 13.76920705 | AI33: =SUM(AH16:AH29) -> 11.49352326 | AK33: =SUM(AJ16:AJ29) -> 4.362615061
R34: elec EUI | S34: =SUM(S16:S29) -> 63.06302851 | U34: =SUM(U16:U29) -> 63.06302851 | W34: =SUM(W16:W29) -> 69.81896477 | Y34: =SUM(Y16:Y29) -> 72.52870988 | AA34: =SUM(AA16:AA29) -> 63.06302851 | AC34: =SUM(AC16:AC29) -> 65.08980939 | AE34: =SUM(AE16:AE29) -> 67.7995545 | AG34: =SUM(AG16:AG29) -> 63.06302851 | AI34: =SUM(AI16:AI29) -> 63.73862213 | AK34: =SUM(AK16:AK29) -> 66.44836725

Sheet IECC 2021 small office (hidden)
A7: Area [m2]
A8: Total Building Area | B8: 511.16 | D8: =B8*3.28*3.28 -> 5499.263744
A9: Net Conditioned Building Area | B9: 511.16 | P9: =B9*3.28*3.28 -> 5499.263744 | Q9: ft2
A10: Unconditioned Building Area | B10: 0
S11: efficiency level | T11: base | V11: base | X11: base | Z11: stretch | AB11: stretch | AD11: stretch | AF11: ph | AH11: ph | AJ11: ph
S12: heating | T12: gas | V12: elec | X12: elec | Z12: gas | AB12: elec | AD12: elec | AF12: gas | AH12: elec | AJ12: elec
A13: End Uses | S13: hot water | T13: gas | V13: gas | X13: elec | Z13: gas | AB13: gas | AD13: elec | AF13: gas | AH13: gas | AJ13: elec
B15: Electricity [GJ] | C15: Natural Gas [GJ] | D15: Gasoline [GJ] | E15: Diesel [GJ] | F15: Coal [GJ] | G15: Fuel Oil No 1 [GJ] | H15: Fuel Oil No 2 [GJ] | I15: Propane [GJ] | J15: Other Fuel 1 [GJ] | K15: Other Fuel 2 [GJ] | L15: District Cooling [GJ] | M15: District Heating [GJ] | N15: Water [m3] | P15: Gas (Mbtu/yr) | Q15: Elec (Mbtu/yr) | R15: Gas (kbtu/sf-yr) | S15: Elec (kBtu/sf-yr | T15: Gas (kbtu/sf-yr) | U15: Elec (kBtu/sf-yr | V15: Gas (kbtu/sf-yr) | W15: Elec (kBtu/sf-yr | X15: Gas (kbtu/sf-yr) | Y15: Elec (kBtu/sf-yr | Z15: Gas (kbtu/sf-yr) | AA15: Elec (kBtu/sf-yr | AB15: Gas (kbtu/sf-yr) | AC15: Elec (kBtu/sf-yr | AD15: Gas (kbtu/sf-yr) | AE15: Elec (kBtu/sf-yr | AF15: Gas (kbtu/sf-yr) | AG15: Elec (kBtu/sf-yr | AH15: Gas (kbtu/sf-yr) | AI15: Elec (kBtu/sf-yr | AJ15: Gas (kbtu/sf-yr) | AK15: Elec (kBtu/sf-yr
A16: Heating | B16: 24.26 | C16: 20.31 | D16: 0 | E16: 0 | F16: 0 | G16: 0 | H16: 0 | I16: 0 | J16: 0 | K16: 0 | L16: 0 | M16: 0 | N16: 0 | P16: =C16*947817/1000 -> 19250.16327 | Q16: =B16*947817/1000 -> 22994.04042 | R16: =P16/$P$9 -> 3.500498279 | S16: =Q16/$P$9 -> 4.18129435 | T16: =R16 -> 3.500498279 | U16: =S16 -> 4.18129435 | V16: =0 -> 0 | W16: =(R16*0.95/3.2)+(S16*1/3.2) -> 2.345864911 | X16: =0 -> 0 | Y16: =W16 -> 2.345864911 | Z16: =R16*0.3 -> 1.050149484 | AA16: =S16*0.3 -> 1.254388305 | AB16: =0 -> 0 | AC16: =(Z16*0.95/3.2)+(AA16*1/3.2) -> 0.7037594732 | AD16: 0 | AE16: =AC16 -> 0.7037594732 | AF16: =R16*0.1 -> 0.3500498279 | AG16: =S16*0.1 -> 0.418129435 | AH16: 0 | AI16: =(AF16*0.95/3.2)+(AG16*1/3.2) -> 0.2345864911 | AJ16: 0 | AK16: =AI16 -> 0.2345864911
A17: Cooling | B17: 7.73 | C17: 0 | D17: 0 | E17: 0 | F17: 0 | G17: 0 | H17: 0 | I17: 0 | J17: 0 | K17: 0 | L17: 0 | M17: 0 | N17: 0 | P17: =C17*947817/1000 -> 0 | Q17: =B17*947817/1000 -> 7326.62541 | R17: =P17/$P$9 -> 0 | S17: 1.332292058 | T17: =R17 -> 0 | U17: 1.332292058 | V17: =R17 -> 0 | W17: =S17 -> 1.332292058 | X17: =R17 -> 0 | Y17: =S17 -> 1.332292058 | Z17: =R17 -> 0 | AA17: =S17 -> 1.332292058 | AB17: =R17 -> 0 | AC17: =S17 -> 1.332292058 | AD17: =R17 -> 0 | AE17: =S17 -> 1.332292058 | AF17: =X17 -> 0 | AG17: =Y17 -> 1.332292058 | AH17: =X17 -> 0 | AI17: =Y17 -> 1.332292058 | AJ17: =X17 -> 0 | AK17: =Y17 -> 1.332292058
A18: Interior Lighting | B18: 26.16 | C18: 0 | D18: 0 | E18: 0 | F18: 0 | G18: 0 | H18: 0 | I18: 0 | J18: 0 | K18: 0 | L18: 0 | M18: 0 | N18: 0 | P18: 0 | Q18: 24794.89272 | R18: 0 | S18: 4.508765877 | T18: 0 | U18: 4.508765877 | V18: =R18 -> 0 | W18: 4.508765877 | X18: =R18 -> 0 | Y18: 4.508765877 | Z18: =R18 -> 0 | AA18: 4.508765877 | AB18: =R18 -> 0 | AC18: 4.508765877 | AD18: =R18 -> 0 | AE18: 4.508765877 | AF18: =X18 -> 0 | AG18: 4.508765877 | AH18: =X18 -> 0 | AI18: 4.508765877 | AJ18: =X18 -> 0 | AK18: 4.508765877
A19: Exterior Lighting | B19: 9.86 | C19: 0 | D19: 0 | E19: 0 | F19: 0 | G19: 0 | H19: 0 | I19: 0 | J19: 0 | K19: 0 | L19: 0 | M19: 0 | N19: 0 | P19: 0 | Q19: 9345.47562 | R19: 0 | S19: 1.699404876 | T19: 0 | U19: 1.699404876 | V19: 0 | W19: 1.699404876 | X19: 0 | Y19: 1.699404876 | Z19: 0 | AA19: 1.699404876 | AB19: 0 | AC19: 1.699404876 | AD19: 0 | AE19: 1.699404876 | AF19: 0 | AG19: 1.699404876 | AH19: 0 | AI19: 1.699404876 | AJ19: 0 | AK19: 1.699404876
A20: Interior Equipment | B20: 48.3 | C20: 0 | D20: 0 | E20: 0 | F20: 0 | G20: 0 | H20: 0 | I20: 0 | J20: 0 | K20: 0 | L20: 0 | M20: 0 | N20: 0 | P20: 0 | Q20: 45779.5611 | R20: 0 | S20: 8.324670943 | T20: 0 | U20: 8.324670943 | V20: 0 | W20: 8.324670943 | X20: 0 | Y20: 8.324670943 | Z20: 0 | AA20: 8.324670943 | AB20: 0 | AC20: 8.324670943 | AD20: 0 | AE20: 8.324670943 | AF20: 0 | AG20: 8.324670943 | AH20: 0 | AI20: 8.324670943 | AJ20: 0 | AK20: 8.324670943
A21: Exterior Equipment | B21: 0 | C21: 0 | D21: 0 | E21: 0 | F21: 0 | G21: 0 | H21: 0 | I21: 0 | J21: 0 | K21: 0 | L21: 0 | M21: 0 | N21: 0 | P21: 0 | Q21: 0 | R21: 0 | S21: 0 | T21: 0 | U21: 0 | V21: 0 | W21: 0 | X21: 0 | Y21: 0 | Z21: 0 | AA21: 0 | AB21: 0 | AC21: 0 | AD21: 0 | AE21: 0 | AF21: 0 | AG21: 0 | AH21: 0 | AI21: 0 | AJ21: 0 | AK21: 0
A22: Fans | B22: 19.55 | C22: 0 | D22: 0 | E22: 0 | F22: 0 | G22: 0 | H22: 0 | I22: 0 | J22: 0 | K22: 0 | L22: 0 | M22: 0 | N22: 0 | P22: 0 | Q22: 18529.82235 | R22: 0 | S22: 3.369509668 | T22: 0 | U22: 3.369509668 | V22: 0 | W22: 3.369509668 | X22: 0 | Y22: 3.369509668 | Z22: 0 | AA22: 3.369509668 | AB22: 0 | AC22: 3.369509668 | AD22: 0 | AE22: 3.369509668 | AF22: 0 | AG22: 3.369509668 | AH22: 0 | AI22: 3.369509668 | AJ22: 0 | AK22: 3.369509668
A23: Pumps | B23: 0 | C23: 0 | D23: 0 | E23: 0 | F23: 0 | G23: 0 | H23: 0 | I23: 0 | J23: 0 | K23: 0 | L23: 0 | M23: 0 | N23: 0 | P23: 0 | Q23: 0 | R23: 0 | S23: 0 | T23: 0 | U23: 0 | V23: 0 | W23: 0 | X23: 0 | Y23: 0 | Z23: 0 | AA23: 0 | AB23: 0 | AC23: 0 | AD23: 0 | AE23: 0 | AF23: 0 | AG23: 0 | AH23: 0 | AI23: 0 | AJ23: 0 | AK23: 0
A24: Heat Rejection | B24: 0 | C24: 0 | D24: 0 | E24: 0 | F24: 0 | G24: 0 | H24: 0 | I24: 0 | J24: 0 | K24: 0 | L24: 0 | M24: 0 | N24: 0 | P24: 0 | Q24: 0 | R24: 0 | S24: 0 | T24: 0 | U24: 0 | V24: 0 | W24: 0 | X24: 0 | Y24: 0 | Z24: 0 | AA24: 0 | AB24: 0 | AC24: 0 | AD24: 0 | AE24: 0 | AF24: 0 | AG24: 0 | AH24: 0 | AI24: 0 | AJ24: 0 | AK24: 0
A25: Humidification | B25: 0 | C25: 0 | D25: 0 | E25: 0 | F25: 0 | G25: 0 | H25: 0 | I25: 0 | J25: 0 | K25: 0 | L25: 0 | M25: 0 | N25: 0 | P25: 0 | Q25: 0 | R25: 0 | S25: 0 | T25: 0 | U25: 0 | V25: 0 | W25: 0 | X25: 0 | Y25: 0 | Z25: 0 | AA25: 0 | AB25: 0 | AC25: 0 | AD25: 0 | AE25: 0 | AF25: 0 | AG25: 0 | AH25: 0 | AI25: 0 | AJ25: 0 | AK25: 0
A26: Heat Recovery | B26: 0 | C26: 0 | D26: 0 | E26: 0 | F26: 0 | G26: 0 | H26: 0 | I26: 0 | J26: 0 | K26: 0 | L26: 0 | M26: 0 | N26: 0 | P26: 0 | Q26: 0 | R26: 0 | S26: 0 | T26: 0 | U26: 0 | V26: 0 | W26: 0 | X26: 0 | Y26: 0 | Z26: 0 | AA26: 0 | AB26: 0 | AC26: 0 | AD26: 0 | AE26: 0 | AF26: 0 | AG26: 0 | AH26: 0 | AI26: 0 | AJ26: 0 | AK26: 0
A27: Water Systems | B27: 24.58 | C27: 0 | D27: 0 | E27: 0 | F27: 0 | G27: 0 | H27: 0 | I27: 0 | J27: 0 | K27: 0 | L27: 0 | M27: 0 | N27: 58.31 | P27: 0 | Q27: 23297.34186 | R27: 0 | S27: 4.236447449 | T27: =R27+(S27*1/0.95) -> 4.459418367 | U27: 0 | V27: =T27 -> 4.459418367 | W27: 0 | X27: 0 | Y27: =V27*0.95/2.5 -> 1.69457898 | Z27: =T27 -> 4.459418367 | AA27: 0 | AB27: =Z27 -> 4.459418367 | AC27: 0 | AD27: 0 | AE27: =Y27 -> 1.69457898 | AF27: =Z27 -> 4.459418367 | AG27: 0 | AH27: =AF27 -> 4.459418367 | AI27: 0 | AJ27: 0 | AK27: =AE27 -> 1.69457898
A28: Refrigeration | B28: 0 | C28: 0 | D28: 0 | E28: 0 | F28: 0 | G28: 0 | H28: 0 | I28: 0 | J28: 0 | K28: 0 | L28: 0 | M28: 0 | N28: 0 | P28: 0 | Q28: 0 | R28: 0 | S28: 0 | T28: =R28 -> 0 | U28: 0 | V28: 0 | W28: 0 | X28: 0 | Y28: 0 | Z28: 0 | AA28: 0 | AB28: 0 | AC28: 0 | AD28: 0 | AE28: 0 | AF28: =X28 -> 0 | AG28: 0 | AH28: =X28 -> 0 | AI28: 0 | AJ28: =X28 -> 0 | AK28: 0
A29: Generators | B29: 0 | C29: 0 | D29: 0 | E29: 0 | F29: 0 | G29: 0 | H29: 0 | I29: 0 | J29: 0 | K29: 0 | L29: 0 | M29: 0 | N29: 0 | P29: 0 | Q29: 0 | R29: 0 | S29: 0 | T29: 0 | U29: 0 | V29: 0 | W29: 0 | X29: 0 | Y29: 0 | Z29: 0 | AA29: 0 | AB29: 0 | AC29: 0 | AD29: 0 | AE29: 0 | AF29: 0 | AG29: 0 | AH29: 0 | AI29: 0 | AJ29: 0 | AK29: 0
A31: Total End Uses | B31: 160.44 | C31: 20.31 | D31: 0 | E31: 0 | F31: 0 | G31: 0 | H31: 0 | I31: 0 | J31: 0 | K31: 0 | L31: 0 | M31: 0 | N31: 58.31
A32: Note: Natural gas appears to be the principal heating source based on energy usage.
R33: gas EUI | S33: =SUM(R16:R29) -> 3.500498279 | U33: =SUM(T16:T29) -> 7.959916646 | W33: =SUM(V16:V29) -> 4.459418367 | Y33: =SUM(X16:X29) -> 0 | Z33: =V41 -> 4.8 | AA33: =SUM(Z16:Z29) -> 5.509567851 | AC33: =SUM(AB16:AB29) -> 4.459418367 | AD33: =X41 -> 0 | AE33: =SUM(AD16:AD29) -> 0 | AF33: =Z41 -> 0.6 | AG33: =SUM(AF16:AF29) -> 4.809468195 | AI33: =SUM(AH16:AH29) -> 4.459418367 | AJ33: =AB41 -> 0 | AK33: =SUM(AJ16:AJ29) -> 0
R34: elec EUI | S34: =SUM(S16:S29) -> 27.65238522 | U34: =SUM(U16:U29) -> 23.41593777 | W34: =SUM(W16:W29) -> 21.58050833 | Y34: =SUM(Y16:Y29) -> 23.27508731 | Z34: =W41 -> 29.1 | AA34: =SUM(AA16:AA29) -> 20.48903173 | AC34: =SUM(AC16:AC29) -> 19.9384029 | AD34: =Y41 -> 29.6 | AE34: =SUM(AE16:AE29) -> 21.63298187 | AF34: =AA41 -> 31.1 | AG34: =SUM(AG16:AG29) -> 19.65277286 | AI34: =SUM(AI16:AI29) -> 19.46922991 | AJ34: =AC41 -> 29.7 | AK34: =SUM(AK16:AK29) -> 21.16380889
V37: ='SWA data'!E2 -> Stretch Code | W37: ='SWA data'!F2 -> 0 | X37: ='SWA data'!G2 -> 0 | Y37: ='SWA data'!H2 -> 0 | Z37: ='SWA data'!I2 -> Passive House | AA37: ='SWA data'!J2 -> 0 | AB37: ='SWA data'!K2 -> 0 | AC37: ='SWA data'!L2 -> 0
U38: ='SWA data'!D3 -> scneario name | V38: ='SWA data'!E3 -> gas | W38: ='SWA data'!F3 -> 0 | X38: ='SWA data'!G3 -> electric | Y38: ='SWA data'!H3 -> 0 | Z38: ='SWA data'!I3 -> gas | AA38: ='SWA data'!J3 -> 0 | AB38: ='SWA data'!K3 -> electric | AC38: ='SWA data'!L3 -> 0
V40: ='SWA data'!E5 -> gas EUI | W40: ='SWA data'!F5 -> elec EUI | X40: ='SWA data'!G5 -> gas EUI | Y40: ='SWA data'!H5 -> elec EUI | Z40: ='SWA data'!I5 -> gas EUI | AA40: ='SWA data'!J5 -> elec EUI | AB40: ='SWA data'!K5 -> gas EUI | AC40: ='SWA data'!L5 -> elec EUI
U41: ='SWA data'!D9 -> small office | V41: ='SWA data'!E9 -> 4.8 | W41: ='SWA data'!F9 -> 29.1 | X41: ='SWA data'!G9 -> 0 | Y41: ='SWA data'!H9 -> 29.6 | Z41: ='SWA data'!I9 -> 0.6 | AA41: ='SWA data'!J9 -> 31.1 | AB41: ='SWA data'!K9 -> 0 | AC41: ='SWA data'!L9 -> 29.7

Sheet IECC 2021 medium office (hidden)
A7: Area [m2]
A8: Total Building Area | B8: 4982.19 | D8: =B8*3.28*3.28 -> 53600.3929
A9: Net Conditioned Building Area | B9: 4982.19 | P9: =B9*3.28*3.28 -> 53600.3929 | Q9: ft2
A10: Unconditioned Building Area | B10: 0
S11: efficiency level | T11: base | V11: base | X11: base | Z11: stretch | AB11: stretch | AD11: stretch | AF11: ph | AH11: ph | AJ11: ph
S12: heating | T12: gas | V12: elec | X12: elec | Z12: gas | AB12: elec | AD12: elec | AF12: gas | AH12: elec | AJ12: elec
A13: End Uses | S13: hot water | T13: gas | V13: gas | X13: elec | Z13: gas | AB13: gas | AD13: elec | AF13: gas | AH13: gas | AJ13: elec
B15: Electricity [GJ] | C15: Natural Gas [GJ] | D15: Gasoline [GJ] | E15: Diesel [GJ] | F15: Coal [GJ] | G15: Fuel Oil No 1 [GJ] | H15: Fuel Oil No 2 [GJ] | I15: Propane [GJ] | J15: Other Fuel 1 [GJ] | K15: Other Fuel 2 [GJ] | L15: District Cooling [GJ] | M15: District Heating [GJ] | N15: Water [m3] | P15: Gas (Mbtu/yr) | Q15: Elec (Mbtu/yr) | R15: Gas (kbtu/sf-yr) | S15: Elec (kBtu/sf-yr | T15: Gas (kbtu/sf-yr) | U15: Elec (kBtu/sf-yr | V15: Gas (kbtu/sf-yr) | W15: Elec (kBtu/sf-yr | X15: Gas (kbtu/sf-yr) | Y15: Elec (kBtu/sf-yr | Z15: Gas (kbtu/sf-yr) | AA15: Elec (kBtu/sf-yr | AB15: Gas (kbtu/sf-yr) | AC15: Elec (kBtu/sf-yr | AD15: Gas (kbtu/sf-yr) | AE15: Elec (kBtu/sf-yr | AF15: Gas (kbtu/sf-yr) | AG15: Elec (kBtu/sf-yr | AH15: Gas (kbtu/sf-yr) | AI15: Elec (kBtu/sf-yr | AJ15: Gas (kbtu/sf-yr) | AK15: Elec (kBtu/sf-yr
A16: Heating | B16: 255.17 | C16: 243.22 | D16: 0 | E16: 0 | F16: 0 | G16: 0 | H16: 0 | I16: 0 | J16: 0 | K16: 0 | L16: 0 | M16: 0 | N16: 0 | P16: =C16*947817/1000 -> 230528.0507 | Q16: =B16*947817/1000 -> 241854.4639 | R16: =P16/$P$9 -> 4.300864943 | S16: =Q16/$P$9 -> 4.512177072 | T16: =R16 -> 4.300864943 | U16: =S16 -> 4.512177072 | V16: =0 -> 0 | W16: =(S16*1/3.2)+R16*0.95/3.2 -> 2.686874615 | X16: =0 -> 0 | Y16: =(S16*1/3.2)+R16*0.95/3.2 -> 2.686874615 | Z16: =R16*0.3 -> 1.290259483 | AA16: =S16*0.3 -> 1.353653122 | AB16: 0 | AC16: =(AA16*1/3.2)+Z16*0.95/3.2 -> 0.8060623845 | AD16: 0 | AE16: =AC16 -> 0.8060623845 | AF16: =R16*0.1 -> 0.4300864943 | AG16: =S16*0.1 -> 0.4512177072 | AH16: 0 | AI16: =(AG16*1/3.2)+AF16*0.95/3.2 -> 0.2686874615 | AJ16: 0 | AK16: =AI16 -> 0.2686874615
A17: Cooling | B17: 118.02 | C17: 0 | D17: 0 | E17: 0 | F17: 0 | G17: 0 | H17: 0 | I17: 0 | J17: 0 | K17: 0 | L17: 0 | M17: 0 | N17: 0 | P17: =C17*947817/1000 -> 0 | Q17: =B17*947817/1000 -> 111861.3623 | R17: =P17/$P$9 -> 0 | S17: 2.086950418 | T17: =R17 -> 0 | U17: 2.086950418 | V17: =R17 -> 0 | W17: =S17 -> 2.086950418 | X17: =R17 -> 0 | Y17: =S17 -> 2.086950418 | Z17: =R17 -> 0 | AA17: =S17 -> 2.086950418 | AB17: =R17 -> 0 | AC17: =S17 -> 2.086950418 | AD17: =R17 -> 0 | AE17: =S17 -> 2.086950418 | AF17: =X17 -> 0 | AG17: =Y17 -> 2.086950418 | AH17: =X17 -> 0 | AI17: =Y17 -> 2.086950418 | AJ17: =X17 -> 0 | AK17: =Y17 -> 2.086950418
A18: Interior Lighting | B18: 203.12 | C18: 0 | D18: 0 | E18: 0 | F18: 0 | G18: 0 | H18: 0 | I18: 0 | J18: 0 | K18: 0 | L18: 0 | M18: 0 | N18: 0 | P18: 0 | Q18: 192520.589 | R18: 0 | S18: 3.591775706 | T18: 0 | U18: 3.591775706 | V18: =R18 -> 0 | W18: 3.591775706 | X18: =R18 -> 0 | Y18: 3.591775706 | Z18: =R18 -> 0 | AA18: 3.591775706 | AB18: =R18 -> 0 | AC18: 3.591775706 | AD18: =R18 -> 0 | AE18: 3.591775706 | AF18: =X18 -> 0 | AG18: 3.591775706 | AH18: =X18 -> 0 | AI18: 3.591775706 | AJ18: =X18 -> 0 | AK18: 3.591775706
A19: Exterior Lighting | B19: 50.25 | C19: 0 | D19: 0 | E19: 0 | F19: 0 | G19: 0 | H19: 0 | I19: 0 | J19: 0 | K19: 0 | L19: 0 | M19: 0 | N19: 0 | P19: 0 | Q19: 47627.80425 | R19: 0 | S19: 0.8885719241 | T19: 0 | U19: 0.8885719241 | V19: 0 | W19: 0.8885719241 | X19: 0 | Y19: 0.8885719241 | Z19: 0 | AA19: 0.8885719241 | AB19: 0 | AC19: 0.8885719241 | AD19: 0 | AE19: 0.8885719241 | AF19: 0 | AG19: 0.8885719241 | AH19: 0 | AI19: 0.8885719241 | AJ19: 0 | AK19: 0.8885719241
A20: Interior Equipment | B20: 705.43 | C20: 0 | D20: 0 | E20: 0 | F20: 0 | G20: 0 | H20: 0 | I20: 0 | J20: 0 | K20: 0 | L20: 0 | M20: 0 | N20: 0 | P20: 0 | Q20: 668618.5463 | R20: 0 | S20: 12.47413517 | T20: 0 | U20: 12.47413517 | V20: 0 | W20: 12.47413517 | X20: 0 | Y20: 12.47413517 | Z20: 0 | AA20: 12.47413517 | AB20: 0 | AC20: 12.47413517 | AD20: 0 | AE20: 12.47413517 | AF20: 0 | AG20: 12.47413517 | AH20: 0 | AI20: 12.47413517 | AJ20: 0 | AK20: 12.47413517
A21: Exterior Equipment | B21: 11.66 | C21: 0 | D21: 0 | E21: 0 | F21: 0 | G21: 0 | H21: 0 | I21: 0 | J21: 0 | K21: 0 | L21: 0 | M21: 0 | N21: 0 | P21: 0 | Q21: 11051.54622 | R21: 0 | S21: 0.2061840524 | T21: 0 | U21: 0.2061840524 | V21: 0 | W21: 0.2061840524 | X21: 0 | Y21: 0.2061840524 | Z21: 0 | AA21: 0.2061840524 | AB21: 0 | AC21: 0.2061840524 | AD21: 0 | AE21: 0.2061840524 | AF21: 0 | AG21: 0.2061840524 | AH21: 0 | AI21: 0.2061840524 | AJ21: 0 | AK21: 0.2061840524
A22: Fans | B22: 86.29 | C22: 0 | D22: 0 | E22: 0 | F22: 0 | G22: 0 | H22: 0 | I22: 0 | J22: 0 | K22: 0 | L22: 0 | M22: 0 | N22: 0 | P22: 0 | Q22: 81787.12893 | R22: 0 | S22: 1.525868086 | T22: 0 | U22: 1.525868086 | V22: 0 | W22: 1.525868086 | X22: 0 | Y22: 1.525868086 | Z22: 0 | AA22: 1.525868086 | AB22: 0 | AC22: 1.525868086 | AD22: 0 | AE22: 1.525868086 | AF22: 0 | AG22: 1.525868086 | AH22: 0 | AI22: 1.525868086 | AJ22: 0 | AK22: 1.525868086
A23: Pumps | B23: 0.02 | C23: 0 | D23: 0 | E23: 0 | F23: 0 | G23: 0 | H23: 0 | I23: 0 | J23: 0 | K23: 0 | L23: 0 | M23: 0 | N23: 0 | P23: 0 | Q23: 18.95634 | R23: 0 | S23: 0.0003536604673 | T23: 0 | U23: 0.0003536604673 | V23: 0 | W23: 0.0003536604673 | X23: 0 | Y23: 0.0003536604673 | Z23: 0 | AA23: 0.0003536604673 | AB23: 0 | AC23: 0.0003536604673 | AD23: 0 | AE23: 0.0003536604673 | AF23: 0 | AG23: 0.0003536604673 | AH23: 0 | AI23: 0.0003536604673 | AJ23: 0 | AK23: 0.0003536604673
A24: Heat Rejection | B24: 0 | C24: 0 | D24: 0 | E24: 0 | F24: 0 | G24: 0 | H24: 0 | I24: 0 | J24: 0 | K24: 0 | L24: 0 | M24: 0 | N24: 0 | P24: 0 | Q24: 0 | R24: 0 | S24: 0 | T24: 0 | U24: 0 | V24: 0 | W24: 0 | X24: 0 | Y24: 0 | Z24: 0 | AA24: 0 | AB24: 0 | AC24: 0 | AD24: 0 | AE24: 0 | AF24: 0 | AG24: 0 | AH24: 0 | AI24: 0 | AJ24: 0 | AK24: 0
A25: Humidification | B25: 0 | C25: 0 | D25: 0 | E25: 0 | F25: 0 | G25: 0 | H25: 0 | I25: 0 | J25: 0 | K25: 0 | L25: 0 | M25: 0 | N25: 0 | P25: 0 | Q25: 0 | R25: 0 | S25: 0 | T25: 0 | U25: 0 | V25: 0 | W25: 0 | X25: 0 | Y25: 0 | Z25: 0 | AA25: 0 | AB25: 0 | AC25: 0 | AD25: 0 | AE25: 0 | AF25: 0 | AG25: 0 | AH25: 0 | AI25: 0 | AJ25: 0 | AK25: 0
A26: Heat Recovery | B26: 0 | C26: 0 | D26: 0 | E26: 0 | F26: 0 | G26: 0 | H26: 0 | I26: 0 | J26: 0 | K26: 0 | L26: 0 | M26: 0 | N26: 0 | P26: 0 | Q26: 0 | R26: 0 | S26: 0 | T26: 0 | U26: 0 | V26: 0 | W26: 0 | X26: 0 | Y26: 0 | Z26: 0 | AA26: 0 | AB26: 0 | AC26: 0 | AD26: 0 | AE26: 0 | AF26: 0 | AG26: 0 | AH26: 0 | AI26: 0 | AJ26: 0 | AK26: 0
A27: Water Systems | B27: 0 | C27: 112.33 | D27: 0 | E27: 0 | F27: 0 | G27: 0 | H27: 0 | I27: 0 | J27: 0 | K27: 0 | L27: 0 | M27: 0 | N27: 271.06 | P27: 106468.2836 | Q27: 0 | R27: 1.986334015 | S27: 0 | T27: =R27 -> 1.986334015 | U27: 0 | V27: =T27 -> 1.986334015 | W27: 0 | X27: 0 | Y27: =V27*0.95/2.5 -> 0.7548069256 | Z27: =T27 -> 1.986334015 | AA27: 0 | AB27: =Z27 -> 1.986334015 | AC27: 0 | AD27: 0 | AE27: =Y27 -> 0.7548069256 | AF27: =Z27 -> 1.986334015 | AG27: 0 | AH27: =AF27 -> 1.986334015 | AI27: 0 | AJ27: 0 | AK27: =AE27 -> 0.7548069256
A28: Refrigeration | B28: 0 | C28: 0 | D28: 0 | E28: 0 | F28: 0 | G28: 0 | H28: 0 | I28: 0 | J28: 0 | K28: 0 | L28: 0 | M28: 0 | N28: 0 | P28: 0 | Q28: 0 | R28: 0 | S28: 0 | T28: =R28 -> 0 | U28: 0 | V28: 0 | W28: 0 | X28: 0 | Y28: 0 | Z28: 0 | AA28: 0 | AB28: 0 | AC28: 0 | AD28: 0 | AE28: 0 | AF28: =X28 -> 0 | AG28: 0 | AH28: =X28 -> 0 | AI28: 0 | AJ28: =X28 -> 0 | AK28: 0
A29: Generators | B29: 0 | C29: 0 | D29: 0 | E29: 0 | F29: 0 | G29: 0 | H29: 0 | I29: 0 | J29: 0 | K29: 0 | L29: 0 | M29: 0 | N29: 0 | P29: 0 | Q29: 0 | R29: 0 | S29: 0 | T29: 0 | U29: 0 | V29: 0 | W29: 0 | X29: 0 | Y29: 0 | Z29: 0 | AA29: 0 | AB29: 0 | AC29: 0 | AD29: 0 | AE29: 0 | AF29: 0 | AG29: 0 | AH29: 0 | AI29: 0 | AJ29: 0 | AK29: 0
A31: Total End Uses | B31: 1429.95 | C31: 355.55 | D31: 0 | E31: 0 | F31: 0 | G31: 0 | H31: 0 | I31: 0 | J31: 0 | K31: 0 | L31: 0 | M31: 0 | N31: 271.06
A32: Note: Natural gas appears to be the principal heating source based on energy usage.
R33: gas EUI | S33: =SUM(R16:R29) -> 6.287198958 | U33: =SUM(T16:T29) -> 6.287198958 | W33: =SUM(V16:V29) -> 1.986334015 | Y33: =SUM(X16:X29) -> 0 | Z33: =Y41 -> 0.5 | AA33: =SUM(Z16:Z29) -> 3.276593498 | AC33: =SUM(AB16:AB29) -> 1.986334015 | AD33: =AA41 -> 0 | AE33: =SUM(AD16:AD29) -> 0 | AF33: =AC41 -> 0.25 | AG33: =SUM(AF16:AF29) -> 2.416420509 | AI33: =SUM(AH16:AH29) -> 1.986334015 | AJ33: =AE41 -> 0 | AK33: =SUM(AJ16:AJ29) -> 0
R34: elec EUI | S34: =SUM(S16:S29) -> 25.28601609 | U34: =SUM(U16:U29) -> 25.28601609 | W34: =SUM(W16:W29) -> 23.46071364 | Y34: =SUM(Y16:Y29) -> 24.21552056 | Z34: =Z41 -> 43.1 | AA34: =SUM(AA16:AA29) -> 22.12749214 | AC34: =SUM(AC16:AC29) -> 21.5799014 | AD34: =AB41 -> 43.3 | AE34: =SUM(AE16:AE29) -> 22.33470833 | AF34: =AD41 -> 43.1 | AG34: =SUM(AG16:AG29) -> 21.22505673 | AI34: =SUM(AI16:AI29) -> 21.04252648 | AJ34: =AF41 -> 43.1 | AK34: =SUM(AK16:AK29) -> 21.79733341
Y37: ='SWA data'!E2 -> Stretch Code | Z37: ='SWA data'!F2 -> 0 | AA37: ='SWA data'!G2 -> 0 | AB37: ='SWA data'!H2 -> 0 | AC37: ='SWA data'!I2 -> Passive House | AD37: ='SWA data'!J2 -> 0 | AE37: ='SWA data'!K2 -> 0 | AF37: ='SWA data'!L2 -> 0
X38: ='SWA data'!D3 -> scneario name | Y38: ='SWA data'!E3 -> gas | Z38: ='SWA data'!F3 -> 0 | AA38: ='SWA data'!G3 -> electric | AB38: ='SWA data'!H3 -> 0 | AC38: ='SWA data'!I3 -> gas | AD38: ='SWA data'!J3 -> 0 | AE38: ='SWA data'!K3 -> electric | AF38: ='SWA data'!L3 -> 0
Y40: ='SWA data'!E5 -> gas EUI | Z40: ='SWA data'!F5 -> elec EUI | AA40: ='SWA data'!G5 -> gas EUI | AB40: ='SWA data'!H5 -> elec EUI | AC40: ='SWA data'!I5 -> gas EUI | AD40: ='SWA data'!J5 -> elec EUI | AE40: ='SWA data'!K5 -> gas EUI | AF40: ='SWA data'!L5 -> elec EUI
X41: ='SWA data'!D10 -> large office | Y41: ='SWA data'!E10 -> 0.5 | Z41: ='SWA data'!F10 -> 43.1 | AA41: ='SWA data'!G10 -> 0 | AB41: ='SWA data'!H10 -> 43.3 | AC41: ='SWA data'!I10 -> 0.25 | AD41: ='SWA data'!J10 -> 43.1 | AE41: ='SWA data'!K10 -> 0 | AF41: ='SWA data'!L10 -> 43.1

Sheet IECC 2021 large office (hidden)
A7: Area [m2]
A8: Total Building Area | B8: 46320.38 | D8: =B8*3.28*3.28 -> 498333.1762
A9: Net Conditioned Building Area | B9: 46320.38 | P9: =B9*3.28*3.28 -> 498333.1762 | Q9: ft2
A10: Unconditioned Building Area | B10: 0
S11: efficiency level | T11: base | V11: base | X11: base | Z11: stretch | AB11: stretch | AD11: stretch | AF11: ph | AH11: ph | AJ11: ph
S12: heating | T12: gas | V12: elec | X12: elec | Z12: gas | AB12: elec | AD12: elec | AF12: gas | AH12: elec | AJ12: elec
A13: End Uses | S13: hot water | T13: gas | V13: gas | X13: elec | Z13: gas | AB13: gas | AD13: elec | AF13: gas | AH13: gas | AJ13: elec
B15: Electricity [GJ] | C15: Natural Gas [GJ] | D15: Gasoline [GJ] | E15: Diesel [GJ] | F15: Coal [GJ] | G15: Fuel Oil No 1 [GJ] | H15: Fuel Oil No 2 [GJ] | I15: Propane [GJ] | J15: Other Fuel 1 [GJ] | K15: Other Fuel 2 [GJ] | L15: District Cooling [GJ] | M15: District Heating [GJ] | N15: Water [m3] | P15: Gas (Mbtu/yr) | Q15: Elec (Mbtu/yr) | R15: Gas (kbtu/sf-yr) | S15: Elec (kBtu/sf-yr | T15: Gas (kbtu/sf-yr) | U15: Elec (kBtu/sf-yr | V15: Gas (kbtu/sf-yr) | W15: Elec (kBtu/sf-yr | X15: Gas (kbtu/sf-yr) | Y15: Elec (kBtu/sf-yr | Z15: Gas (kbtu/sf-yr) | AA15: Elec (kBtu/sf-yr | AB15: Gas (kbtu/sf-yr) | AC15: Elec (kBtu/sf-yr | AD15: Gas (kbtu/sf-yr) | AE15: Elec (kBtu/sf-yr | AF15: Gas (kbtu/sf-yr) | AG15: Elec (kBtu/sf-yr | AH15: Gas (kbtu/sf-yr) | AI15: Elec (kBtu/sf-yr | AJ15: Gas (kbtu/sf-yr) | AK15: Elec (kBtu/sf-yr
A16: Heating | B16: 0 | C16: 1509.21 | D16: 0 | E16: 0 | F16: 0 | G16: 0 | H16: 0 | I16: 0 | J16: 0 | K16: 0 | L16: 0 | M16: 0 | N16: 0 | P16: =C16*947817/1000 -> 1430454.895 | Q16: =B16*947817/1000 -> 0 | R16: =P16/$P$9 -> 2.870478954 | S16: =Q16/$P$9 -> 0 | T16: =R16 -> 2.870478954 | U16: =S16 -> 0 | V16: =0 -> 0 | W16: =R16*0.95/3.2 -> 0.8521734396 | X16: =0 -> 0 | Y16: =R16*0.95/3.2 -> 0.8521734396 | Z16: =R16*0.3 -> 0.8611436863 | AA16: =S16 -> 0 | AB16: 0 | AC16: =Z16*0.95/3.2 -> 0.2556520319 | AD16: 0 | AE16: =AC16 -> 0.2556520319 | AF16: =R16*0.1 -> 0.2870478954 | AG16: 0 | AH16: 0 | AI16: =AF16*0.95/3.2 -> 0.08521734396 | AJ16: 0 | AK16: =AI16 -> 0.08521734396
A17: Cooling | B17: 828.71 | C17: 0 | D17: 0 | E17: 0 | F17: 0 | G17: 0 | H17: 0 | I17: 0 | J17: 0 | K17: 0 | L17: 7163.51 | M17: 0 | N17: 0 | P17: =C17*947817/1000 -> 0 | Q17: =B17*947817/1000 -> 785465.4261 | R17: =P17/$P$9 -> 0 | S17: 1.576185299 | T17: =R17 -> 0 | U17: 1.576185299 | V17: =R17 -> 0 | W17: =S17 -> 1.576185299 | X17: =R17 -> 0 | Y17: =S17 -> 1.576185299 | Z17: =R17 -> 0 | AA17: =S17 -> 1.576185299 | AB17: =R17 -> 0 | AC17: =S17 -> 1.576185299 | AD17: =R17 -> 0 | AE17: =S17 -> 1.576185299 | AF17: =X17 -> 0 | AG17: =Y17 -> 1.576185299 | AH17: =X17 -> 0 | AI17: =Y17 -> 1.576185299 | AJ17: =X17 -> 0 | AK17: =Y17 -> 1.576185299
A18: Interior Lighting | B18: 2025.76 | C18: 0 | D18: 0 | E18: 0 | F18: 0 | G18: 0 | H18: 0 | I18: 0 | J18: 0 | K18: 0 | L18: 0 | M18: 0 | N18: 0 | P18: 0 | Q18: 1920049.766 | R18: 0 | S18: 3.852943889 | T18: 0 | U18: 3.852943889 | V18: =R18 -> 0 | W18: 3.852943889 | X18: =R18 -> 0 | Y18: 3.852943889 | Z18: =R18 -> 0 | AA18: 3.852943889 | AB18: =R18 -> 0 | AC18: 3.852943889 | AD18: =R18 -> 0 | AE18: 3.852943889 | AF18: =X18 -> 0 | AG18: 3.852943889 | AH18: =X18 -> 0 | AI18: 3.852943889 | AJ18: =X18 -> 0 | AK18: 3.852943889
A19: Exterior Lighting | B19: 327.74 | C19: 0 | D19: 0 | E19: 0 | F19: 0 | G19: 0 | H19: 0 | I19: 0 | J19: 0 | K19: 0 | L19: 0 | M19: 0 | N19: 0 | P19: 0 | Q19: 310637.5436 | R19: 0 | S19: 0.6233531268 | T19: 0 | U19: 0.6233531268 | V19: 0 | W19: 0.6233531268 | X19: 0 | Y19: 0.6233531268 | Z19: 0 | AA19: 0.6233531268 | AB19: 0 | AC19: 0.6233531268 | AD19: 0 | AE19: 0.6233531268 | AF19: 0 | AG19: 0.6233531268 | AH19: 0 | AI19: 0.6233531268 | AJ19: 0 | AK19: 0.6233531268
A20: Interior Equipment | B20: 14676.4 | C20: 0 | D20: 0 | E20: 0 | F20: 0 | G20: 0 | H20: 0 | I20: 0 | J20: 0 | K20: 0 | L20: 0 | M20: 0 | N20: 0 | P20: 0 | Q20: 13910541.42 | R20: 0 | S20: 27.91413874 | T20: 0 | U20: 27.91413874 | V20: 0 | W20: 27.91413874 | X20: 0 | Y20: 27.91413874 | Z20: 0 | AA20: 27.91413874 | AB20: 0 | AC20: 27.91413874 | AD20: 0 | AE20: 27.91413874 | AF20: 0 | AG20: 27.91413874 | AH20: 0 | AI20: 27.91413874 | AJ20: 0 | AK20: 27.91413874
A21: Exterior Equipment | B21: 3183.22 | C21: 0 | D21: 0 | E21: 0 | F21: 0 | G21: 0 | H21: 0 | I21: 0 | J21: 0 | K21: 0 | L21: 0 | M21: 0 | N21: 0 | P21: 0 | Q21: 3017110.031 | R21: 0 | S21: 6.054403309 | T21: 0 | U21: 6.054403309 | V21: 0 | W21: 6.054403309 | X21: 0 | Y21: 6.054403309 | Z21: 0 | AA21: 6.054403309 | AB21: 0 | AC21: 6.054403309 | AD21: 0 | AE21: 6.054403309 | AF21: 0 | AG21: 6.054403309 | AH21: 0 | AI21: 6.054403309 | AJ21: 0 | AK21: 6.054403309
A22: Fans | B22: 1037.93 | C22: 0 | D22: 0 | E22: 0 | F22: 0 | G22: 0 | H22: 0 | I22: 0 | J22: 0 | K22: 0 | L22: 0 | M22: 0 | N22: 0 | P22: 0 | Q22: 983767.6988 | R22: 0 | S22: 1.974116406 | T22: 0 | U22: 1.974116406 | V22: 0 | W22: 1.974116406 | X22: 0 | Y22: 1.974116406 | Z22: 0 | AA22: 1.974116406 | AB22: 0 | AC22: 1.974116406 | AD22: 0 | AE22: 1.974116406 | AF22: 0 | AG22: 1.974116406 | AH22: 0 | AI22: 1.974116406 | AJ22: 0 | AK22: 1.974116406
A23: Pumps | B23: 369.75 | C23: 0 | D23: 0 | E23: 0 | F23: 0 | G23: 0 | H23: 0 | I23: 0 | J23: 0 | K23: 0 | L23: 0 | M23: 0 | N23: 0 | P23: 0 | Q23: 350455.3358 | R23: 0 | S23: 0.7032550761 | T23: 0 | U23: 0.7032550761 | V23: 0 | W23: 0.7032550761 | X23: 0 | Y23: 0.7032550761 | Z23: 0 | AA23: 0.7032550761 | AB23: 0 | AC23: 0.7032550761 | AD23: 0 | AE23: 0.7032550761 | AF23: 0 | AG23: 0.7032550761 | AH23: 0 | AI23: 0.7032550761 | AJ23: 0 | AK23: 0.7032550761
A24: Heat Rejection | B24: 227.19 | C24: 0 | D24: 0 | E24: 0 | F24: 0 | G24: 0 | H24: 0 | I24: 0 | J24: 0 | K24: 0 | L24: 0 | M24: 0 | N24: 2891.71 | P24: 0 | Q24: 215334.5442 | R24: 0 | S24: 0.4321095896 | T24: 0 | U24: 0.4321095896 | V24: 0 | W24: 0.4321095896 | X24: 0 | Y24: 0.4321095896 | Z24: 0 | AA24: 0.4321095896 | AB24: 0 | AC24: 0.4321095896 | AD24: 0 | AE24: 0.4321095896 | AF24: 0 | AG24: 0.4321095896 | AH24: 0 | AI24: 0.4321095896 | AJ24: 0 | AK24: 0.4321095896
A25: Humidification | B25: 0 | C25: 0 | D25: 0 | E25: 0 | F25: 0 | G25: 0 | H25: 0 | I25: 0 | J25: 0 | K25: 0 | L25: 0 | M25: 0 | N25: 0 | P25: 0 | Q25: 0 | R25: 0 | S25: 0 | T25: 0 | U25: 0 | V25: 0 | W25: 0 | X25: 0 | Y25: 0 | Z25: 0 | AA25: 0 | AB25: 0 | AC25: 0 | AD25: 0 | AE25: 0 | AF25: 0 | AG25: 0 | AH25: 0 | AI25: 0 | AJ25: 0 | AK25: 0
A26: Heat Recovery | B26: 42.42 | C26: 0 | D26: 0 | E26: 0 | F26: 0 | G26: 0 | H26: 0 | I26: 0 | J26: 0 | K26: 0 | L26: 0 | M26: 0 | N26: 0 | P26: 0 | Q26: 40206.39714 | R26: 0 | S26: 0.08068175883 | T26: 0 | U26: 0.08068175883 | V26: 0 | W26: 0.08068175883 | X26: 0 | Y26: 0.08068175883 | Z26: 0 | AA26: 0.08068175883 | AB26: 0 | AC26: 0.08068175883 | AD26: 0 | AE26: 0.08068175883 | AF26: 0 | AG26: 0.08068175883 | AH26: 0 | AI26: 0.08068175883 | AJ26: 0 | AK26: 0.08068175883
A27: Water Systems | B27: 0 | C27: 748.57 | D27: 0 | E27: 0 | F27: 0 | G27: 0 | H27: 0 | I27: 0 | J27: 0 | K27: 0 | L27: 0 | M27: 0 | N27: 2280.17 | P27: 709507.3717 | Q27: 0 | R27: 1.423761061 | S27: 0 | T27: =R27+(S27*1/0.95) -> 1.423761061 | U27: 0 | V27: =T27 -> 1.423761061 | W27: 0 | X27: 0 | Y27: =V27*0.95/2.5 -> 0.5410292032 | Z27: =T27 -> 1.423761061 | AA27: 0 | AB27: =Z27 -> 1.423761061 | AC27: 0 | AD27: 0 | AE27: =Y27 -> 0.5410292032 | AF27: =Z27 -> 1.423761061 | AG27: 0 | AH27: =AF27 -> 1.423761061 | AI27: 0 | AJ27: 0 | AK27: =AE27 -> 0.5410292032
A28: Refrigeration | B28: 0 | C28: 0 | D28: 0 | E28: 0 | F28: 0 | G28: 0 | H28: 0 | I28: 0 | J28: 0 | K28: 0 | L28: 0 | M28: 0 | N28: 0 | P28: 0 | Q28: 0 | R28: 0 | S28: 0 | T28: =R28 -> 0 | U28: 0 | V28: 0 | W28: 0 | X28: 0 | Y28: 0 | Z28: 0 | AA28: 0 | AB28: 0 | AC28: 0 | AD28: 0 | AE28: 0 | AF28: =X28 -> 0 | AG28: 0 | AH28: =X28 -> 0 | AI28: 0 | AJ28: =X28 -> 0 | AK28: 0
A29: Generators | B29: 0 | C29: 0 | D29: 0 | E29: 0 | F29: 0 | G29: 0 | H29: 0 | I29: 0 | J29: 0 | K29: 0 | L29: 0 | M29: 0 | N29: 0 | P29: 0 | Q29: 0 | R29: 0 | S29: 0 | T29: 0 | U29: 0 | V29: 0 | W29: 0 | X29: 0 | Y29: 0 | Z29: 0 | AA29: 0 | AB29: 0 | AC29: 0 | AD29: 0 | AE29: 0 | AF29: 0 | AG29: 0 | AH29: 0 | AI29: 0 | AJ29: 0 | AK29: 0
A31: Total End Uses | B31: 22719.12 | C31: 2257.78 | D31: 0 | E31: 0 | F31: 0 | G31: 0 | H31: 0 | I31: 0 | J31: 0 | K31: 0 | L31: 7163.51 | M31: 0 | N31: 5171.88
A32: Note: Natural gas appears to be the principal heating source based on energy usage.
R33: gas EUI | S33: =SUM(R16:R29) -> 4.294240016 | U33: =SUM(T16:T29) -> 4.294240016 | W33: =SUM(V16:V29) -> 1.423761061 | Y33: =SUM(X16:X29) -> 0 | Z33: =AA41 -> 0.5 | AA33: =SUM(Z16:Z29) -> 2.284904747 | AC33: =SUM(AB16:AB29) -> 1.423761061 | AD33: =AC41 -> 0 | AE33: =SUM(AD16:AD29) -> 0 | AF33: =AE41 -> 0.25 | AG33: =SUM(AF16:AF29) -> 1.710808956 | AI33: =SUM(AH16:AH29) -> 1.423761061 | AJ33: =AG41 -> 0 | AK33: =SUM(AJ16:AJ29) -> 0
R34: elec EUI | S34: =SUM(S16:S29) -> 43.21118719 | U34: =SUM(U16:U29) -> 43.21118719 | W34: =SUM(W16:W29) -> 44.06336063 | Y34: =SUM(Y16:Y29) -> 44.60438984 | Z34: =AB41 -> 43.1 | AA34: =SUM(AA16:AA29) -> 43.21118719 | AC34: =SUM(AC16:AC29) -> 43.46683923 | AD34: =AD41 -> 43.3 | AE34: =SUM(AE16:AE29) -> 44.00786843 | AF34: =AF41 -> 43.1 | AG34: =SUM(AG16:AG29) -> 43.21118719 | AI34: =SUM(AI16:AI29) -> 43.29640454 | AJ34: =AH41 -> 43.1 | AK34: =SUM(AK16:AK29) -> 43.83743374
AA37: ='SWA data'!E2 -> Stretch Code | AB37: ='SWA data'!F2 -> 0 | AC37: ='SWA data'!G2 -> 0 | AD37: ='SWA data'!H2 -> 0 | AE37: ='SWA data'!I2 -> Passive House | AF37: ='SWA data'!J2 -> 0 | AG37: ='SWA data'!K2 -> 0 | AH37: ='SWA data'!L2 -> 0
Z38: ='SWA data'!D3 -> scneario name | AA38: ='SWA data'!E3 -> gas | AB38: ='SWA data'!F3 -> 0 | AC38: ='SWA data'!G3 -> electric | AD38: ='SWA data'!H3 -> 0 | AE38: ='SWA data'!I3 -> gas | AF38: ='SWA data'!J3 -> 0 | AG38: ='SWA data'!K3 -> electric | AH38: ='SWA data'!L3 -> 0
AA40: ='SWA data'!E5 -> gas EUI | AB40: ='SWA data'!F5 -> elec EUI | AC40: ='SWA data'!G5 -> gas EUI | AD40: ='SWA data'!H5 -> elec EUI | AE40: ='SWA data'!I5 -> gas EUI | AF40: ='SWA data'!J5 -> elec EUI | AG40: ='SWA data'!K5 -> gas EUI | AH40: ='SWA data'!L5 -> elec EUI
Z41: ='SWA data'!D10 -> large office | AA41: ='SWA data'!E10 -> 0.5 | AB41: ='SWA data'!F10 -> 43.1 | AC41: ='SWA data'!G10 -> 0 | AD41: ='SWA data'!H10 -> 43.3 | AE41: ='SWA data'!I10 -> 0.25 | AF41: ='SWA data'!J10 -> 43.1 | AG41: ='SWA data'!K10 -> 0 | AH41: ='SWA data'!L10 -> 43.1

Sheet IECC 2021 small hotel (hidden)
A7: Area [m2]
A8: Total Building Area | B8: 4013.58 | D8: =B8*3.28*3.28 -> 43179.69907
A9: Net Conditioned Building Area | B9: 3725.09 | P9: =B9*3.28*3.28 -> 40076.00826 | Q9: ft2
A10: Unconditioned Building Area | B10: 288.49
S11: efficiency level | T11: base | V11: base | X11: base | Z11: stretch | AB11: stretch | AD11: stretch | AF11: ph | AH11: ph | AJ11: ph
S12: heating | T12: gas | V12: elec | X12: elec | Z12: gas | AB12: elec | AD12: elec | AF12: gas | AH12: elec | AJ12: elec
A13: End Uses | S13: hot water | T13: gas | V13: gas | X13: elec | Z13: gas | AB13: gas | AD13: elec | AF13: gas | AH13: gas | AJ13: elec
B15: Electricity [GJ] | C15: Natural Gas [GJ] | D15: Gasoline [GJ] | E15: Diesel [GJ] | F15: Coal [GJ] | G15: Fuel Oil No 1 [GJ] | H15: Fuel Oil No 2 [GJ] | I15: Propane [GJ] | J15: Other Fuel 1 [GJ] | K15: Other Fuel 2 [GJ] | L15: District Cooling [GJ] | M15: District Heating [GJ] | N15: Water [m3] | P15: Gas (Mbtu/yr) | Q15: Elec (Mbtu/yr) | R15: Gas (kbtu/sf-yr) | S15: Elec (kBtu/sf-yr | T15: Gas (kbtu/sf-yr) | U15: Elec (kBtu/sf-yr | V15: Gas (kbtu/sf-yr) | W15: Elec (kBtu/sf-yr | X15: Gas (kbtu/sf-yr) | Y15: Elec (kBtu/sf-yr | Z15: Gas (kbtu/sf-yr) | AA15: Elec (kBtu/sf-yr | AB15: Gas (kbtu/sf-yr) | AC15: Elec (kBtu/sf-yr | AD15: Gas (kbtu/sf-yr) | AE15: Elec (kBtu/sf-yr | AF15: Gas (kbtu/sf-yr) | AG15: Elec (kBtu/sf-yr | AH15: Gas (kbtu/sf-yr) | AI15: Elec (kBtu/sf-yr | AJ15: Gas (kbtu/sf-yr) | AK15: Elec (kBtu/sf-yr
A16: Heating | B16: 173.42 | C16: 60.98 | D16: 0 | E16: 0 | F16: 0 | G16: 0 | H16: 0 | I16: 0 | J16: 0 | K16: 0 | L16: 0 | M16: 0 | N16: 0 | P16: =C16*947817/1000 -> 57797.88066 | Q16: =B16*947817/1000 -> 164370.4241 | R16: =P16/$P$9 -> 1.442206526 | S16: =Q16/$P$9 -> 4.10146697 | T16: =R16 -> 1.442206526 | U16: =S16 -> 4.10146697 | V16: =0 -> 0 | W16: =(S16*1/3.2)+(R16*0.95/3.2) -> 1.709863491 | X16: =0 -> 0 | Y16: =W16 -> 1.709863491 | Z16: =R16*0.3 -> 0.4326619579 | AA16: =S16*0.3 -> 1.230440091 | AB16: 0 | AC16: =(AA16*1/3.2)+(Z16*0.95/3.2) -> 0.5129590472 | AD16: 0 | AE16: =AC16 -> 0.5129590472 | AF16: =R16*0.1 -> 0.1442206526 | AG16: =S16*0.1 -> 0.410146697 | AH16: 0 | AI16: =(AG16*1/3.2)+(AF16*0.95/3.2) -> 0.1709863491 | AJ16: 0 | AK16: =AI16 -> 0.1709863491
A17: Cooling | B17: 215.53 | C17: 0 | D17: 0 | E17: 0 | F17: 0 | G17: 0 | H17: 0 | I17: 0 | J17: 0 | K17: 0 | L17: 0 | M17: 0 | N17: 0 | P17: =C17*947817/1000 -> 0 | Q17: =B17*947817/1000 -> 204282.998 | R17: =P17/$P$9 -> 0 | S17: 5.097388859 | T17: =R17 -> 0 | U17: 5.097388859 | V17: =R17 -> 0 | W17: =S17 -> 5.097388859 | X17: =R17 -> 0 | Y17: =S17 -> 5.097388859 | Z17: =R17 -> 0 | AA17: =S17 -> 5.097388859 | AB17: =R17 -> 0 | AC17: =S17 -> 5.097388859 | AD17: =R17 -> 0 | AE17: =S17 -> 5.097388859 | AF17: =X17 -> 0 | AG17: =Y17 -> 5.097388859 | AH17: =X17 -> 0 | AI17: =Y17 -> 5.097388859 | AJ17: =X17 -> 0 | AK17: =Y17 -> 5.097388859
A18: Interior Lighting | B18: 199.24 | C18: 0 | D18: 0 | E18: 0 | F18: 0 | G18: 0 | H18: 0 | I18: 0 | J18: 0 | K18: 0 | L18: 0 | M18: 0 | N18: 0 | P18: 0 | Q18: 188843.0591 | R18: 0 | S18: 4.712122472 | T18: 0 | U18: 4.712122472 | V18: =R18 -> 0 | W18: 4.712122472 | X18: =R18 -> 0 | Y18: 4.712122472 | Z18: =R18 -> 0 | AA18: 4.712122472 | AB18: =R18 -> 0 | AC18: 4.712122472 | AD18: =R18 -> 0 | AE18: 4.712122472 | AF18: =X18 -> 0 | AG18: 4.712122472 | AH18: =X18 -> 0 | AI18: 4.712122472 | AJ18: =X18 -> 0 | AK18: 4.712122472
A19: Exterior Lighting | B19: 49.91 | C19: 0 | D19: 0 | E19: 0 | F19: 0 | G19: 0 | H19: 0 | I19: 0 | J19: 0 | K19: 0 | L19: 0 | M19: 0 | N19: 0 | P19: 0 | Q19: 47305.54647 | R19: 0 | S19: 1.180395666 | T19: 0 | U19: 1.180395666 | V19: 0 | W19: 1.180395666 | X19: 0 | Y19: 1.180395666 | Z19: 0 | AA19: 1.180395666 | AB19: 0 | AC19: 1.180395666 | AD19: 0 | AE19: 1.180395666 | AF19: 0 | AG19: 1.180395666 | AH19: 0 | AI19: 1.180395666 | AJ19: 0 | AK19: 1.180395666
A20: Interior Equipment | B20: 471.46 | C20: 421.49 | D20: 0 | E20: 0 | F20: 0 | G20: 0 | H20: 0 | I20: 0 | J20: 0 | K20: 0 | L20: 0 | M20: 0 | N20: 0 | P20: 399495.3873 | Q20: 446857.8028 | R20: 9.968442585 | S20: 11.15025728 | T20: 9.968442585 | U20: 11.15025728 | V20: 9.968442585 | W20: 11.15025728 | X20: 9.968442585 | Y20: 11.15025728 | Z20: 9.968442585 | AA20: 11.15025728 | AB20: 9.968442585 | AC20: 11.15025728 | AD20: 9.968442585 | AE20: 11.15025728 | AF20: 9.968442585 | AG20: 11.15025728 | AH20: 9.968442585 | AI20: 11.15025728 | AJ20: 9.968442585 | AK20: 11.15025728
A21: Exterior Equipment | B21: 0 | C21: 0 | D21: 0 | E21: 0 | F21: 0 | G21: 0 | H21: 0 | I21: 0 | J21: 0 | K21: 0 | L21: 0 | M21: 0 | N21: 0 | P21: 0 | Q21: 0 | R21: 0 | S21: 0 | T21: 0 | U21: 0 | V21: 0 | W21: 0 | X21: 0 | Y21: 0 | Z21: 0 | AA21: 0 | AB21: 0 | AC21: 0 | AD21: 0 | AE21: 0 | AF21: 0 | AG21: 0 | AH21: 0 | AI21: 0 | AJ21: 0 | AK21: 0
A22: Fans | B22: 274.75 | C22: 0 | D22: 0 | E22: 0 | F22: 0 | G22: 0 | H22: 0 | I22: 0 | J22: 0 | K22: 0 | L22: 0 | M22: 0 | N22: 0 | P22: 0 | Q22: 260412.7208 | R22: 0 | S22: 6.497970534 | T22: 0 | U22: 6.497970534 | V22: 0 | W22: 6.497970534 | X22: 0 | Y22: 6.497970534 | Z22: 0 | AA22: 6.497970534 | AB22: 0 | AC22: 6.497970534 | AD22: 0 | AE22: 6.497970534 | AF22: 0 | AG22: 6.497970534 | AH22: 0 | AI22: 6.497970534 | AJ22: 0 | AK22: 6.497970534
A23: Pumps | B23: 0.26 | C23: 0 | D23: 0 | E23: 0 | F23: 0 | G23: 0 | H23: 0 | I23: 0 | J23: 0 | K23: 0 | L23: 0 | M23: 0 | N23: 0 | P23: 0 | Q23: 246.43242 | R23: 0 | S23: 0.006149125892 | T23: 0 | U23: 0.006149125892 | V23: 0 | W23: 0.006149125892 | X23: 0 | Y23: 0.006149125892 | Z23: 0 | AA23: 0.006149125892 | AB23: 0 | AC23: 0.006149125892 | AD23: 0 | AE23: 0.006149125892 | AF23: 0 | AG23: 0.006149125892 | AH23: 0 | AI23: 0.006149125892 | AJ23: 0 | AK23: 0.006149125892
A24: Heat Rejection | B24: 0 | C24: 0 | D24: 0 | E24: 0 | F24: 0 | G24: 0 | H24: 0 | I24: 0 | J24: 0 | K24: 0 | L24: 0 | M24: 0 | N24: 0 | P24: 0 | Q24: 0 | R24: 0 | S24: 0 | T24: 0 | U24: 0 | V24: 0 | W24: 0 | X24: 0 | Y24: 0 | Z24: 0 | AA24: 0 | AB24: 0 | AC24: 0 | AD24: 0 | AE24: 0 | AF24: 0 | AG24: 0 | AH24: 0 | AI24: 0 | AJ24: 0 | AK24: 0
A25: Humidification | B25: 0 | C25: 0 | D25: 0 | E25: 0 | F25: 0 | G25: 0 | H25: 0 | I25: 0 | J25: 0 | K25: 0 | L25: 0 | M25: 0 | N25: 0 | P25: 0 | Q25: 0 | R25: 0 | S25: 0 | T25: 0 | U25: 0 | V25: 0 | W25: 0 | X25: 0 | Y25: 0 | Z25: 0 | AA25: 0 | AB25: 0 | AC25: 0 | AD25: 0 | AE25: 0 | AF25: 0 | AG25: 0 | AH25: 0 | AI25: 0 | AJ25: 0 | AK25: 0
A26: Heat Recovery | B26: 0 | C26: 0 | D26: 0 | E26: 0 | F26: 0 | G26: 0 | H26: 0 | I26: 0 | J26: 0 | K26: 0 | L26: 0 | M26: 0 | N26: 0 | P26: 0 | Q26: 0 | R26: 0 | S26: 0 | T26: 0 | U26: 0 | V26: 0 | W26: 0 | X26: 0 | Y26: 0 | Z26: 0 | AA26: 0 | AB26: 0 | AC26: 0 | AD26: 0 | AE26: 0 | AF26: 0 | AG26: 0 | AH26: 0 | AI26: 0 | AJ26: 0 | AK26: 0
A27: Water Systems | B27: 0 | C27: 1034.06 | D27: 0 | E27: 0 | F27: 0 | G27: 0 | H27: 0 | I27: 0 | J27: 0 | K27: 0 | L27: 0 | M27: 0 | N27: 2578.17 | P27: 980099.647 | Q27: 0 | R27: 24.45601969 | S27: 0 | T27: =R27+(S27*1/0.95) -> 24.45601969 | U27: 0 | V27: =T27 -> 24.45601969 | W27: 0 | X27: 0 | Y27: =V27*0.95/2.5 -> 9.293287482 | Z27: =T27 -> 24.45601969 | AA27: 0 | AB27: =Z27 -> 24.45601969 | AC27: 0 | AD27: 0 | AE27: =Y27 -> 9.293287482 | AF27: =Z27 -> 24.45601969 | AG27: 0 | AH27: =AF27 -> 24.45601969 | AI27: 0 | AJ27: 0 | AK27: =AE27 -> 9.293287482
A28: Refrigeration | B28: 0 | C28: 0 | D28: 0 | E28: 0 | F28: 0 | G28: 0 | H28: 0 | I28: 0 | J28: 0 | K28: 0 | L28: 0 | M28: 0 | N28: 0 | P28: 0 | Q28: 0 | R28: 0 | S28: 0 | T28: =R28 -> 0 | U28: 0 | V28: 0 | W28: 0 | X28: 0 | Y28: 0 | Z28: 0 | AA28: 0 | AB28: 0 | AC28: 0 | AD28: 0 | AE28: 0 | AF28: =X28 -> 0 | AG28: 0 | AH28: =X28 -> 0 | AI28: 0 | AJ28: =X28 -> 0 | AK28: 0
A29: Generators | B29: 0 | C29: 0 | D29: 0 | E29: 0 | F29: 0 | G29: 0 | H29: 0 | I29: 0 | J29: 0 | K29: 0 | L29: 0 | M29: 0 | N29: 0 | P29: 0 | Q29: 0 | R29: 0 | S29: 0 | T29: 0 | U29: 0 | V29: 0 | W29: 0 | X29: 0 | Y29: 0 | Z29: 0 | AA29: 0 | AB29: 0 | AC29: 0 | AD29: 0 | AE29: 0 | AF29: 0 | AG29: 0 | AH29: 0 | AI29: 0 | AJ29: 0 | AK29: 0
A31: Total End Uses | B31: 1384.56 | C31: 1516.53 | D31: 0 | E31: 0 | F31: 0 | G31: 0 | H31: 0 | I31: 0 | J31: 0 | K31: 0 | L31: 0 | M31: 0 | N31: 2578.17
A32: Note: Natural gas appears to be the principal heating source based on energy usage.
R33: gas EUI | S33: =SUM(R16:R29) -> 35.8666688 | U33: =SUM(T16:T29) -> 35.8666688 | W33: =SUM(V16:V29) -> 34.42446228 | Y33: =SUM(X16:X29) -> 9.968442585 | AA33: =SUM(Z16:Z29) -> 34.85712423 | AC33: =SUM(AB16:AB29) -> 34.42446228 | AE33: =SUM(AD16:AD29) -> 9.968442585 | AG33: =SUM(AF16:AF29) -> 34.56868293 | AI33: =SUM(AH16:AH29) -> 34.42446228 | AK33: =SUM(AJ16:AJ29) -> 9.968442585
R34: elec EUI | S34: =SUM(S16:S29) -> 32.74575091 | U34: =SUM(U16:U29) -> 32.74575091 | W34: =SUM(W16:W29) -> 30.35414743 | Y34: =SUM(Y16:Y29) -> 39.64743491 | AA34: =SUM(AA16:AA29) -> 29.87472403 | AC34: =SUM(AC16:AC29) -> 29.15724298 | AE34: =SUM(AE16:AE29) -> 38.45053047 | AG34: =SUM(AG16:AG29) -> 29.05443063 | AI34: =SUM(AI16:AI29) -> 28.81527029 | AK34: =SUM(AK16:AK29) -> 38.10855777

Sheet IECC 2021 large hotel (hidden)
A7: Area [m2]
A8: Total Building Area | B8: 11345.29 | D8: =B8*3.28*3.28 -> 122057.1679
A9: Net Conditioned Building Area | B9: 11345.29 | P9: =B9*3.28*3.28 -> 122057.1679 | Q9: ft2
A10: Unconditioned Building Area | B10: 0
S11: efficiency level | T11: base | V11: base | X11: base | Z11: stretch | AB11: stretch | AD11: stretch | AF11: ph | AH11: ph | AJ11: ph
S12: heating | T12: gas | V12: elec | X12: elec | Z12: gas | AB12: elec | AD12: elec | AF12: gas | AH12: elec | AJ12: elec
A13: End Uses | S13: hot water | T13: gas | V13: gas | X13: elec | Z13: gas | AB13: gas | AD13: elec | AF13: gas | AH13: gas | AJ13: elec
B15: Electricity [GJ] | C15: Natural Gas [GJ] | D15: Gasoline [GJ] | E15: Diesel [GJ] | F15: Coal [GJ] | G15: Fuel Oil No 1 [GJ] | H15: Fuel Oil No 2 [GJ] | I15: Propane [GJ] | J15: Other Fuel 1 [GJ] | K15: Other Fuel 2 [GJ] | L15: District Cooling [GJ] | M15: District Heating [GJ] | N15: Water [m3] | P15: Gas (Mbtu/yr) | Q15: Elec (Mbtu/yr) | R15: Gas (kbtu/sf-yr) | S15: Elec (kBtu/sf-yr | T15: Gas (kbtu/sf-yr) | U15: Elec (kBtu/sf-yr | V15: Gas (kbtu/sf-yr) | W15: Elec (kBtu/sf-yr | X15: Gas (kbtu/sf-yr) | Y15: Elec (kBtu/sf-yr | Z15: Gas (kbtu/sf-yr) | AA15: Elec (kBtu/sf-yr | AB15: Gas (kbtu/sf-yr) | AC15: Elec (kBtu/sf-yr | AD15: Gas (kbtu/sf-yr) | AE15: Elec (kBtu/sf-yr | AF15: Gas (kbtu/sf-yr) | AG15: Elec (kBtu/sf-yr | AH15: Gas (kbtu/sf-yr) | AI15: Elec (kBtu/sf-yr | AJ15: Gas (kbtu/sf-yr) | AK15: Elec (kBtu/sf-yr
A16: Heating | B16: 0 | C16: 1355.48 | D16: 0 | E16: 0 | F16: 0 | G16: 0 | H16: 0 | I16: 0 | J16: 0 | K16: 0 | L16: 0 | M16: 0 | N16: 0 | P16: =C16*947817/1000 -> 1284746.987 | Q16: =B16*947817/1000 -> 0 | R16: =P16/$P$9 -> 10.52578074 | S16: =Q16/$P$9 -> 0 | T16: =R16 -> 10.52578074 | U16: =S16 -> 0 | V16: =0 -> 0 | W16: =R16*0.95/3.2 -> 3.124841157 | X16: =0 -> 0 | Y16: =R16*0.95/3.2 -> 3.124841157 | Z16: =R16*0.3 -> 3.157734221 | AA16: =S16 -> 0 | AB16: 0 | AC16: =Z16*0.95/3.2 -> 0.937452347 | AD16: 0 | AE16: =AC16 -> 0.937452347 | AF16: =R16*0.1 -> 1.052578074 | AG16: 0 | AH16: 0 | AI16: =AF16*0.95/3.2 -> 0.3124841157 | AJ16: 0 | AK16: =AI16 -> 0.3124841157
A17: Cooling | B17: 677.95 | C17: 0 | D17: 0 | E17: 0 | F17: 0 | G17: 0 | H17: 0 | I17: 0 | J17: 0 | K17: 0 | L17: 0 | M17: 0 | N17: 0 | P17: =C17*947817/1000 -> 0 | Q17: =B17*947817/1000 -> 642572.5352 | R17: =P17/$P$9 -> 0 | S17: 5.264521093 | T17: =R17 -> 0 | U17: 5.264521093 | V17: =R17 -> 0 | W17: =S17 -> 5.264521093 | X17: =R17 -> 0 | Y17: =S17 -> 5.264521093 | Z17: =R17 -> 0 | AA17: =S17 -> 5.264521093 | AB17: =R17 -> 0 | AC17: =S17 -> 5.264521093 | AD17: =R17 -> 0 | AE17: =S17 -> 5.264521093 | AF17: =X17 -> 0 | AG17: =Y17 -> 5.264521093 | AH17: =X17 -> 0 | AI17: =Y17 -> 5.264521093 | AJ17: =X17 -> 0 | AK17: =Y17 -> 5.264521093
A18: Interior Lighting | B18: 602.89 | C18: 0 | D18: 0 | E18: 0 | F18: 0 | G18: 0 | H18: 0 | I18: 0 | J18: 0 | K18: 0 | L18: 0 | M18: 0 | N18: 0 | P18: 0 | Q18: 571429.3911 | R18: 0 | S18: 4.681653694 | T18: 0 | U18: 4.681653694 | V18: =R18 -> 0 | W18: 4.681653694 | X18: =R18 -> 0 | Y18: 4.681653694 | Z18: =R18 -> 0 | AA18: 4.681653694 | AB18: =R18 -> 0 | AC18: 4.681653694 | AD18: =R18 -> 0 | AE18: 4.681653694 | AF18: =X18 -> 0 | AG18: 4.681653694 | AH18: =X18 -> 0 | AI18: 4.681653694 | AJ18: =X18 -> 0 | AK18: 4.681653694
A19: Exterior Lighting | B19: 174.28 | C19: 0 | D19: 0 | E19: 0 | F19: 0 | G19: 0 | H19: 0 | I19: 0 | J19: 0 | K19: 0 | L19: 0 | M19: 0 | N19: 0 | P19: 0 | Q19: 165185.5468 | R19: 0 | S19: 1.353345728 | T19: 0 | U19: 1.353345728 | V19: 0 | W19: 1.353345728 | X19: 0 | Y19: 1.353345728 | Z19: 0 | AA19: 1.353345728 | AB19: 0 | AC19: 1.353345728 | AD19: 0 | AE19: 1.353345728 | AF19: 0 | AG19: 1.353345728 | AH19: 0 | AI19: 1.353345728 | AJ19: 0 | AK19: 1.353345728
A20: Interior Equipment | B20: 1728.14 | C20: 1788.84 | D20: 0 | E20: 0 | F20: 0 | G20: 0 | H20: 0 | I20: 0 | J20: 0 | K20: 0 | L20: 0 | M20: 0 | N20: 0 | P20: 1695492.962 | Q20: 1637960.47 | R20: 13.89097413 | S20: 13.4196172 | T20: 13.89097413 | U20: 13.4196172 | V20: 13.89097413 | W20: 13.4196172 | X20: 13.89097413 | Y20: 13.4196172 | Z20: 13.89097413 | AA20: 13.4196172 | AB20: 13.89097413 | AC20: 13.4196172 | AD20: 13.89097413 | AE20: 13.4196172 | AF20: 13.89097413 | AG20: 13.4196172 | AH20: 13.89097413 | AI20: 13.4196172 | AJ20: 13.89097413 | AK20: 13.4196172
A21: Exterior Equipment | B21: 641.49 | C21: 0 | D21: 0 | E21: 0 | F21: 0 | G21: 0 | H21: 0 | I21: 0 | J21: 0 | K21: 0 | L21: 0 | M21: 0 | N21: 0 | P21: 0 | Q21: 608015.1273 | R21: 0 | S21: 4.981396321 | T21: 0 | U21: 4.981396321 | V21: 0 | W21: 4.981396321 | X21: 0 | Y21: 4.981396321 | Z21: 0 | AA21: 4.981396321 | AB21: 0 | AC21: 4.981396321 | AD21: 0 | AE21: 4.981396321 | AF21: 0 | AG21: 4.981396321 | AH21: 0 | AI21: 4.981396321 | AJ21: 0 | AK21: 4.981396321
A22: Fans | B22: 521.05 | C22: 0 | D22: 0 | E22: 0 | F22: 0 | G22: 0 | H22: 0 | I22: 0 | J22: 0 | K22: 0 | L22: 0 | M22: 0 | N22: 0 | P22: 0 | Q22: 493860.0478 | R22: 0 | S22: 4.046137201 | T22: 0 | U22: 4.046137201 | V22: 0 | W22: 4.046137201 | X22: 0 | Y22: 4.046137201 | Z22: 0 | AA22: 4.046137201 | AB22: 0 | AC22: 4.046137201 | AD22: 0 | AE22: 4.046137201 | AF22: 0 | AG22: 4.046137201 | AH22: 0 | AI22: 4.046137201 | AJ22: 0 | AK22: 4.046137201
A23: Pumps | B23: 99.69 | C23: 0 | D23: 0 | E23: 0 | F23: 0 | G23: 0 | H23: 0 | I23: 0 | J23: 0 | K23: 0 | L23: 0 | M23: 0 | N23: 0 | P23: 0 | Q23: 94487.87673 | R23: 0 | S23: 0.7741280445 | T23: 0 | U23: 0.7741280445 | V23: 0 | W23: 0.7741280445 | X23: 0 | Y23: 0.7741280445 | Z23: 0 | AA23: 0.7741280445 | AB23: 0 | AC23: 0.7741280445 | AD23: 0 | AE23: 0.7741280445 | AF23: 0 | AG23: 0.7741280445 | AH23: 0 | AI23: 0.7741280445 | AJ23: 0 | AK23: 0.7741280445
A24: Heat Rejection | B24: 0 | C24: 0 | D24: 0 | E24: 0 | F24: 0 | G24: 0 | H24: 0 | I24: 0 | J24: 0 | K24: 0 | L24: 0 | M24: 0 | N24: 0 | P24: 0 | Q24: 0 | R24: 0 | S24: 0 | T24: 0 | U24: 0 | V24: 0 | W24: 0 | X24: 0 | Y24: 0 | Z24: 0 | AA24: 0 | AB24: 0 | AC24: 0 | AD24: 0 | AE24: 0 | AF24: 0 | AG24: 0 | AH24: 0 | AI24: 0 | AJ24: 0 | AK24: 0
A25: Humidification | B25: 0 | C25: 0 | D25: 0 | E25: 0 | F25: 0 | G25: 0 | H25: 0 | I25: 0 | J25: 0 | K25: 0 | L25: 0 | M25: 0 | N25: 0 | P25: 0 | Q25: 0 | R25: 0 | S25: 0 | T25: 0 | U25: 0 | V25: 0 | W25: 0 | X25: 0 | Y25: 0 | Z25: 0 | AA25: 0 | AB25: 0 | AC25: 0 | AD25: 0 | AE25: 0 | AF25: 0 | AG25: 0 | AH25: 0 | AI25: 0 | AJ25: 0 | AK25: 0
A26: Heat Recovery | B26: 173.74 | C26: 0 | D26: 0 | E26: 0 | F26: 0 | G26: 0 | H26: 0 | I26: 0 | J26: 0 | K26: 0 | L26: 0 | M26: 0 | N26: 0 | P26: 0 | Q26: 164673.7256 | R26: 0 | S26: 1.349152437 | T26: 0 | U26: 1.349152437 | V26: 0 | W26: 1.349152437 | X26: 0 | Y26: 1.349152437 | Z26: 0 | AA26: 1.349152437 | AB26: 0 | AC26: 1.349152437 | AD26: 0 | AE26: 1.349152437 | AF26: 0 | AG26: 1.349152437 | AH26: 0 | AI26: 1.349152437 | AJ26: 0 | AK26: 1.349152437
A27: Water Systems | B27: 90.75 | C27: 3262.51 | D27: 0 | E27: 0 | F27: 0 | G27: 0 | H27: 0 | I27: 0 | J27: 0 | K27: 0 | L27: 0 | M27: 0 | N27: 9857.19 | P27: 3092262.441 | Q27: 86014.39275 | R27: 25.33454194 | S27: 0.7047057883 | T27: =R27+(S27*1/0.95) -> 26.07633751 | U27: 0 | V27: =T27 -> 26.07633751 | W27: 0 | X27: 0 | Y27: =V27*0.95/2.5 -> 9.909008254 | Z27: =T27 -> 26.07633751 | AA27: 0 | AB27: =Z27 -> 26.07633751 | AC27: 0 | AD27: 0 | AE27: =Y27 -> 9.909008254 | AF27: =Z27 -> 26.07633751 | AG27: 0 | AH27: =AF27 -> 26.07633751 | AI27: 0 | AJ27: 0 | AK27: =AE27 -> 9.909008254
A28: Refrigeration | B28: 43.77 | C28: 0 | D28: 0 | E28: 0 | F28: 0 | G28: 0 | H28: 0 | I28: 0 | J28: 0 | K28: 0 | L28: 0 | M28: 0 | N28: 0 | P28: 0 | Q28: 41485.95009 | R28: 0 | S28: 0.3398895025 | T28: =R28 -> 0 | U28: 0.3398895025 | V28: 0 | W28: 0.3398895025 | X28: 0 | Y28: 0.3398895025 | Z28: 0 | AA28: 0.3398895025 | AB28: 0 | AC28: 0.3398895025 | AD28: 0 | AE28: 0.3398895025 | AF28: =X28 -> 0 | AG28: 0.3398895025 | AH28: =X28 -> 0 | AI28: 0.3398895025 | AJ28: =X28 -> 0 | AK28: 0.3398895025
A29: Generators | B29: 0 | C29: 0 | D29: 0 | E29: 0 | F29: 0 | G29: 0 | H29: 0 | I29: 0 | J29: 0 | K29: 0 | L29: 0 | M29: 0 | N29: 0 | P29: 0 | Q29: 0 | R29: 0 | S29: 0 | T29: 0 | U29: 0 | V29: 0 | W29: 0 | X29: 0 | Y29: 0 | Z29: 0 | AA29: 0 | AB29: 0 | AC29: 0 | AD29: 0 | AE29: 0 | AF29: 0 | AG29: 0 | AH29: 0 | AI29: 0 | AJ29: 0 | AK29: 0
A31: Total End Uses | B31: 4753.76 | C31: 6406.83 | D31: 0 | E31: 0 | F31: 0 | G31: 0 | H31: 0 | I31: 0 | J31: 0 | K31: 0 | L31: 0 | M31: 0 | N31: 9857.19
A32: Note: Natural gas appears to be the principal heating source based on energy usage.
R33: gas EUI | S33: =SUM(R16:R29) -> 49.75129681 | U33: =SUM(T16:T29) -> 50.49309238 | W33: =SUM(V16:V29) -> 39.96731164 | Y33: =SUM(X16:X29) -> 13.89097413 | AA33: =SUM(Z16:Z29) -> 43.12504586 | AC33: =SUM(AB16:AB29) -> 39.96731164 | AE33: =SUM(AD16:AD29) -> 13.89097413 | AG33: =SUM(AF16:AF29) -> 41.01988972 | AI33: =SUM(AH16:AH29) -> 39.96731164 | AK33: =SUM(AJ16:AJ29) -> 13.89097413
R34: elec EUI | S34: =SUM(S16:S29) -> 36.91454701 | U34: =SUM(U16:U29) -> 36.20984122 | W34: =SUM(W16:W29) -> 39.33468238 | Y34: =SUM(Y16:Y29) -> 49.24369063 | AA34: =SUM(AA16:AA29) -> 36.20984122 | AC34: =SUM(AC16:AC29) -> 37.14729357 | AE34: =SUM(AE16:AE29) -> 47.05630182 | AG34: =SUM(AG16:AG29) -> 36.20984122 | AI34: =SUM(AI16:AI29) -> 36.52232534 | AK34: =SUM(AK16:AK29) -> 46.43133359

Sheet IECC 2021 hospital (hidden)
A7: Area [m2]
A8: Total Building Area | B8: 22436.18
A9: Net Conditioned Building Area | B9: 22436.18 | P9: =B9*3.28*3.28 -> 241377.3989 | Q9: ft2
A10: Unconditioned Building Area | B10: 0
S11: efficiency level | T11: base | V11: base | X11: base | Z11: stretch | AB11: stretch | AD11: stretch | AF11: ph | AH11: ph | AJ11: ph
S12: heating | T12: gas | V12: elec | X12: elec | Z12: gas | AB12: elec | AD12: elec | AF12: gas | AH12: elec | AJ12: elec
A13: End Uses | S13: hot water | T13: gas | V13: gas | X13: elec | Z13: gas | AB13: gas | AD13: elec | AF13: gas | AH13: gas | AJ13: elec
B15: Electricity [GJ] | C15: Natural Gas [GJ] | D15: Gasoline [GJ] | E15: Diesel [GJ] | F15: Coal [GJ] | G15: Fuel Oil No 1 [GJ] | H15: Fuel Oil No 2 [GJ] | I15: Propane [GJ] | J15: Other Fuel 1 [GJ] | K15: Other Fuel 2 [GJ] | L15: District Cooling [GJ] | M15: District Heating [GJ] | N15: Water [m3] | P15: Gas (Mbtu/yr) | Q15: Elec (Mbtu/yr) | R15: Gas (kbtu/sf-yr) | S15: Elec (kBtu/sf-yr | T15: Gas (kbtu/sf-yr) | U15: Elec (kBtu/sf-yr | V15: Gas (kbtu/sf-yr) | W15: Elec (kBtu/sf-yr | X15: Gas (kbtu/sf-yr) | Y15: Elec (kBtu/sf-yr | Z15: Gas (kbtu/sf-yr) | AA15: Elec (kBtu/sf-yr | AB15: Gas (kbtu/sf-yr) | AC15: Elec (kBtu/sf-yr | AD15: Gas (kbtu/sf-yr) | AE15: Elec (kBtu/sf-yr | AF15: Gas (kbtu/sf-yr) | AG15: Elec (kBtu/sf-yr | AH15: Gas (kbtu/sf-yr) | AI15: Elec (kBtu/sf-yr | AJ15: Gas (kbtu/sf-yr) | AK15: Elec (kBtu/sf-yr
A16: Heating | B16: 0 | C16: 7751.86 | D16: 0 | E16: 0 | F16: 0 | G16: 0 | H16: 0 | I16: 0 | J16: 0 | K16: 0 | L16: 0 | M16: 0 | N16: 0 | P16: =C16*947817/1000 -> 7347344.69 | Q16: =B16*947817/1000 -> 0 | R16: =P16/$P$9 -> 30.43924047 | S16: =Q16/$P$9 -> 0 | T16: =R16 -> 30.43924047 | U16: =S16 -> 0 | V16: =0 -> 0 | W16: =R16*0.95/3.2 -> 9.036649515 | X16: =0 -> 0 | Y16: =R16*0.95/3.2 -> 9.036649515 | Z16: =R16*0.3 -> 9.131772141 | AA16: =S16 -> 0 | AB16: 0 | AC16: =Z16*0.95/3.2 -> 2.710994854 | AD16: 0 | AE16: =AC16 -> 2.710994854 | AF16: =R16*0.1 -> 3.043924047 | AG16: 0 | AH16: 0 | AI16: =AF16*0.95/3.2 -> 0.9036649515 | AJ16: 0 | AK16: =AI16 -> 0.9036649515
A17: Cooling | B17: 1261.91 | C17: 0 | D17: 0 | E17: 0 | F17: 0 | G17: 0 | H17: 0 | I17: 0 | J17: 0 | K17: 0 | L17: 0 | M17: 0 | N17: 0 | P17: =C17*947817/1000 -> 0 | Q17: =B17*947817/1000 -> 1196059.75 | R17: =P17/$P$9 -> 0 | S17: 4.955143919 | T17: =R17 -> 0 | U17: 4.955143919 | V17: =R17 -> 0 | W17: =S17 -> 4.955143919 | X17: =R17 -> 0 | Y17: =S17 -> 4.955143919 | Z17: =R17 -> 0 | AA17: =S17 -> 4.955143919 | AB17: =R17 -> 0 | AC17: =S17 -> 4.955143919 | AD17: =R17 -> 0 | AE17: =S17 -> 4.955143919 | AF17: =X17 -> 0 | AG17: =Y17 -> 4.955143919 | AH17: =X17 -> 0 | AI17: =Y17 -> 4.955143919 | AJ17: =X17 -> 0 | AK17: =Y17 -> 4.955143919
A18: Interior Lighting | B18: 3158.26 | C18: 0 | D18: 0 | E18: 0 | F18: 0 | G18: 0 | H18: 0 | I18: 0 | J18: 0 | K18: 0 | L18: 0 | M18: 0 | N18: 0 | P18: 0 | Q18: 2993452.518 | R18: 0 | S18: 12.40154435 | T18: 0 | U18: 12.40154435 | V18: =R18 -> 0 | W18: 12.40154435 | X18: =R18 -> 0 | Y18: 12.40154435 | Z18: =R18 -> 0 | AA18: 12.40154435 | AB18: =R18 -> 0 | AC18: 12.40154435 | AD18: =R18 -> 0 | AE18: 12.40154435 | AF18: =X18 -> 0 | AG18: 12.40154435 | AH18: =X18 -> 0 | AI18: 12.40154435 | AJ18: =X18 -> 0 | AK18: 12.40154435
A19: Exterior Lighting | B19: 154.27 | C19: 0 | D19: 0 | E19: 0 | F19: 0 | G19: 0 | H19: 0 | I19: 0 | J19: 0 | K19: 0 | L19: 0 | M19: 0 | N19: 0 | P19: 0 | Q19: 146219.7286 | R19: 0 | S19: 0.605772244 | T19: 0 | U19: 0.605772244 | V19: 0 | W19: 0.605772244 | X19: 0 | Y19: 0.605772244 | Z19: 0 | AA19: 0.605772244 | AB19: 0 | AC19: 0.605772244 | AD19: 0 | AE19: 0.605772244 | AF19: 0 | AG19: 0.605772244 | AH19: 0 | AI19: 0.605772244 | AJ19: 0 | AK19: 0.605772244
A20: Interior Equipment | B20: 6892.76 | C20: 2791.97 | D20: 0 | E20: 0 | F20: 0 | G20: 0 | H20: 0 | I20: 0 | J20: 0 | K20: 0 | L20: 0 | M20: 0 | N20: 0 | P20: 2646276.629 | Q20: 6533075.105 | R20: 10.96323285 | S20: 27.06581119 | T20: 10.96323285 | U20: 27.06581119 | V20: 10.96323285 | W20: 27.06581119 | X20: 0 | Y20: =(S20*0.9)+(R20/2.5) -> 28.74452321 | Z20: 10.96323285 | AA20: 27.06581119 | AB20: 10.96323285 | AC20: 27.06581119 | AD20: 0 | AE20: =Y20 -> 28.74452321 | AF20: =R20 -> 10.96323285 | AG20: =S20 -> 27.06581119 | AH20: =R20 -> 10.96323285 | AI20: =S20 -> 27.06581119 | AJ20: 0 | AK20: 28.74452321
A21: Exterior Equipment | B21: 962.52 | C21: 0 | D21: 0 | E21: 0 | F21: 0 | G21: 0 | H21: 0 | I21: 0 | J21: 0 | K21: 0 | L21: 0 | M21: 0 | N21: 0 | P21: 0 | Q21: 912292.8188 | R21: 0 | S21: 3.77952875 | T21: 0 | U21: 3.77952875 | V21: 0 | W21: 3.77952875 | X21: 0 | Y21: 3.77952875 | Z21: 0 | AA21: 3.77952875 | AB21: 0 | AC21: 3.77952875 | AD21: 0 | AE21: 3.77952875 | AF21: 0 | AG21: 3.77952875 | AH21: 0 | AI21: 3.77952875 | AJ21: 0 | AK21: 3.77952875
A22: Fans | B22: 2988.1 | C22: 0 | D22: 0 | E22: 0 | F22: 0 | G22: 0 | H22: 0 | I22: 0 | J22: 0 | K22: 0 | L22: 0 | M22: 0 | N22: 0 | P22: 0 | Q22: 2832171.978 | R22: 0 | S22: 11.73337682 | T22: 0 | U22: 11.73337682 | V22: 0 | W22: 11.73337682 | X22: 0 | Y22: 11.73337682 | Z22: 0 | AA22: 11.73337682 | AB22: 0 | AC22: 11.73337682 | AD22: 0 | AE22: 11.73337682 | AF22: 0 | AG22: 11.73337682 | AH22: 0 | AI22: 11.73337682 | AJ22: 0 | AK22: 11.73337682
A23: Pumps | B23: 850.13 | C23: 0 | D23: 0 | E23: 0 | F23: 0 | G23: 0 | H23: 0 | I23: 0 | J23: 0 | K23: 0 | L23: 0 | M23: 0 | N23: 0 | P23: 0 | Q23: 805767.6662 | R23: 0 | S23: 3.338206766 | T23: 0 | U23: 3.338206766 | V23: 0 | W23: 3.338206766 | X23: 0 | Y23: 3.338206766 | Z23: 0 | AA23: 3.338206766 | AB23: 0 | AC23: 3.338206766 | AD23: 0 | AE23: 3.338206766 | AF23: 0 | AG23: 3.338206766 | AH23: 0 | AI23: 3.338206766 | AJ23: 0 | AK23: 3.338206766
A24: Heat Rejection | B24: 116.06 | C24: 0 | D24: 0 | E24: 0 | F24: 0 | G24: 0 | H24: 0 | I24: 0 | J24: 0 | K24: 0 | L24: 0 | M24: 0 | N24: 5560.41 | P24: 0 | Q24: 110003.641 | R24: 0 | S24: 0.4557329788 | T24: 0 | U24: 0.4557329788 | V24: 0 | W24: 0.4557329788 | X24: 0 | Y24: 0.4557329788 | Z24: 0 | AA24: 0.4557329788 | AB24: 0 | AC24: 0.4557329788 | AD24: 0 | AE24: 0.4557329788 | AF24: 0 | AG24: 0.4557329788 | AH24: 0 | AI24: 0.4557329788 | AJ24: 0 | AK24: 0.4557329788
A25: Humidification | B25: 1535.82 | C25: 0 | D25: 0 | E25: 0 | F25: 0 | G25: 0 | H25: 0 | I25: 0 | J25: 0 | K25: 0 | L25: 0 | M25: 0 | N25: 571.32 | P25: 0 | Q25: 1455676.305 | R25: 0 | S25: 6.030706734 | T25: 0 | U25: 6.030706734 | V25: 0 | W25: 6.030706734 | X25: 0 | Y25: 6.030706734 | Z25: 0 | AA25: 6.030706734 | AB25: 0 | AC25: 6.030706734 | AD25: 0 | AE25: 6.030706734 | AF25: 0 | AG25: 6.030706734 | AH25: 0 | AI25: 6.030706734 | AJ25: 0 | AK25: 6.030706734
A26: Heat Recovery | B26: 189.03 | C26: 0 | D26: 0 | E26: 0 | F26: 0 | G26: 0 | H26: 0 | I26: 0 | J26: 0 | K26: 0 | L26: 0 | M26: 0 | N26: 0 | P26: 0 | Q26: 179165.8475 | R26: 0 | S26: 0.742264389 | T26: 0 | U26: 0.742264389 | V26: 0 | W26: 0.742264389 | X26: 0 | Y26: 0.742264389 | Z26: 0 | AA26: 0.742264389 | AB26: 0 | AC26: 0.742264389 | AD26: 0 | AE26: 0.742264389 | AF26: 0 | AG26: 0.742264389 | AH26: 0 | AI26: 0.742264389 | AJ26: 0 | AK26: 0.742264389
A27: Water Systems | B27: 26.4 | C27: 1813.9 | D27: 0 | E27: 0 | F27: 0 | G27: 0 | H27: 0 | I27: 0 | J27: 0 | K27: 0 | L27: 0 | M27: 0 | N27: 4534.6 | P27: 1719245.256 | Q27: 25022.3688 | R27: 7.122643893 | S27: 0.1036649202 | T27: =R27+(S27*1/0.95) -> 7.231764862 | U27: 0 | V27: =T27 -> 7.231764862 | W27: 0 | X27: 0 | Y27: =V27*0.95/2.5 -> 2.748070647 | Z27: =T27 -> 7.231764862 | AA27: 0 | AB27: =Z27 -> 7.231764862 | AC27: 0 | AD27: 0 | AE27: =Y27 -> 2.748070647 | AF27: =Z27 -> 7.231764862 | AG27: 0 | AH27: =AF27 -> 7.231764862 | AI27: 0 | AJ27: 0 | AK27: =AE27 -> 2.748070647
A28: Refrigeration | B28: 106.15 | C28: 0 | D28: 0 | E28: 0 | F28: 0 | G28: 0 | H28: 0 | I28: 0 | J28: 0 | K28: 0 | L28: 0 | M28: 0 | N28: 0 | P28: 0 | Q28: 100610.7746 | R28: 0 | S28: 0.4168193667 | T28: =R28 -> 0 | U28: 0.4168193667 | V28: 0 | W28: 0.4168193667 | X28: 0 | Y28: 0.4168193667 | Z28: 0 | AA28: 0.4168193667 | AB28: 0 | AC28: 0.4168193667 | AD28: 0 | AE28: 0.4168193667 | AF28: =X28 -> 0 | AG28: 0.4168193667 | AH28: =X28 -> 0 | AI28: 0.4168193667 | AJ28: =X28 -> 0 | AK28: 0.4168193667
A29: Generators | B29: 0 | C29: 0 | D29: 0 | E29: 0 | F29: 0 | G29: 0 | H29: 0 | I29: 0 | J29: 0 | K29: 0 | L29: 0 | M29: 0 | N29: 0 | P29: 0 | Q29: 0 | R29: 0 | S29: 0 | T29: 0 | U29: 0 | V29: 0 | W29: 0 | X29: 0 | Y29: 0 | Z29: 0 | AA29: 0 | AB29: 0 | AC29: 0 | AD29: 0 | AE29: 0 | AF29: 0 | AG29: 0 | AH29: 0 | AI29: 0 | AJ29: 0 | AK29: 0
A31: Total End Uses | B31: 18241.4 | C31: 12357.74 | D31: 0 | E31: 0 | F31: 0 | G31: 0 | H31: 0 | I31: 0 | J31: 0 | K31: 0 | L31: 0 | M31: 0 | N31: 10666.33
A32: Note: Natural gas appears to be the principal heating source based on energy usage.
R33: gas EUI | S33: =SUM(R16:R29) -> 48.52511722 | U33: =SUM(T16:T29) -> 48.63423818 | W33: =SUM(V16:V29) -> 18.19499771 | Y33: =SUM(X16:X29) -> 0 | AA33: =SUM(Z16:Z29) -> 27.32676985 | AC33: =SUM(AB16:AB29) -> 18.19499771 | AE33: =SUM(AD16:AD29) -> 0 | AG33: =SUM(AF16:AF29) -> 21.23892176 | AI33: =SUM(AH16:AH29) -> 18.19499771 | AK33: =SUM(AJ16:AJ29) -> 0
R34: elec EUI | S34: =SUM(S16:S29) -> 71.62857243 | U34: =SUM(U16:U29) -> 71.52490751 | W34: =SUM(W16:W29) -> 80.56155703 | Y34: =SUM(Y16:Y29) -> 84.9883397 | AA34: =SUM(AA16:AA29) -> 71.52490751 | AC34: =SUM(AC16:AC29) -> 74.23590237 | AE34: =SUM(AE16:AE29) -> 78.66268504 | AG34: =SUM(AG16:AG29) -> 71.52490751 | AI34: =SUM(AI16:AI29) -> 72.42857247 | AK34: =SUM(AK16:AK29) -> 76.85535513

Sheet IECC 2021 apartment midrise (hidden)
A7: Area [m2]
A8: Total Building Area | B8: 3134.61
A9: Net Conditioned Building Area | B9: 2823.98 | P9: =B9*3.28*3.28 -> 30381.50643 | Q9: ft2
A10: Unconditioned Building Area | B10: 310.64
S11: efficiency level | T11: base | V11: base | X11: base | Z11: stretch | AB11: stretch | AD11: stretch | AF11: ph | AH11: ph | AJ11: ph
S12: heating | T12: gas | V12: elec | X12: elec | Z12: gas | AB12: elec | AD12: elec | AF12: gas | AH12: elec | AJ12: elec
A13: End Uses | S13: hot water | T13: gas | V13: gas | X13: elec | Z13: gas | AB13: gas | AD13: elec | AF13: gas | AH13: gas | AJ13: elec
B15: Electricity [GJ] | C15: Natural Gas [GJ] | D15: Gasoline [GJ] | E15: Diesel [GJ] | F15: Coal [GJ] | G15: Fuel Oil No 1 [GJ] | H15: Fuel Oil No 2 [GJ] | I15: Propane [GJ] | J15: Other Fuel 1 [GJ] | K15: Other Fuel 2 [GJ] | L15: District Cooling [GJ] | M15: District Heating [GJ] | N15: Water [m3] | P15: Gas (Mbtu/yr) | Q15: Elec (Mbtu/yr) | R15: Gas (kbtu/sf-yr) | S15: Elec (kBtu/sf-yr | T15: Gas (kbtu/sf-yr) | U15: Elec (kBtu/sf-yr | V15: Gas (kbtu/sf-yr) | W15: Elec (kBtu/sf-yr | X15: Gas (kbtu/sf-yr) | Y15: Elec (kBtu/sf-yr | Z15: Gas (kbtu/sf-yr) | AA15: Elec (kBtu/sf-yr | AB15: Gas (kbtu/sf-yr) | AC15: Elec (kBtu/sf-yr | AD15: Gas (kbtu/sf-yr) | AE15: Elec (kBtu/sf-yr | AF15: Gas (kbtu/sf-yr) | AG15: Elec (kBtu/sf-yr | AH15: Gas (kbtu/sf-yr) | AI15: Elec (kBtu/sf-yr | AJ15: Gas (kbtu/sf-yr) | AK15: Elec (kBtu/sf-yr
A16: Heating | B16: 0 | C16: 251.93 | D16: 0 | E16: 0 | F16: 0 | G16: 0 | H16: 0 | I16: 0 | J16: 0 | K16: 0 | L16: 0 | M16: 0 | N16: 0 | P16: =C16*947817/1000 -> 238783.5368 | Q16: =B16*947817/1000 -> 0 | R16: =P16/$P$9 -> 7.859502864 | S16: =Q16/$P$9 -> 0 | T16: =R16 -> 7.859502864 | U16: =S16 -> 0 | V16: =0 -> 0 | W16: =R16*0.95/3.2 -> 2.333289913 | X16: =0 -> 0 | Y16: =R16*0.95/3.2 -> 2.333289913 | Z16: =R16*0.3 -> 2.357850859 | AA16: =S16 -> 0 | AB16: 0 | AC16: =Z16*0.95/3.2 -> 0.6999869738 | AD16: 0 | AE16: =AC16 -> 0.6999869738 | AF16: =R16*0.1 -> 0.7859502864 | AG16: 0 | AH16: 0 | AI16: =AF16*0.95/3.2 -> 0.2333289913 | AJ16: 0 | AK16: =AI16 -> 0.2333289913
A17: Cooling | B17: 73.09 | C17: 0 | D17: 0 | E17: 0 | F17: 0 | G17: 0 | H17: 0 | I17: 0 | J17: 0 | K17: 0 | L17: 0 | M17: 0 | N17: 0 | P17: =C17*947817/1000 -> 0 | Q17: =B17*947817/1000 -> 69275.94453 | R17: =P17/$P$9 -> 0 | S17: 2.280201105 | T17: =R17 -> 0 | U17: 2.280201105 | V17: =R17 -> 0 | W17: =S17 -> 2.280201105 | X17: =R17 -> 0 | Y17: =S17 -> 2.280201105 | Z17: =R17 -> 0 | AA17: =S17 -> 2.280201105 | AB17: =R17 -> 0 | AC17: =S17 -> 2.280201105 | AD17: =R17 -> 0 | AE17: =S17 -> 2.280201105 | AF17: =X17 -> 0 | AG17: =Y17 -> 2.280201105 | AH17: =X17 -> 0 | AI17: =Y17 -> 2.280201105 | AJ17: =X17 -> 0 | AK17: =Y17 -> 2.280201105
A18: Interior Lighting | B18: 64.85 | C18: 0 | D18: 0 | E18: 0 | F18: 0 | G18: 0 | H18: 0 | I18: 0 | J18: 0 | K18: 0 | L18: 0 | M18: 0 | N18: 0 | P18: 0 | Q18: 61465.93245 | R18: 0 | S18: 2.02313643 | T18: 0 | U18: 2.02313643 | V18: =R18 -> 0 | W18: 2.02313643 | X18: =R18 -> 0 | Y18: 2.02313643 | Z18: =R18 -> 0 | AA18: 2.02313643 | AB18: =R18 -> 0 | AC18: 2.02313643 | AD18: =R18 -> 0 | AE18: 2.02313643 | AF18: =X18 -> 0 | AG18: 2.02313643 | AH18: =X18 -> 0 | AI18: 2.02313643 | AJ18: =X18 -> 0 | AK18: 2.02313643
A19: Exterior Lighting | B19: 32.13 | C19: 0 | D19: 0 | E19: 0 | F19: 0 | G19: 0 | H19: 0 | I19: 0 | J19: 0 | K19: 0 | L19: 0 | M19: 0 | N19: 0 | P19: 0 | Q19: 30453.36021 | R19: 0 | S19: 1.00236505 | T19: 0 | U19: 1.00236505 | V19: 0 | W19: 1.00236505 | X19: 0 | Y19: 1.00236505 | Z19: 0 | AA19: 1.00236505 | AB19: 0 | AC19: 1.00236505 | AD19: 0 | AE19: 1.00236505 | AF19: 0 | AG19: 1.00236505 | AH19: 0 | AI19: 1.00236505 | AJ19: 0 | AK19: 1.00236505
A20: Interior Equipment | B20: 452.09 | C20: 0 | D20: 0 | E20: 0 | F20: 0 | G20: 0 | H20: 0 | I20: 0 | J20: 0 | K20: 0 | L20: 0 | M20: 0 | N20: 0 | P20: 0 | Q20: 428498.5875 | R20: 0 | S20: 14.10392827 | T20: 0 | U20: 14.10392827 | V20: 0 | W20: 14.10392827 | X20: 0 | Y20: 14.10392827 | Z20: 0 | AA20: 14.10392827 | AB20: 0 | AC20: 14.10392827 | AD20: 0 | AE20: 14.10392827 | AF20: 0 | AG20: 14.10392827 | AH20: 0 | AI20: 14.10392827 | AJ20: 0 | AK20: 14.10392827
A21: Exterior Equipment | B21: 0 | C21: 0 | D21: 0 | E21: 0 | F21: 0 | G21: 0 | H21: 0 | I21: 0 | J21: 0 | K21: 0 | L21: 0 | M21: 0 | N21: 0 | P21: 0 | Q21: 0 | R21: 0 | S21: 0 | T21: 0 | U21: 0 | V21: 0 | W21: 0 | X21: 0 | Y21: 0 | Z21: 0 | AA21: 0 | AB21: 0 | AC21: 0 | AD21: 0 | AE21: 0 | AF21: 0 | AG21: 0 | AH21: 0 | AI21: 0 | AJ21: 0 | AK21: 0
A22: Fans | B22: 87.38 | C22: 0 | D22: 0 | E22: 0 | F22: 0 | G22: 0 | H22: 0 | I22: 0 | J22: 0 | K22: 0 | L22: 0 | M22: 0 | N22: 0 | P22: 0 | Q22: 82820.24946 | R22: 0 | S22: 2.726008654 | T22: 0 | U22: 2.726008654 | V22: 0 | W22: 2.726008654 | X22: 0 | Y22: 2.726008654 | Z22: 0 | AA22: 2.726008654 | AB22: 0 | AC22: 2.726008654 | AD22: 0 | AE22: 2.726008654 | AF22: 0 | AG22: 2.726008654 | AH22: 0 | AI22: 2.726008654 | AJ22: 0 | AK22: 2.726008654
A23: Pumps | B23: 0 | C23: 0 | D23: 0 | E23: 0 | F23: 0 | G23: 0 | H23: 0 | I23: 0 | J23: 0 | K23: 0 | L23: 0 | M23: 0 | N23: 0 | P23: 0 | Q23: 0 | R23: 0 | S23: 0 | T23: 0 | U23: 0 | V23: 0 | W23: 0 | X23: 0 | Y23: 0 | Z23: 0 | AA23: 0 | AB23: 0 | AC23: 0 | AD23: 0 | AE23: 0 | AF23: 0 | AG23: 0 | AH23: 0 | AI23: 0 | AJ23: 0 | AK23: 0
A24: Heat Rejection | B24: 0 | C24: 0 | D24: 0 | E24: 0 | F24: 0 | G24: 0 | H24: 0 | I24: 0 | J24: 0 | K24: 0 | L24: 0 | M24: 0 | N24: 0 | P24: 0 | Q24: 0 | R24: 0 | S24: 0 | T24: 0 | U24: 0 | V24: 0 | W24: 0 | X24: 0 | Y24: 0 | Z24: 0 | AA24: 0 | AB24: 0 | AC24: 0 | AD24: 0 | AE24: 0 | AF24: 0 | AG24: 0 | AH24: 0 | AI24: 0 | AJ24: 0 | AK24: 0
A25: Humidification | B25: 0 | C25: 0 | D25: 0 | E25: 0 | F25: 0 | G25: 0 | H25: 0 | I25: 0 | J25: 0 | K25: 0 | L25: 0 | M25: 0 | N25: 0 | P25: 0 | Q25: 0 | R25: 0 | S25: 0 | T25: 0 | U25: 0 | V25: 0 | W25: 0 | X25: 0 | Y25: 0 | Z25: 0 | AA25: 0 | AB25: 0 | AC25: 0 | AD25: 0 | AE25: 0 | AF25: 0 | AG25: 0 | AH25: 0 | AI25: 0 | AJ25: 0 | AK25: 0
A26: Heat Recovery | B26: 0 | C26: 0 | D26: 0 | E26: 0 | F26: 0 | G26: 0 | H26: 0 | I26: 0 | J26: 0 | K26: 0 | L26: 0 | M26: 0 | N26: 0 | P26: 0 | Q26: 0 | R26: 0 | S26: 0 | T26: 0 | U26: 0 | V26: 0 | W26: 0 | X26: 0 | Y26: 0 | Z26: 0 | AA26: 0 | AB26: 0 | AC26: 0 | AD26: 0 | AE26: 0 | AF26: 0 | AG26: 0 | AH26: 0 | AI26: 0 | AJ26: 0 | AK26: 0
A27: Water Systems | B27: 479.6 | C27: 0 | D27: 0 | E27: 0 | F27: 0 | G27: 0 | H27: 0 | I27: 0 | J27: 0 | K27: 0 | L27: 0 | M27: 0 | N27: 1875.32 | P27: 0 | Q27: 454573.0332 | R27: 0 | S27: 14.9621624 | T27: =R27+(S27*1/0.95) -> 15.74964463 | U27: 0 | V27: =T27 -> 15.74964463 | W27: 0 | X27: 0 | Y27: =V27*0.95/2.5 -> 5.98486496 | Z27: =T27 -> 15.74964463 | AA27: 0 | AB27: =Z27 -> 15.74964463 | AC27: 0 | AD27: 0 | AE27: =Y27 -> 5.98486496 | AF27: =Z27 -> 15.74964463 | AG27: 0 | AH27: =AF27 -> 15.74964463 | AI27: 0 | AJ27: 0 | AK27: =AE27 -> 5.98486496
A28: Refrigeration | B28: 0 | C28: 0 | D28: 0 | E28: 0 | F28: 0 | G28: 0 | H28: 0 | I28: 0 | J28: 0 | K28: 0 | L28: 0 | M28: 0 | N28: 0 | P28: 0 | Q28: 0 | R28: 0 | S28: 0 | T28: =R28 -> 0 | U28: 0 | V28: 0 | W28: 0 | X28: 0 | Y28: 0 | Z28: 0 | AA28: 0 | AB28: 0 | AC28: 0 | AD28: 0 | AE28: 0 | AF28: =X28 -> 0 | AG28: 0 | AH28: =X28 -> 0 | AI28: 0 | AJ28: =X28 -> 0 | AK28: 0
A29: Generators | B29: 0 | C29: 0 | D29: 0 | E29: 0 | F29: 0 | G29: 0 | H29: 0 | I29: 0 | J29: 0 | K29: 0 | L29: 0 | M29: 0 | N29: 0 | P29: 0 | Q29: 0 | R29: 0 | S29: 0 | T29: 0 | U29: 0 | V29: 0 | W29: 0 | X29: 0 | Y29: 0 | Z29: 0 | AA29: 0 | AB29: 0 | AC29: 0 | AD29: 0 | AE29: 0 | AF29: 0 | AG29: 0 | AH29: 0 | AI29: 0 | AJ29: 0 | AK29: 0
A31: Total End Uses | B31: 1189.15 | C31: 251.93 | D31: 0 | E31: 0 | F31: 0 | G31: 0 | H31: 0 | I31: 0 | J31: 0 | K31: 0 | L31: 0 | M31: 0 | N31: 1875.32
A32: Note: Natural gas appears to be the principal heating source based on energy usage.
R33: gas EUI | S33: =SUM(R16:R29) -> 7.859502864 | U33: =SUM(T16:T29) -> 23.6091475 | W33: =SUM(V16:V29) -> 15.74964463 | Y33: =SUM(X16:X29) -> 0 | Z33: =AB41 -> 15.2 | AA33: =SUM(Z16:Z29) -> 18.10749549 | AC33: =SUM(AB16:AB29) -> 15.74964463 | AD33: =AD41 -> 0 | AE33: =SUM(AD16:AD29) -> 0 | AF33: =AF41 -> 10.9 | AG33: =SUM(AF16:AF29) -> 16.53559492 | AI33: =SUM(AH16:AH29) -> 15.74964463 | AJ33: =AH41 -> 0 | AK33: =SUM(AJ16:AJ29) -> 0
R34: elec EUI | S34: =SUM(S16:S29) -> 37.09780191 | U34: =SUM(U16:U29) -> 22.13563951 | W34: =SUM(W16:W29) -> 24.46892942 | Y34: =SUM(Y16:Y29) -> 30.45379438 | Z34: =AC41 -> 21.3 | AA34: =SUM(AA16:AA29) -> 22.13563951 | AC34: =SUM(AC16:AC29) -> 22.83562648 | AD34: =AE41 -> 30.4 | AE34: =SUM(AE16:AE29) -> 28.82049144 | AF34: =AG41 -> 21.2 | AG34: =SUM(AG16:AG29) -> 22.13563951 | AI34: =SUM(AI16:AI29) -> 22.3689685 | AJ34: =AI41 -> 29 | AK34: =SUM(AK16:AK29) -> 28.35383346
AB37: Stretch Code | AF37: Passive House
AA38: scneario name | AB38: gas | AD38: electric | AF38: gas | AH38: electric
AB40: gas EUI | AC40: elec EUI | AD40: gas EUI | AE40: elec EUI | AF40: gas EUI | AG40: elec EUI | AH40: gas EUI | AI40: elec EUI
AA41: MF midrise - slab on grade | AB41: 15.2 | AC41: 21.3 | AD41: 0 | AE41: 30.4 | AF41: 10.9 | AG41: 21.2 | AH41: 0 | AI41: 29
AA42: MF midrise - podium | AB42: 10.9 | AC42: 26.7 | AD42: 0 | AE42: 31.2 | AF42: 6.1 | AG42: 27.7 | AH42: 0 | AI42: 30.9

Sheet IECC 2021 high rise MF (hidden)
A7: Area [m2]
A8: Total Building Area | B8: 7836.48
A9: Net Conditioned Building Area | B9: 7059.89 | P9: =B9*3.28*3.28 -> 75953.12058 | Q9: ft2
A10: Unconditioned Building Area | B10: 776.58
S11: efficiency level | T11: base | V11: base | X11: base | Z11: stretch | AB11: stretch | AD11: stretch | AF11: ph | AH11: ph | AJ11: ph
S12: heating | T12: gas | V12: elec | X12: elec | Z12: gas | AB12: elec | AD12: elec | AF12: gas | AH12: elec | AJ12: elec
A13: End Uses | S13: hot water | T13: gas | V13: gas | X13: elec | Z13: gas | AB13: gas | AD13: elec | AF13: gas | AH13: gas | AJ13: elec
B15: Electricity [GJ] | C15: Natural Gas [GJ] | D15: Gasoline [GJ] | E15: Diesel [GJ] | F15: Coal [GJ] | G15: Fuel Oil No 1 [GJ] | H15: Fuel Oil No 2 [GJ] | I15: Propane [GJ] | J15: Other Fuel 1 [GJ] | K15: Other Fuel 2 [GJ] | L15: District Cooling [GJ] | M15: District Heating [GJ] | N15: Water [m3] | P15: Gas (Mbtu/yr) | Q15: Elec (Mbtu/yr) | R15: Gas (kbtu/sf-yr) | S15: Elec (kBtu/sf-yr | T15: Gas (kbtu/sf-yr) | U15: Elec (kBtu/sf-yr | V15: Gas (kbtu/sf-yr) | W15: Elec (kBtu/sf-yr | X15: Gas (kbtu/sf-yr) | Y15: Elec (kBtu/sf-yr | Z15: Gas (kbtu/sf-yr) | AA15: Elec (kBtu/sf-yr | AB15: Gas (kbtu/sf-yr) | AC15: Elec (kBtu/sf-yr | AD15: Gas (kbtu/sf-yr) | AE15: Elec (kBtu/sf-yr | AF15: Gas (kbtu/sf-yr) | AG15: Elec (kBtu/sf-yr | AH15: Gas (kbtu/sf-yr) | AI15: Elec (kBtu/sf-yr | AJ15: Gas (kbtu/sf-yr) | AK15: Elec (kBtu/sf-yr
A16: Heating | B16: 207.38 | C16: 623.28 | D16: 0 | E16: 0 | F16: 0 | G16: 0 | H16: 0 | I16: 0 | J16: 0 | K16: 0 | L16: 0 | M16: 0 | N16: 0 | P16: =C16*947817/1000 -> 590755.3798 | Q16: =B16*947817/1000 -> 196558.2895 | R16: =P16/$P$9 -> 7.777894776 | S16: =Q16/$P$9 -> 2.587889582 | T16: =R16 -> 7.777894776 | U16: =S16 -> 2.587889582 | V16: =0 -> 0 | W16: =(S16*1/3.2)+(R16*0.95/3.2) -> 3.117778006 | X16: =0 -> 0 | Y16: =W16 -> 3.117778006 | Z16: =R16*0.3 -> 2.333368433 | AA16: =S16*0.3 -> 0.7763668746 | AB16: 0 | AC16: =(AA16*1/3.2)+(Z16*0.95/3.2) -> 0.9353334018 | AD16: 0 | AE16: =AC16 -> 0.9353334018 | AF16: =R16*0.1 -> 0.7777894776 | AG16: =S16*0.1 -> 0.2587889582 | AH16: 0 | AI16: =(AG16*1/3.2)+(AF16*0.95/3.2) -> 0.3117778006 | AJ16: 0 | AK16: =AI16 -> 0.3117778006
A17: Cooling | B17: 178.68 | C17: 0 | D17: 0 | E17: 0 | F17: 0 | G17: 0 | H17: 0 | I17: 0 | J17: 0 | K17: 0 | L17: 0 | M17: 0 | N17: 0 | P17: =C17*947817/1000 -> 0 | Q17: =B17*947817/1000 -> 169355.9416 | R17: =P17/$P$9 -> 0 | S17: 2.229743035 | T17: =R17 -> 0 | U17: 2.229743035 | V17: =R17 -> 0 | W17: =S17 -> 2.229743035 | X17: =R17 -> 0 | Y17: =S17 -> 2.229743035 | Z17: =R17 -> 0 | AA17: =S17 -> 2.229743035 | AB17: =R17 -> 0 | AC17: =S17 -> 2.229743035 | AD17: =R17 -> 0 | AE17: =S17 -> 2.229743035 | AF17: =X17 -> 0 | AG17: =Y17 -> 2.229743035 | AH17: =X17 -> 0 | AI17: =Y17 -> 2.229743035 | AJ17: =X17 -> 0 | AK17: =Y17 -> 2.229743035
A18: Interior Lighting | B18: 160.01 | C18: 0 | D18: 0 | E18: 0 | F18: 0 | G18: 0 | H18: 0 | I18: 0 | J18: 0 | K18: 0 | L18: 0 | M18: 0 | N18: 0 | P18: 0 | Q18: 151660.1982 | R18: 0 | S18: 1.996760594 | T18: 0 | U18: 1.996760594 | V18: =R18 -> 0 | W18: 1.996760594 | X18: =R18 -> 0 | Y18: 1.996760594 | Z18: =R18 -> 0 | AA18: 1.996760594 | AB18: =R18 -> 0 | AC18: 1.996760594 | AD18: =R18 -> 0 | AE18: 1.996760594 | AF18: =X18 -> 0 | AG18: 1.996760594 | AH18: =X18 -> 0 | AI18: 1.996760594 | AJ18: =X18 -> 0 | AK18: 1.996760594
A19: Exterior Lighting | B19: 119.07 | C19: 0 | D19: 0 | E19: 0 | F19: 0 | G19: 0 | H19: 0 | I19: 0 | J19: 0 | K19: 0 | L19: 0 | M19: 0 | N19: 0 | P19: 0 | Q19: 112856.5702 | R19: 0 | S19: 1.485871408 | T19: 0 | U19: 1.485871408 | V19: 0 | W19: 1.485871408 | X19: 0 | Y19: 1.485871408 | Z19: 0 | AA19: 1.485871408 | AB19: 0 | AC19: 1.485871408 | AD19: 0 | AE19: 1.485871408 | AF19: 0 | AG19: 1.485871408 | AH19: 0 | AI19: 1.485871408 | AJ19: 0 | AK19: 1.485871408
A20: Interior Equipment | B20: 1113.51 | C20: 0 | D20: 0 | E20: 0 | F20: 0 | G20: 0 | H20: 0 | I20: 0 | J20: 0 | K20: 0 | L20: 0 | M20: 0 | N20: 0 | P20: 0 | Q20: 1055403.708 | R20: 0 | S20: 13.89546209 | T20: 0 | U20: 13.89546209 | V20: 0 | W20: 13.89546209 | X20: 0 | Y20: 13.89546209 | Z20: 0 | AA20: 13.89546209 | AB20: 0 | AC20: 13.89546209 | AD20: 0 | AE20: 13.89546209 | AF20: 0 | AG20: 13.89546209 | AH20: 0 | AI20: 13.89546209 | AJ20: 0 | AK20: 13.89546209
A21: Exterior Equipment | B21: 14.47 | C21: 0 | D21: 0 | E21: 0 | F21: 0 | G21: 0 | H21: 0 | I21: 0 | J21: 0 | K21: 0 | L21: 0 | M21: 0 | N21: 0 | P21: 0 | Q21: 13714.91199 | R21: 0 | S21: 0.1805707506 | T21: 0 | U21: 0.1805707506 | V21: 0 | W21: 0.1805707506 | X21: 0 | Y21: 0.1805707506 | Z21: 0 | AA21: 0.1805707506 | AB21: 0 | AC21: 0.1805707506 | AD21: 0 | AE21: 0.1805707506 | AF21: 0 | AG21: 0.1805707506 | AH21: 0 | AI21: 0.1805707506 | AJ21: 0 | AK21: 0.1805707506
A22: Fans | B22: 217.39 | C22: 0 | D22: 0 | E22: 0 | F22: 0 | G22: 0 | H22: 0 | I22: 0 | J22: 0 | K22: 0 | L22: 0 | M22: 0 | N22: 0 | P22: 0 | Q22: 206045.9376 | R22: 0 | S22: 2.71280411 | T22: 0 | U22: 2.71280411 | V22: 0 | W22: 2.71280411 | X22: 0 | Y22: 2.71280411 | Z22: 0 | AA22: 2.71280411 | AB22: 0 | AC22: 2.71280411 | AD22: 0 | AE22: 2.71280411 | AF22: 0 | AG22: 2.71280411 | AH22: 0 | AI22: 2.71280411 | AJ22: 0 | AK22: 2.71280411
A23: Pumps | B23: 92.87 | C23: 0 | D23: 0 | E23: 0 | F23: 0 | G23: 0 | H23: 0 | I23: 0 | J23: 0 | K23: 0 | L23: 0 | M23: 0 | N23: 0 | P23: 0 | Q23: 88023.76479 | R23: 0 | S23: 1.158922295 | T23: 0 | U23: 1.158922295 | V23: 0 | W23: 1.158922295 | X23: 0 | Y23: 1.158922295 | Z23: 0 | AA23: 1.158922295 | AB23: 0 | AC23: 1.158922295 | AD23: 0 | AE23: 1.158922295 | AF23: 0 | AG23: 1.158922295 | AH23: 0 | AI23: 1.158922295 | AJ23: 0 | AK23: 1.158922295
A24: Heat Rejection | B24: 2.59 | C24: 0 | D24: 0 | E24: 0 | F24: 0 | G24: 0 | H24: 0 | I24: 0 | J24: 0 | K24: 0 | L24: 0 | M24: 0 | N24: 586.2 | P24: 0 | Q24: 2454.84603 | R24: 0 | S24: 0.03232054208 | T24: 0 | U24: 0.03232054208 | V24: 0 | W24: 0.03232054208 | X24: 0 | Y24: 0.03232054208 | Z24: 0 | AA24: 0.03232054208 | AB24: 0 | AC24: 0.03232054208 | AD24: 0 | AE24: 0.03232054208 | AF24: 0 | AG24: 0.03232054208 | AH24: 0 | AI24: 0.03232054208 | AJ24: 0 | AK24: 0.03232054208
A25: Humidification | B25: 0 | C25: 0 | D25: 0 | E25: 0 | F25: 0 | G25: 0 | H25: 0 | I25: 0 | J25: 0 | K25: 0 | L25: 0 | M25: 0 | N25: 0 | P25: 0 | Q25: 0 | R25: 0 | S25: 0 | T25: 0 | U25: 0 | V25: 0 | W25: 0 | X25: 0 | Y25: 0 | Z25: 0 | AA25: 0 | AB25: 0 | AC25: 0 | AD25: 0 | AE25: 0 | AF25: 0 | AG25: 0 | AH25: 0 | AI25: 0 | AJ25: 0 | AK25: 0
A26: Heat Recovery | B26: 0 | C26: 0 | D26: 0 | E26: 0 | F26: 0 | G26: 0 | H26: 0 | I26: 0 | J26: 0 | K26: 0 | L26: 0 | M26: 0 | N26: 0 | P26: 0 | Q26: 0 | R26: 0 | S26: 0 | T26: 0 | U26: 0 | V26: 0 | W26: 0 | X26: 0 | Y26: 0 | Z26: 0 | AA26: 0 | AB26: 0 | AC26: 0 | AD26: 0 | AE26: 0 | AF26: 0 | AG26: 0 | AH26: 0 | AI26: 0 | AJ26: 0 | AK26: 0
A27: Water Systems | B27: 0 | C27: 1212.99 | D27: 0 | E27: 0 | F27: 0 | G27: 0 | H27: 0 | I27: 0 | J27: 0 | K27: 0 | L27: 0 | M27: 0 | N27: 4779.52 | P27: 1149692.543 | Q27: 0 | R27: 15.1368704 | S27: 0 | T27: =R27 -> 15.1368704 | U27: 0 | V27: =T27 -> 15.1368704 | W27: 0 | X27: 0 | Y27: =V27*0.95/2.5 -> 5.752010753 | Z27: =T27 -> 15.1368704 | AA27: 0 | AB27: =Z27 -> 15.1368704 | AC27: 0 | AD27: 0 | AE27: =Y27 -> 5.752010753 | AF27: =Z27 -> 15.1368704 | AG27: 0 | AH27: =AF27 -> 15.1368704 | AI27: 0 | AJ27: 0 | AK27: =AE27 -> 5.752010753
A28: Refrigeration | B28: 0 | C28: 0 | D28: 0 | E28: 0 | F28: 0 | G28: 0 | H28: 0 | I28: 0 | J28: 0 | K28: 0 | L28: 0 | M28: 0 | N28: 0 | P28: 0 | Q28: 0 | R28: 0 | S28: 0 | T28: =R28 -> 0 | U28: 0 | V28: 0 | W28: 0 | X28: 0 | Y28: 0 | Z28: 0 | AA28: 0 | AB28: 0 | AC28: 0 | AD28: 0 | AE28: 0 | AF28: =X28 -> 0 | AG28: 0 | AH28: =X28 -> 0 | AI28: 0 | AJ28: =X28 -> 0 | AK28: 0
A29: Generators | B29: 0 | C29: 0 | D29: 0 | E29: 0 | F29: 0 | G29: 0 | H29: 0 | I29: 0 | J29: 0 | K29: 0 | L29: 0 | M29: 0 | N29: 0 | P29: 0 | Q29: 0 | R29: 0 | S29: 0 | T29: 0 | U29: 0 | V29: 0 | W29: 0 | X29: 0 | Y29: 0 | Z29: 0 | AA29: 0 | AB29: 0 | AC29: 0 | AD29: 0 | AE29: 0 | AF29: 0 | AG29: 0 | AH29: 0 | AI29: 0 | AJ29: 0 | AK29: 0
A31: Total End Uses | B31: 2105.98 | C31: 1836.26 | D31: 0 | E31: 0 | F31: 0 | G31: 0 | H31: 0 | I31: 0 | J31: 0 | K31: 0 | L31: 0 | M31: 0 | N31: 5365.71
A32: Note: Natural gas appears to be the principal heating source based on energy usage.
R33: gas EUI | S33: =SUM(R16:R29) -> 22.91476518 | U33: =SUM(T16:T29) -> 22.91476518 | W33: =SUM(V16:V29) -> 15.1368704 | Y33: =SUM(X16:X29) -> 0 | Z33: =AB43 -> 13.3 | AA33: =SUM(Z16:Z29) -> 17.47023884 | AC33: =SUM(AB16:AB29) -> 15.1368704 | AD33: =AD43 -> 0 | AE33: =SUM(AD16:AD29) -> 0 | AF33: =AF43 -> 8.9 | AG33: =SUM(AF16:AF29) -> 15.91465988 | AI33: =SUM(AH16:AH29) -> 15.1368704 | AJ33: =AH43 -> 0 | AK33: =SUM(AJ16:AJ29) -> 0
R34: elec EUI | S34: =SUM(S16:S29) -> 26.28034441 | U34: =SUM(U16:U29) -> 26.28034441 | W34: =SUM(W16:W29) -> 26.81023283 | Y34: =SUM(Y16:Y29) -> 32.56224358 | Z34: =AC43 -> 26.5 | AA34: =SUM(AA16:AA29) -> 24.4688217 | AC34: =SUM(AC16:AC29) -> 24.62778823 | AD34: =AE43 -> 34.6 | AE34: =SUM(AE16:AE29) -> 30.37979898 | AF34: =AG43 -> 31.2 | AG34: =SUM(AG16:AG29) -> 23.95124378 | AI34: =SUM(AI16:AI29) -> 24.00423263 | AJ34: =AI43 -> 34.9 | AK34: =SUM(AK16:AK29) -> 29.75624338
AB39: ='SWA data'!E2 -> Stretch Code | AC39: ='SWA data'!F2 -> 0 | AD39: ='SWA data'!G2 -> 0 | AE39: ='SWA data'!H2 -> 0 | AF39: ='SWA data'!I2 -> Passive House | AG39: ='SWA data'!J2 -> 0 | AH39: ='SWA data'!K2 -> 0 | AI39: ='SWA data'!L2 -> 0
AA40: ='SWA data'!D3 -> scneario name | AB40: ='SWA data'!E3 -> gas | AC40: ='SWA data'!F3 -> 0 | AD40: ='SWA data'!G3 -> electric | AE40: ='SWA data'!H3 -> 0 | AF40: ='SWA data'!I3 -> gas | AG40: ='SWA data'!J3 -> 0 | AH40: ='SWA data'!K3 -> electric | AI40: ='SWA data'!L3 -> 0
AB42: ='SWA data'!E5 -> gas EUI | AC42: ='SWA data'!F5 -> elec EUI | AD42: ='SWA data'!G5 -> gas EUI | AE42: ='SWA data'!H5 -> elec EUI | AF42: ='SWA data'!I5 -> gas EUI | AG42: ='SWA data'!J5 -> elec EUI | AH42: ='SWA data'!K5 -> gas EUI | AI42: ='SWA data'!L5 -> elec EUI
AA43: ='SWA data'!D7 -> MF highrise | AB43: ='SWA data'!E7 -> 13.3 | AC43: ='SWA data'!F7 -> 26.5 | AD43: ='SWA data'!G7 -> 0 | AE43: ='SWA data'!H7 -> 34.6 | AF43: ='SWA data'!I7 -> 8.9 | AG43: ='SWA data'!J7 -> 31.2 | AH43: ='SWA data'!K7 -> 0 | AI43: ='SWA data'!L7 -> 34.9
